{"text_format":"1","workbook":"xlsx","n_sheets":20,"sheets":["1. Information Sheet","2. Table of Contents","3. Rate Class Selection","4. Current Tariff Schedule","4. Hidden","5. 2014 Continuity Schedule","6. Billing Det. for Def-Var","6. hidden","7. Allocating Def-Var Balances","8. Calculation of Def-Var RR","9. Rev2Cost_GDPIPI","9. hidden","10. Other Charges & LF","11. Proposed Rates","11. Hidden","12. Summary Sheet","13. Final Tariff Schedule","14. Bill Impacts","14. Bill Impacts1","lists"],"not_rendered":{"charts":0,"images":2,"macros":1,"external_links":5,"defined_names":369,"comments":0,"pivot_tables":0},"unopened":[],"bounds":{"document_bytes":16777216,"sheet_cells":100000,"rows_first":2000,"rows_last":500,"rows_between":2000,"halvings":0,"cell_chars":16384,"cell_head_chars":4096},"cells_cut":0,"cells_raw":0,"read":"whole","date_system":"1900"}

{"sheet":"1. Information Sheet","index":0,"n_rows":41,"n_cols":27,"rows_kept":41,"cut":false,"hidden":false,"merged":[[40,0,40,6],[21,5,21,9],[19,5,19,9],[13,5,13,11],[15,5,15,9],[17,5,17,9],[33,2,33,11],[35,2,35,13],[37,2,37,12],[23,5,23,9],[27,5,27,7],[29,5,29,7],[29,0,29,4],[25,5,25,9]]}
[null,null,null,null,null,null,null,null,null,null,null,null,null,null,null,null,null,null,null,null,null,null,null,null,null,null,{"$f":"IF(OR(F16=\"\", F16=\"(if applicable)\"), F14, F14 & \" - \" & F16)","v":"Niagara Peninsula Energy Inc. - Niagara Falls Service Area"}]
[]
[]
[]
[]
[]
[]
[]
[]
[]
[]
[null,null,null,null,null,null,null,null,null,null,null,null,"Version",2.2999999999999998]
[]
[null,null,null,null,"Utility Name   ","Niagara Peninsula Energy Inc."]
[]
[null,null,null,null,"Service Territory","Niagara Falls Service Area"]
[]
[null,null,null,null,"Assigned EB Number","EB-2013-0154"]
[]
[null,null,null,null,"Name of Contact and Title","Suzanne Wilson, Vice-President Finance"]
[]
[null,null,null,null,"Phone Number   ","905-353-6004"]
[]
[null,null,null,null,"Email Address   ","Suzanne.Wilson@npei.ca"]
[]
[null,null,null,null,"We are applying for rates effective   ","2014-05-01"]
[]
[null,null,null,null,"Rate-Setting Method","IRM 4"]
[]
["Please indicate in which Rate Year the Group 1 accounts were last cleared1",null,null,null,null,2012]
[]
[null,"Notes"]
[]
[null,null,"Pale green cells represent input cells."]
[]
[null,null,"Pale blue cells represent drop-down lists.  The applicant should select the appropriate item from the drop-down list."]
[]
[null,null,"White cells contain fixed values, automatically generated values or formulae. "]
[]
[]
["Note:  \n1.  Rate year of application"]

{"sheet":"2. Table of Contents","index":1,"n_rows":20,"n_cols":8,"rows_kept":20,"cut":false,"hidden":false,"merged":[]}
[]
[]
[]
[]
[]
[]
[]
[]
[]
[]
[]
[]
[]
[null,null,null,"1. Information Sheet",null,null,null,"8. Calculation of Def-Var RR"]
[null,null,null,"2. Table of Contents",null,null,null,"9. Rev2Cost_GDPIPI"]
[null,null,null,"3. Rate Class Selection",null,null,null,"10. Other Charges & LF"]
[null,null,null,"4. Current Tariff Schedule",null,null,null,"11. Proposed Rates"]
[null,null,null,"5. 2014 Continuity Schedule",null,null,null,"12. Summary Sheet"]
[null,null,null,"6. Billing Det. for Def-Var",null,null,null,"13. Final Tariff Schedule"]
[null,null,null,"7. Cost Allocation for Def-Var",null,null,null,"14. Bill Impacts"]

{"sheet":"3. Rate Class Selection","index":2,"n_rows":33,"n_cols":17,"rows_kept":33,"cut":false,"hidden":false,"merged":[[21,1,21,9],[22,1,22,9],[23,1,23,9],[24,1,24,9],[11,0,11,13],[18,1,18,9],[17,1,17,9],[19,1,19,9],[20,1,20,9]]}
[]
[]
[]
[]
[]
[]
[]
[]
[]
[]
[]
["Select the appropriate rate classes as they appear on your most recent Board-Approved Tariff of Rates and Charges, including the MicroFit Class."]
[]
["How many classes are listed on your most recent Board-Approved Tariff of Rates and Charges?",null,null,null,null,null,null,null,null,7]
[]
["Select Your Rate Classes from the Blue Cells below.  Please ensure that a rate class is assigned to each shaded cell."]
[]
[null,"Rate Class Classification",null,null,null,null,null,null,null,null,null,null,null,null,null,null,"# of duplicates"]
[1,"RESIDENTIAL",null,null,null,null,null,null,null,null,null,null,null,null,null,{"$f":"COUNTIF($B$19:$J$40, B19)","v":1},{"$f":"COUNTIF(P19:P40, 2)/2","v":0}]
[2,"GENERAL SERVICE LESS THAN 50 KW",null,null,null,null,null,null,null,null,null,null,null,null,null,{"$f":"COUNTIF($B$19:$J$40, B20)","v":1}]
[3,"GENERAL SERVICE 50 TO 4,999 KW",null,null,null,null,null,null,null,null,null,null,null,null,null,1]
[4,"UNMETERED SCATTERED LOAD",null,null,null,null,null,null,null,null,null,null,null,null,null,1]
[5,"SENTINEL LIGHTING",null,null,null,null,null,null,null,null,null,null,null,null,null,1]
[6,"STREET LIGHTING",null,null,null,null,null,null,null,null,null,null,null,null,null,1]
[7,"microFIT",null,null,null,null,null,null,null,null,null,null,null,null,null,1]
[null,null,null,null,null,null,null,null,null,null,null,null,null,null,null,0]
[null,null,null,null,null,null,null,null,null,null,null,null,null,null,null,0]
[null,null,null,null,null,null,null,null,null,null,null,null,null,null,null,0]
[null,null,null,null,null,null,null,null,null,null,null,null,null,null,null,0]
[null,null,null,null,null,null,null,null,null,null,null,null,null,null,null,0]
[null,null,null,null,null,null,null,null,null,null,null,null,null,null,null,0]
[null,null,null,null,null,null,null,null,null,null,null,null,null,null,null,0]
[null,null,null,null,null,null,null,null,null,null,null,null,null,null,null,0]

{"sheet":"4. Current Tariff Schedule","index":3,"n_rows":456,"n_cols":28,"rows_kept":456,"cut":false,"hidden":false,"merged":[[52,1,52,6],[25,1,30,8],[33,1,35,8],[36,1,39,8],[40,1,42,8],[43,1,46,8],[60,1,60,6],[61,1,61,6],[11,1,17,8],[48,1,48,6],[57,1,57,6],[20,1,20,8],[21,1,21,8],[23,1,23,8],[49,1,49,6],[53,1,53,6],[54,1,54,6],[55,1,55,6],[56,1,56,6],[58,1,58,6],[59,1,59,6],[50,1,50,6],[51,1,51,6],[64,1,64,6],[65,1,65,6],[62,1,62,6],[83,1,83,6],[77,1,77,6],[80,1,80,6],[81,1,81,6],[82,1,82,6],[76,1,76,6],[75,1,75,6],[74,1,74,6],[66,1,66,6],[67,1,67,6],[68,1,68,6],[73,1,73,6],[63,1,63,6],[72,1,72,6],[69,1,69,6],[137,1,137,6],[138,1,138,6],[139,1,139,6],[140,1,140,6],[71,1,71,6],[70,1,70,6],[88,1,93,8],[96,1,98,8],[99,1,102,8],[120,1,120,6],[121,1,121,6],[122,1,122,6],[123,1,123,6],[111,1,111,6],[112,1,112,6],[113,1,113,6],[114,1,114,6],[115,1,115,6],[116,1,116,6],[117,1,117,6],[118,1,118,6],[119,1,119,6],[195,1,195,6],[146,1,146,6],[86,1,86,8],[151,1,156,8],[159,1,161,8],[162,1,165,8],[124,1,124,6],[125,1,125,6],[126,1,126,6],[127,1,127,6],[128,1,128,6],[129,1,129,6],[130,1,130,6],[131,1,131,6],[132,1,132,6],[133,1,133,6],[134,1,134,6],[103,1,105,8],[106,1,109,8],[143,1,143,6],[144,1,144,6],[145,1,145,6],[135,1,135,6],[136,1,136,6],[186,1,186,6],[187,1,187,6],[188,1,188,6],[189,1,189,6],[190,1,190,6],[191,1,191,6],[192,1,192,6],[193,1,193,6],[194,1,194,6],[259,1,259,6],[260,1,260,6],[209,1,209,6],[149,1,149,8],[214,1,219,8],[222,1,224,8],[225,1,228,8],[174,1,174,6],[175,1,175,6],[176,1,176,6],[177,1,177,6],[178,1,178,6],[179,1,179,6],[180,1,180,6],[181,1,181,6],[182,1,182,6],[183,1,183,6],[184,1,184,6],[166,1,168,8],[169,1,172,8],[206,1,206,6],[207,1,207,6],[208,1,208,6],[185,1,185,6],[250,1,250,6],[251,1,251,6],[252,1,252,6],[253,1,253,6],[254,1,254,6],[255,1,255,6],[256,1,256,6],[257,1,257,6],[258,1,258,6],[320,1,320,6],[321,1,321,6],[322,1,322,6],[323,1,323,6],[324,1,324,6],[325,1,325,6],[272,1,272,6],[212,1,212,8],[277,1,282,8],[285,1,287,8],[288,1,291,8],[239,1,239,6],[240,1,240,6],[241,1,241,6],[242,1,242,6],[243,1,243,6],[244,1,244,6],[245,1,245,6],[246,1,246,6],[247,1,247,6],[248,1,248,6],[249,1,249,6],[229,1,231,8],[232,1,235,8],[386,1,386,6],[387,1,387,6],[388,1,388,6],[389,1,389,6],[351,1,354,8],[304,1,304,6],[305,1,305,6],[306,1,306,6],[307,1,307,6],[308,1,308,6],[309,1,309,6],[310,1,310,6],[311,1,311,6],[312,1,312,6],[313,1,313,6],[314,1,314,6],[332,1,332,6],[333,1,333,6],[334,1,334,6],[315,1,315,6],[316,1,316,6],[317,1,317,6],[318,1,318,6],[319,1,319,6],[367,1,367,6],[368,1,368,6],[369,1,369,6],[370,1,370,6],[371,1,371,6],[372,1,372,6],[373,1,373,6],[374,1,374,6],[355,1,357,8],[358,1,361,8],[201,1,201,6],[202,1,202,6],[203,1,203,6],[237,1,237,6],[238,1,238,6],[196,1,196,6],[197,1,197,6],[198,1,198,6],[199,1,199,6],[200,1,200,6],[266,1,266,6],[300,1,300,6],[301,1,301,6],[302,1,302,6],[303,1,303,6],[261,1,261,6],[262,1,262,6],[263,1,263,6],[264,1,264,6],[265,1,265,6],[275,1,275,8],[292,1,294,8],[295,1,298,8],[269,1,269,6],[270,1,270,6],[271,1,271,6],[390,1,390,6],[326,1,326,6],[327,1,327,6],[328,1,328,6],[329,1,329,6],[363,1,363,6],[375,1,375,6],[376,1,376,6],[377,1,377,6],[378,1,378,6],[379,1,379,6],[380,1,380,6],[381,1,381,6],[382,1,382,6],[383,1,383,6],[384,1,384,6],[385,1,385,6],[335,1,335,6],[340,1,345,8],[348,1,350,8],[338,1,338,8],[364,1,364,6],[365,1,365,6],[366,1,366,6],[429,1,429,6],[430,1,430,6],[431,1,431,6],[432,1,432,6],[433,1,433,6],[391,1,391,6],[392,1,392,6],[426,1,426,6],[427,1,427,6],[428,1,428,6],[418,1,420,8],[421,1,424,8],[401,1,401,8],[397,1,397,6],[398,1,398,6],[403,1,408,8],[411,1,413,8],[414,1,417,8],[395,1,395,6],[396,1,396,6],[439,1,439,6],[440,1,440,6],[441,1,441,6],[442,1,442,6],[443,1,443,6],[434,1,434,6],[435,1,435,6],[436,1,436,6],[437,1,437,6],[438,1,438,6],[454,1,454,6],[455,1,455,6],[449,1,449,6],[450,1,450,6],[451,1,451,6],[452,1,452,6],[453,1,453,6],[444,1,444,6],[445,1,445,6],[446,1,446,6],[447,1,447,6],[448,1,448,6]]}
[null,null,null,null,null,null,null,null,null,null,null,null,null,null,null,null,null,null,null,null,null,null,null,null,null,3,"January","≥"]
[null,null,null,null,null,null,null,null,null,null,null,null,null,null,null,null,null,null,null,null,null,null,null,null,null,null,"February"]
[null,null,null,null,null,null,null,null,null,null,null,null,null,null,null,null,null,null,null,null,null,null,null,null,null,null,"March"]
[null,null,null,null,null,null,null,null,null,null,null,null,null,null,null,null,null,null,null,null,null,null,null,null,null,null,"April"]
[null,null,null,null,null,null,null,null,null,null,null,null,null,null,null,null,null,null,null,null,null,null,null,null,null,null,"May"]
[null,null,null,null,null,null,null,null,null,null,null,null,null,null,null,null,null,null,null,null,null,null,null,null,null,null,"June"]
[null,null,null,null,null,null,null,null,null,null,null,null,null,null,null,null,null,null,null,null,null,null,null,null,null,null,"July"]
[null,null,null,null,null,null,null,null,null,null,null,null,null,null,null,null,null,null,null,null,null,null,null,null,null,null,"August"]
[null,null,null,null,null,null,null,null,null,null,null,null,null,null,null,null,null,null,null,null,null,null,null,null,null,null,"September"]
[null,null,null,null,null,null,null,null,null,null,null,null,null,null,null,null,null,null,null,null,null,null,null,null,null,null,"October"]
[null,null,null,null,null,null,null,null,null,null,null,null,null,null,null,null,null,null,null,null,null,null,null,null,null,null,"November"]
[null,"For each class, Applicants are required to copy and paste the class descriptions (located directly under the class name) and the description of the applicability of those rates (description is found under the class name and directly under the word \"APPLICATION\").  By using the drop-down lists located under the column labeled \"Rate Description\", please select the descriptions of the rates and charges that BEST MATCHES the descriptions on your most recent Board-Approved Tariff of Rates and Charges.  If the description is not found in the drop-down list, please enter the description in the green cells under the correct class exactly as it appears on the tariff.   Please do not enter more than one \"Service Charge\" for each class for which a base monthly fixed charge applies.",null,null,null,null,null,null,null,null,null,null,null,null,null,null,null,null,null,null,null,null,null,null,null,null,"December"]
[]
[]
[]
[]
[]
[]
[]
[]
[null,{"$f":"IF(ISBLANK('1. Information Sheet'!F14), \"Please Choose Distributor Name on Sheet 1\", '1. Information Sheet'!F14)","v":"Niagara Peninsula Energy Inc."}]
[null,"TARIFF OF RATES AND CHARGES"]
[]
["RESIDENTIAL","RESIDENTIAL Service Classification"]
["RESIDENTIAL"]
["RESIDENTIAL","This class pertains to customers residing in detached, semi-detached or duplex dwelling units, where energy is supplied single-phase, 3 wire, 60 hertz, having a nominal voltage of 120/240 volts.  Large residential services will include all services from 201 amp. up to and including 400 amp., 120/240 volt, single phase, three wire.  Further servicing details are available in the distributor's Conditions of Service."]
["RESIDENTIAL"]
["RESIDENTIAL"]
["RESIDENTIAL"]
["RESIDENTIAL"]
["RESIDENTIAL"]
["RESIDENTIAL","APPLICATION"]
["RESIDENTIAL"]
["RESIDENTIAL","The application of these rates and charges shall be in accordance with the Licence of the Distributor and any Code or Order of the Board, and amendments thereto as approved by the Board, which may be applicable to the administration of this schedule."]
["RESIDENTIAL"]
["RESIDENTIAL"]
["RESIDENTIAL","No rates and charges for the distribution of electricity and charges to meet the costs of any work or service done or furnished for the purpose of the distribution of electricity shall be made except as permitted by this schedule, unless required by the Distributor's Licence or a Code or Order of the Board, and amendments thereto as approved by the Board, or as specified herein."]
["RESIDENTIAL"]
["RESIDENTIAL"]
["RESIDENTIAL"]
["RESIDENTIAL","Unless specifically noted, this schedule does not contain any charges for the electricity commodity, be it under the Regulated Price Plan, a contract with a retailer or the wholesale market price, as applicable. In addition, the charges in the MONTHLY RATES AND CHARGES - Regulatory component of this schedule do not apply to a customer that is an embedded wholesale market participant."]
["RESIDENTIAL"]
["RESIDENTIAL"]
["RESIDENTIAL","It should be noted that this schedule does not list any charges, assessments or credits that are required by law to be invoiced by a distributor and that are not subject to Board approval, such as the Debt Retirement Charge, the Global Adjustment, the Ontario Clean Energy Benefit and the HST."]
["RESIDENTIAL"]
["RESIDENTIAL"]
["RESIDENTIAL"]
["RESIDENTIAL","MONTHLY RATES AND CHARGES - Delivery Component      (If applicable, Effective Date MUST be included in rate description)"]
["RESIDENTIAL","Service Charge",null,null,null,null,null,"$",15.84,null,"1_C_MSC"]
["RESIDENTIAL","Rate Rider for Smart Metering Entity Charge - effective until October 31, 2018",null,null,null,null,null,"$",0.79,null,"1_C_SMEC","2018-10-31"]
["RESIDENTIAL","Distribution Volumetric Rate",null,null,null,null,null,"$/kWh",1.5900000000000001E-2,null,"1_C_VC"]
["RESIDENTIAL","Low Voltage Service Rate",null,null,null,null,null,"$/kWh",5.0000000000000001E-4,null,"1_C_LVrate"]
["RESIDENTIAL","Rate Rider for Disposition of Deferral/Variance Accounts (2012) - effective until April 30, 2014",null,null,null,null,null,"$/kWh",-1.1000000000000001E-3,null,"1_C_VC_DEFVAR_kWh_1","2014-04-30"]
["RESIDENTIAL","Rate Rider for Disposition of Global Adjustment Sub-Account (2012) - effective until April 30, 2014 Applicable only for Non-RPP Customers",null,null,null,null,null,"$/kWh",-5.0000000000000001E-4,null,"1_C_VC_GA_Rate_Rider_kWh_1","2014-04-30"]
["RESIDENTIAL","Rate Rider for Disposition of Deferred PILs Variance Account 1562 - effective until April 30, 2014",null,null,null,null,null,"$/kWh",-3.3999999999999998E-3,null,"1_C_VC_DEFVAR_kWh_2","2014-04-30"]
["RESIDENTIAL","Rate Rider for Application of Tax Change - effective until April 30, 2014",null,null,null,null,null,"$/kWh",-1E-4,null,"1_C_VC_Rate_Rider_kWh_3","2014-04-30"]
["RESIDENTIAL","Retail Transmission Rate - Network Service Rate",null,null,null,null,null,"$/kWh",6.7999999999999996E-3,null,"1_C_RTSR_Network"]
["RESIDENTIAL","Retail Transmission Rate - Line and Transformation Connection Service Rate",null,null,null,null,null,"$/kWh",4.4999999999999997E-3,null,"1_C_RTSR_Connection"]
["RESIDENTIAL"]
["RESIDENTIAL"]
["RESIDENTIAL"]
["RESIDENTIAL"]
["RESIDENTIAL"]
["RESIDENTIAL"]
["RESIDENTIAL"]
["RESIDENTIAL"]
["RESIDENTIAL"]
["RESIDENTIAL"]
["RESIDENTIAL"]
["RESIDENTIAL"]
["RESIDENTIAL"]
["RESIDENTIAL"]
["RESIDENTIAL"]
["RESIDENTIAL"]
["RESIDENTIAL"]
["RESIDENTIAL"]
["RESIDENTIAL"]
["RESIDENTIAL"]
["RESIDENTIAL","MONTHLY RATES AND CHARGES - Regulatory Component"]
["RESIDENTIAL"]
["RESIDENTIAL","Wholesale Market Service Rate",null,null,null,null,null,"$/kWh",4.4000000000000003E-3,null,"1_C_WMSR"]
["RESIDENTIAL","Rural Rate Protection Charge",null,null,null,null,null,"$/kWh",1.1999999999999999E-3,null,"1_C_RRPC"]
["RESIDENTIAL","Standard Supply Service - Administrative Charge (if applicable)",null,null,null,null,null,"$",0.25,null,"1_C_SSS"]
["RESIDENTIAL"]
[]
[]
["GENERAL SERVICE LESS THAN 50 KW","GENERAL SERVICE LESS THAN 50 KW Service Classification"]
["GENERAL SERVICE LESS THAN 50 KW"]
["GENERAL SERVICE LESS THAN 50 KW","This class pertains to non-residential customers taking electricity at 750 volts or less whose monthly average peak demand is less than, or is forecast to be less than, 50 kW.  Further servicing details are available in the distributor's Conditions of Service."]
["GENERAL SERVICE LESS THAN 50 KW"]
["GENERAL SERVICE LESS THAN 50 KW"]
["GENERAL SERVICE LESS THAN 50 KW"]
["GENERAL SERVICE LESS THAN 50 KW"]
["GENERAL SERVICE LESS THAN 50 KW"]
["GENERAL SERVICE LESS THAN 50 KW","APPLICATION"]
["GENERAL SERVICE LESS THAN 50 KW"]
["GENERAL SERVICE LESS THAN 50 KW","The application of these rates and charges shall be in accordance with the Licence of the Distributor and any Code or Order of the Board, and amendments thereto as approved by the Board, which may be applicable to the administration of this schedule."]
["GENERAL SERVICE LESS THAN 50 KW"]
["GENERAL SERVICE LESS THAN 50 KW"]
["GENERAL SERVICE LESS THAN 50 KW","No rates and charges for the distribution of electricity and charges to meet the costs of any work or service done or furnished for the purpose of the distribution of electricity shall be made except as permitted by this schedule, unless required by the Distributor's Licence or a Code or Order of the Board, and amendments thereto as approved by the Board, or as specified herein."]
["GENERAL SERVICE LESS THAN 50 KW"]
["GENERAL SERVICE LESS THAN 50 KW"]
["GENERAL SERVICE LESS THAN 50 KW"]
["GENERAL SERVICE LESS THAN 50 KW","Unless specifically noted, this schedule does not contain any charges for the electricity commodity, be it under the Regulated Price Plan, a contract with a retailer or the wholesale market price, as applicable. In addition, the charges in the MONTHLY RATES AND CHARGES - Regulatory component of this schedule do not apply to a customer that is an embedded wholesale market participant."]
["GENERAL SERVICE LESS THAN 50 KW"]
["GENERAL SERVICE LESS THAN 50 KW"]
["GENERAL SERVICE LESS THAN 50 KW","It should be noted that this schedule does not list any charges, assessments or credits that are required by law to be invoiced by a distributor and that are not subject to Board approval, such as the Debt Retirement Charge, the Global Adjustment, the Ontario Clean Energy Benefit and the HST."]
["GENERAL SERVICE LESS THAN 50 KW"]
["GENERAL SERVICE LESS THAN 50 KW"]
["GENERAL SERVICE LESS THAN 50 KW"]
["GENERAL SERVICE LESS THAN 50 KW","MONTHLY RATES AND CHARGES - Delivery Component      (If applicable, Effective Date MUST be included in rate description)"]
["GENERAL SERVICE LESS THAN 50 KW","Service Charge",null,null,null,null,null,"$",37.270000000000003,null,"2_C_MSC"]
["GENERAL SERVICE LESS THAN 50 KW","Rate Rider for Smart Metering Entity Charge - effective until October 31, 2018",null,null,null,null,null,"$",0.79,null,"2_C_SMEC","2018-10-31"]
["GENERAL SERVICE LESS THAN 50 KW","Distribution Volumetric Rate",null,null,null,null,null,"$/kWh",1.3599999999999999E-2,null,"2_C_VC"]
["GENERAL SERVICE LESS THAN 50 KW","Low Voltage Service Rate",null,null,null,null,null,"$/kWh",4.0000000000000002E-4,null,"2_C_LVrate"]
["GENERAL SERVICE LESS THAN 50 KW","Rate Rider for Disposition of Deferral/Variance Accounts (2012) - effective until April 30, 2014",null,null,null,null,null,"$/kWh",-1.1000000000000001E-3,null,"2_C_VC_DEFVAR_kWh_1","2014-04-30"]
["GENERAL SERVICE LESS THAN 50 KW","Rate Rider for Disposition of Global Adjustment Sub-Account (2012) - effective until April 30, 2014 Applicable only for Non-RPP Customers",null,null,null,null,null,"$/kWh",-5.0000000000000001E-4,null,"2_C_VC_GA_Rate_Rider_kWh_1","2014-04-30"]
["GENERAL SERVICE LESS THAN 50 KW","Rate Rider for Disposition of Deferred PILs Variance Account 1562 - effective until April 30, 2014",null,null,null,null,null,"$/kWh",-3.0000000000000001E-3,null,"2_C_VC_DEFVAR_kWh_2","2014-04-30"]
["GENERAL SERVICE LESS THAN 50 KW","Rate Rider for Application of Tax Change - effective until April 30, 2014",null,null,null,null,null,"$/kWh",-1E-4,null,"2_C_VC_Rate_Rider_kWh_3","2014-04-30"]
["GENERAL SERVICE LESS THAN 50 KW","Retail Transmission Rate - Network Service Rate",null,null,null,null,null,"$/kWh",6.1999999999999998E-3,null,"2_C_RTSR_Network"]
["GENERAL SERVICE LESS THAN 50 KW","Retail Transmission Rate - Line and Transformation Connection Service Rate",null,null,null,null,null,"$/kWh",4.0000000000000001E-3,null,"2_C_RTSR_Connection"]
["GENERAL SERVICE LESS THAN 50 KW"]
["GENERAL SERVICE LESS THAN 50 KW"]
["GENERAL SERVICE LESS THAN 50 KW"]
["GENERAL SERVICE LESS THAN 50 KW"]
["GENERAL SERVICE LESS THAN 50 KW"]
["GENERAL SERVICE LESS THAN 50 KW"]
["GENERAL SERVICE LESS THAN 50 KW"]
["GENERAL SERVICE LESS THAN 50 KW"]
["GENERAL SERVICE LESS THAN 50 KW"]
["GENERAL SERVICE LESS THAN 50 KW"]
["GENERAL SERVICE LESS THAN 50 KW"]
["GENERAL SERVICE LESS THAN 50 KW"]
["GENERAL SERVICE LESS THAN 50 KW"]
["GENERAL SERVICE LESS THAN 50 KW"]
["GENERAL SERVICE LESS THAN 50 KW"]
["GENERAL SERVICE LESS THAN 50 KW"]
["GENERAL SERVICE LESS THAN 50 KW"]
["GENERAL SERVICE LESS THAN 50 KW"]
["GENERAL SERVICE LESS THAN 50 KW"]
["GENERAL SERVICE LESS THAN 50 KW"]
["GENERAL SERVICE LESS THAN 50 KW","MONTHLY RATES AND CHARGES - Regulatory Component"]
["GENERAL SERVICE LESS THAN 50 KW"]
["GENERAL SERVICE LESS THAN 50 KW","Wholesale Market Service Rate",null,null,null,null,null,{"$f":"H81","v":"$/kWh"},4.4000000000000003E-3,null,"2_C_WMSR"]
["GENERAL SERVICE LESS THAN 50 KW","Rural Rate Protection Charge",null,null,null,null,null,"$/kWh",1.1999999999999999E-3,null,"2_C_RRPC"]
["GENERAL SERVICE LESS THAN 50 KW","Standard Supply Service - Administrative Charge (if applicable)",null,null,null,null,null,"$",0.25,null,"2_C_SSS"]
["GENERAL SERVICE LESS THAN 50 KW"]
[]
[]
["GENERAL SERVICE 50 TO 4,999 KW","GENERAL SERVICE 50 TO 4,999 KW Service Classification"]
["GENERAL SERVICE 50 TO 4,999 KW"]
["GENERAL SERVICE 50 TO 4,999 KW","This classification referes to a non residential account whose monthly average peak demand is equal to or greater than, or is forecast to be equal to or greater than 50 kW but less than 5,000 kW.  Further servicing details are available in the distributor's Conditions of Service."]
["GENERAL SERVICE 50 TO 4,999 KW"]
["GENERAL SERVICE 50 TO 4,999 KW"]
["GENERAL SERVICE 50 TO 4,999 KW"]
["GENERAL SERVICE 50 TO 4,999 KW"]
["GENERAL SERVICE 50 TO 4,999 KW"]
["GENERAL SERVICE 50 TO 4,999 KW","APPLICATION"]
["GENERAL SERVICE 50 TO 4,999 KW"]
["GENERAL SERVICE 50 TO 4,999 KW","The application of these rates and charges shall be in accordance with the Licence of the Distributor and any Code or Order of the Board, and amendments thereto as approved by the Board, which may be applicable to the administration of this schedule."]
["GENERAL SERVICE 50 TO 4,999 KW"]
["GENERAL SERVICE 50 TO 4,999 KW"]
["GENERAL SERVICE 50 TO 4,999 KW","No rates and charges for the distribution of electricity and charges to meet the costs of any work or service done or furnished for the purpose of the distribution of electricity shall be made except as permitted by this schedule, unless required by the Distributor's Licence or a Code or Order of the Board, and amendments thereto as approved by the Board, or as specified herein."]
["GENERAL SERVICE 50 TO 4,999 KW"]
["GENERAL SERVICE 50 TO 4,999 KW"]
["GENERAL SERVICE 50 TO 4,999 KW"]
["GENERAL SERVICE 50 TO 4,999 KW","Unless specifically noted, this schedule does not contain any charges for the electricity commodity, be it under the Regulated Price Plan, a contract with a retailer or the wholesale market price, as applicable. In addition, the charges in the MONTHLY RATES AND CHARGES - Regulatory component of this schedule do not apply to a customer that is an embedded wholesale market participant."]
["GENERAL SERVICE 50 TO 4,999 KW"]
["GENERAL SERVICE 50 TO 4,999 KW"]
["GENERAL SERVICE 50 TO 4,999 KW","It should be noted that this schedule does not list any charges, assessments or credits that are required by law to be invoiced by a distributor and that are not subject to Board approval, such as the Debt Retirement Charge, the Global Adjustment, the Ontario Clean Energy Benefit and the HST."]
["GENERAL SERVICE 50 TO 4,999 KW"]
["GENERAL SERVICE 50 TO 4,999 KW"]
["GENERAL SERVICE 50 TO 4,999 KW"]
["GENERAL SERVICE 50 TO 4,999 KW","MONTHLY RATES AND CHARGES - Delivery Component      (If applicable, Effective Date MUST be included in rate description)"]
["GENERAL SERVICE 50 TO 4,999 KW","Service Charge",null,null,null,null,null,"$",177.1,null,"3_C_MSC"]
["GENERAL SERVICE 50 TO 4,999 KW","Distribution Volumetric Rate",null,null,null,null,null,"$/kW",4.1814999999999998,null,"3_C_VC"]
["GENERAL SERVICE 50 TO 4,999 KW","Low Voltage Service Rate",null,null,null,null,null,"$/kW",0.15920000000000001,null,"3_C_LVrate"]
["GENERAL SERVICE 50 TO 4,999 KW","Rate Rider for Disposition of Deferral/Variance Accounts (2012) - effective until April 30, 2014",null,null,null,null,null,"$/kW",-0.37340000000000001,null,"3_C_VC_DEFVAR_kW_1","2014-04-30"]
["GENERAL SERVICE 50 TO 4,999 KW","Rate Rider for Disposition of Global Adjustment Sub-Account (2012) - effective until April 30, 2014 Applicable only for Non-RPP Customers",null,null,null,null,null,"$/kW",-0.184,null,"3_C_VC_GA_Rate_Rider_kW_1","2014-04-30"]
["GENERAL SERVICE 50 TO 4,999 KW","Rate Rider for Disposition of Deferred PILs Variance Account 1562 - effective until April 30, 2014",null,null,null,null,null,"$/kW",-0.44969999999999999,null,"3_C_VC_DEFVAR_kW_2","2014-04-30"]
["GENERAL SERVICE 50 TO 4,999 KW","Rate Rider for Application of Tax Change - effective until April 30, 2014",null,null,null,null,null,"$/kW",-1.24E-2,null,"3_C_VC_Rate_Rider_kW_3","2014-04-30"]
["GENERAL SERVICE 50 TO 4,999 KW","Retail Transmission Rate - Network Service Rate",null,null,null,null,null,"$/kW",2.5508000000000002,null,"3_C_RTSR_Network"]
["GENERAL SERVICE 50 TO 4,999 KW","Retail Transmission Rate - Line and Transformation Connection Service Rate",null,null,null,null,null,"$/kW",1.5766,null,"3_C_RTSR_Connection"]
["GENERAL SERVICE 50 TO 4,999 KW"]
["GENERAL SERVICE 50 TO 4,999 KW"]
["GENERAL SERVICE 50 TO 4,999 KW"]
["GENERAL SERVICE 50 TO 4,999 KW"]
["GENERAL SERVICE 50 TO 4,999 KW"]
["GENERAL SERVICE 50 TO 4,999 KW"]
["GENERAL SERVICE 50 TO 4,999 KW"]
["GENERAL SERVICE 50 TO 4,999 KW"]
["GENERAL SERVICE 50 TO 4,999 KW"]
["GENERAL SERVICE 50 TO 4,999 KW"]
["GENERAL SERVICE 50 TO 4,999 KW"]
["GENERAL SERVICE 50 TO 4,999 KW"]
["GENERAL SERVICE 50 TO 4,999 KW"]
["GENERAL SERVICE 50 TO 4,999 KW"]
["GENERAL SERVICE 50 TO 4,999 KW"]
["GENERAL SERVICE 50 TO 4,999 KW"]
["GENERAL SERVICE 50 TO 4,999 KW"]
["GENERAL SERVICE 50 TO 4,999 KW"]
["GENERAL SERVICE 50 TO 4,999 KW"]
["GENERAL SERVICE 50 TO 4,999 KW"]
["GENERAL SERVICE 50 TO 4,999 KW"]
["GENERAL SERVICE 50 TO 4,999 KW","MONTHLY RATES AND CHARGES - Regulatory Component"]
["GENERAL SERVICE 50 TO 4,999 KW"]
["GENERAL SERVICE 50 TO 4,999 KW","Wholesale Market Service Rate",null,null,null,null,null,{"$f":"H81","v":"$/kWh"},4.4000000000000003E-3,null,"3_C_WMSR"]
["GENERAL SERVICE 50 TO 4,999 KW","Rural Rate Protection Charge",null,null,null,null,null,"$/kWh",1.1999999999999999E-3,null,"3_C_RRPC"]
["GENERAL SERVICE 50 TO 4,999 KW","Standard Supply Service - Administrative Charge (if applicable)",null,null,null,null,null,"$",0.25,null,"3_C_SSS"]
["GENERAL SERVICE 50 TO 4,999 KW"]
[]
[]
["UNMETERED SCATTERED LOAD","UNMETERED SCATTERED LOAD Service Classification"]
["UNMETERED SCATTERED LOAD"]
["UNMETERED SCATTERED LOAD","This classification refers to an account taking electricity at 750 volts or less whos monthly averge peak demand is less than, or forecast to be less than, 50 kW and the consumption is unmetered.  Such connections include cable TV power pack, bus shelters, telephone booths, traffic lights, railway crossings etc.  The customer will provide detailed manufacturer information/documentation with regard to electricity demand/consumption of the proposed unmetered load.  Further servicing details are available in the distributor's Conditions of Service."]
["UNMETERED SCATTERED LOAD"]
["UNMETERED SCATTERED LOAD"]
["UNMETERED SCATTERED LOAD"]
["UNMETERED SCATTERED LOAD"]
["UNMETERED SCATTERED LOAD"]
["UNMETERED SCATTERED LOAD","APPLICATION"]
["UNMETERED SCATTERED LOAD"]
["UNMETERED SCATTERED LOAD","The application of these rates and charges shall be in accordance with the Licence of the Distributor and any Code or Order of the Board, and amendments thereto as approved by the Board, which may be applicable to the administration of this schedule."]
["UNMETERED SCATTERED LOAD"]
["UNMETERED SCATTERED LOAD"]
["UNMETERED SCATTERED LOAD","No rates and charges for the distribution of electricity and charges to meet the costs of any work or service done or furnished for the purpose of the distribution of electricity shall be made except as permitted by this schedule, unless required by the Distributor's Licence or a Code or Order of the Board, and amendments thereto as approved by the Board, or as specified herein."]
["UNMETERED SCATTERED LOAD"]
["UNMETERED SCATTERED LOAD"]
["UNMETERED SCATTERED LOAD"]
["UNMETERED SCATTERED LOAD","Unless specifically noted, this schedule does not contain any charges for the electricity commodity, be it under the Regulated Price Plan, a contract with a retailer or the wholesale market price, as applicable. In addition, the charges in the MONTHLY RATES AND CHARGES - Regulatory component of this schedule do not apply to a customer that is an embedded wholesale market participant."]
["UNMETERED SCATTERED LOAD"]
["UNMETERED SCATTERED LOAD"]
["UNMETERED SCATTERED LOAD","It should be noted that this schedule does not list any charges, assessments or credits that are required by law to be invoiced by a distributor and that are not subject to Board approval, such as the Debt Retirement Charge, the Global Adjustment, the Ontario Clean Energy Benefit and the HST."]
["UNMETERED SCATTERED LOAD"]
["UNMETERED SCATTERED LOAD"]
["UNMETERED SCATTERED LOAD"]
["UNMETERED SCATTERED LOAD","MONTHLY RATES AND CHARGES - Delivery Component      (If applicable, Effective Date MUST be included in rate description)"]
["UNMETERED SCATTERED LOAD","Service Charge",null,null,null,null,null,"$",19.260000000000002,null,"4_C_MSC"]
["UNMETERED SCATTERED LOAD","Distribution Volumetric Rate",null,null,null,null,null,"$/kWh",1.35E-2,null,"4_C_VC"]
["UNMETERED SCATTERED LOAD","Low Voltage Service Rate",null,null,null,null,null,"$/kWh",4.0000000000000002E-4,null,"4_C_LVrate"]
["UNMETERED SCATTERED LOAD","Rate Rider for Disposition of Deferral/Variance Accounts (2012) - effective until April 30, 2014",null,null,null,null,null,"$/kWh",-1.1000000000000001E-3,null,"4_C_VC_DEFVAR_kWh_1","2014-04-30"]
["UNMETERED SCATTERED LOAD","Rate Rider for Disposition of Global Adjustment Sub-Account (2012) - effective until April 30, 2014 Applicable only for Non-RPP Customers",null,null,null,null,null,"$/kWh",-5.0000000000000001E-4,null,"4_C_VC_GA_Rate_Rider_kWh_1","2014-04-30"]
["UNMETERED SCATTERED LOAD","Rate Rider for Disposition of Deferred PILs Variance Account 1562 - effective until April 30, 2014",null,null,null,null,null,"$/kWh",-7.4999999999999997E-3,null,"4_C_VC_DEFVAR_kWh_2","2014-04-30"]
["UNMETERED SCATTERED LOAD","Rate Rider for Application of Tax Change - effective until April 30, 2014",null,null,null,null,null,"$/kWh",-1E-4,null,"4_C_VC_Rate_Rider_kWh_3","2014-04-30"]
["UNMETERED SCATTERED LOAD","Retail Transmission Rate - Network Service Rate",null,null,null,null,null,"$/kWh",6.1999999999999998E-3,null,"4_C_RTSR_Network"]
["UNMETERED SCATTERED LOAD","Retail Transmission Rate - Line and Transformation Connection Service Rate",null,null,null,null,null,"$/kWh",4.0000000000000001E-3,null,"4_C_RTSR_Connection"]
["UNMETERED SCATTERED LOAD"]
["UNMETERED SCATTERED LOAD"]
["UNMETERED SCATTERED LOAD"]
["UNMETERED SCATTERED LOAD"]
["UNMETERED SCATTERED LOAD"]
["UNMETERED SCATTERED LOAD"]
["UNMETERED SCATTERED LOAD"]
["UNMETERED SCATTERED LOAD"]
["UNMETERED SCATTERED LOAD"]
["UNMETERED SCATTERED LOAD"]
["UNMETERED SCATTERED LOAD"]
["UNMETERED SCATTERED LOAD"]
["UNMETERED SCATTERED LOAD"]
["UNMETERED SCATTERED LOAD"]
["UNMETERED SCATTERED LOAD"]
["UNMETERED SCATTERED LOAD"]
["UNMETERED SCATTERED LOAD"]
["UNMETERED SCATTERED LOAD"]
["UNMETERED SCATTERED LOAD"]
["UNMETERED SCATTERED LOAD"]
["UNMETERED SCATTERED LOAD"]
["UNMETERED SCATTERED LOAD","MONTHLY RATES AND CHARGES - Regulatory Component"]
["UNMETERED SCATTERED LOAD"]
["UNMETERED SCATTERED LOAD","Wholesale Market Service Rate",null,null,null,null,null,{"$f":"H81","v":"$/kWh"},4.4000000000000003E-3,null,"4_C_WMSR"]
["UNMETERED SCATTERED LOAD","Rural Rate Protection Charge",null,null,null,null,null,"$/kWh",1.1999999999999999E-3,null,"4_C_RRPC"]
["UNMETERED SCATTERED LOAD","Standard Supply Service - Administrative Charge (if applicable)",null,null,null,null,null,"$",0.25,null,"4_C_SSS"]
["UNMETERED SCATTERED LOAD"]
[]
[]
["SENTINEL LIGHTING","SENTINEL LIGHTING Service Classification"]
["SENTINEL LIGHTING"]
["SENTINEL LIGHTING","This classification refers to accounts that are an unmetered lighting load supplied to a sentinel light.  Further servicing details are available in the distributor's Conditions of Service."]
["SENTINEL LIGHTING"]
["SENTINEL LIGHTING"]
["SENTINEL LIGHTING"]
["SENTINEL LIGHTING"]
["SENTINEL LIGHTING"]
["SENTINEL LIGHTING","APPLICATION"]
["SENTINEL LIGHTING"]
["SENTINEL LIGHTING","The application of these rates and charges shall be in accordance with the Licence of the Distributor and any Code or Order of the Board, and amendments thereto as approved by the Board, which may be applicable to the administration of this schedule."]
["SENTINEL LIGHTING"]
["SENTINEL LIGHTING"]
["SENTINEL LIGHTING","No rates and charges for the distribution of electricity and charges to meet the costs of any work or service done or furnished for the purpose of the distribution of electricity shall be made except as permitted by this schedule, unless required by the Distributor's Licence or a Code or Order of the Board, and amendments thereto as approved by the Board, or as specified herein."]
["SENTINEL LIGHTING"]
["SENTINEL LIGHTING"]
["SENTINEL LIGHTING"]
["SENTINEL LIGHTING","Unless specifically noted, this schedule does not contain any charges for the electricity commodity, be it under the Regulated Price Plan, a contract with a retailer or the wholesale market price, as applicable. In addition, the charges in the MONTHLY RATES AND CHARGES - Regulatory component of this schedule do not apply to a customer that is an embedded wholesale market participant."]
["SENTINEL LIGHTING"]
["SENTINEL LIGHTING"]
["SENTINEL LIGHTING","It should be noted that this schedule does not list any charges, assessments or credits that are required by law to be invoiced by a distributor and that are not subject to Board approval, such as the Debt Retirement Charge, the Global Adjustment, the Ontario Clean Energy Benefit and the HST."]
["SENTINEL LIGHTING"]
["SENTINEL LIGHTING"]
["SENTINEL LIGHTING"]
["SENTINEL LIGHTING","MONTHLY RATES AND CHARGES - Delivery Component      (If applicable, Effective Date MUST be included in rate description)"]
["SENTINEL LIGHTING","Service Charge",null,null,null,null,null,"$",12.69,null,"5_C_MSC"]
["SENTINEL LIGHTING","Distribution Volumetric Rate",null,null,null,null,null,"$/kW",15.833600000000001,null,"5_C_VC"]
["SENTINEL LIGHTING","Low Voltage Service Rate",null,null,null,null,null,"$/kW",0.13300000000000001,null,"5_C_LVrate"]
["SENTINEL LIGHTING","Rate Rider for Disposition of Deferral/Variance Accounts (2012) - effective until April 30, 2014",null,null,null,null,null,"$/kW",-0.39129999999999998,null,"5_C_VC_DEFVAR_kW_1","2014-04-30"]
["SENTINEL LIGHTING","Rate Rider for Disposition of Global Adjustment Sub-Account (2012) - effective until April 30, 2014 Applicable only for Non-RPP Customers",null,null,null,null,null,"$/kW",-0.1928,null,"5_C_VC_GA_Rate_Rider_kW_1","2014-04-30"]
["SENTINEL LIGHTING","Rate Rider for Disposition of Deferred PILs Variance Account 1562 - effective until April 30, 2014",null,null,null,null,null,"$/kW",-1.3281000000000001,null,"5_C_VC_DEFVAR_kW_2","2014-04-30"]
["SENTINEL LIGHTING","Rate Rider for Application of Tax Change - effective until April 30, 2014",null,null,null,null,null,"$/kW",-0.2235,null,"5_C_VC_Rate_Rider_kW_3","2014-04-30"]
["SENTINEL LIGHTING","Retail Transmission Rate - Network Service Rate",null,null,null,null,null,"$/kW",1.8886000000000001,null,"5_C_RTSR_Network"]
["SENTINEL LIGHTING","Retail Transmission Rate - Line and Transformation Connection Service Rate",null,null,null,null,null,"$/kW",1.3173999999999999,null,"5_C_RTSR_Connection"]
["SENTINEL LIGHTING"]
["SENTINEL LIGHTING"]
["SENTINEL LIGHTING"]
["SENTINEL LIGHTING"]
["SENTINEL LIGHTING"]
["SENTINEL LIGHTING"]
["SENTINEL LIGHTING"]
["SENTINEL LIGHTING"]
["SENTINEL LIGHTING"]
["SENTINEL LIGHTING"]
["SENTINEL LIGHTING"]
["SENTINEL LIGHTING"]
["SENTINEL LIGHTING"]
["SENTINEL LIGHTING"]
["SENTINEL LIGHTING"]
["SENTINEL LIGHTING"]
["SENTINEL LIGHTING"]
["SENTINEL LIGHTING"]
["SENTINEL LIGHTING"]
["SENTINEL LIGHTING"]
["SENTINEL LIGHTING"]
["SENTINEL LIGHTING","MONTHLY RATES AND CHARGES - Regulatory Component"]
["SENTINEL LIGHTING"]
["SENTINEL LIGHTING","Wholesale Market Service Rate",null,null,null,null,null,{"$f":"H81","v":"$/kWh"},4.4000000000000003E-3,null,"5_C_WMSR"]
["SENTINEL LIGHTING","Rural Rate Protection Charge",null,null,null,null,null,"$/kWh",1.1999999999999999E-3,null,"5_C_RRPC"]
["SENTINEL LIGHTING","Standard Supply Service - Administrative Charge (if applicable)",null,null,null,null,null,"$",0.25,null,"5_C_SSS"]
["SENTINEL LIGHTING"]
[]
[]
["STREET LIGHTING","STREET LIGHTING Service Classification"]
["STREET LIGHTING"]
["STREET LIGHTING","This classification refers to an account for roadway lighting with a Municipality, Regional Municipality, Ministry of Transportation and private roadway lighting operation, controlled by photo cells.  Street lighting profile is derived throught the use of a \"virtual streetlight meter\" that uses a street light control eye, consistent with the model type and product manufacturer of devices currently in service in the Applicant's distribution area, to simulate the exact daily condititions that the typical street light is exposed to.  This simulated street light load is captured using an interval metering device, and is processed as part of the distributor's daily interval meter interrogation, validation and processing procedures.   Further servicing details are available in the distributor's Conditions of Service."]
["STREET LIGHTING"]
["STREET LIGHTING"]
["STREET LIGHTING"]
["STREET LIGHTING"]
["STREET LIGHTING"]
["STREET LIGHTING","APPLICATION"]
["STREET LIGHTING"]
["STREET LIGHTING","The application of these rates and charges shall be in accordance with the Licence of the Distributor and any Code or Order of the Board, and amendments thereto as approved by the Board, which may be applicable to the administration of this schedule."]
["STREET LIGHTING"]
["STREET LIGHTING"]
["STREET LIGHTING","No rates and charges for the distribution of electricity and charges to meet the costs of any work or service done or furnished for the purpose of the distribution of electricity shall be made except as permitted by this schedule, unless required by the Distributor's Licence or a Code or Order of the Board, and amendments thereto as approved by the Board, or as specified herein."]
["STREET LIGHTING"]
["STREET LIGHTING"]
["STREET LIGHTING"]
["STREET LIGHTING","Unless specifically noted, this schedule does not contain any charges for the electricity commodity, be it under the Regulated Price Plan, a contract with a retailer or the wholesale market price, as applicable. In addition, the charges in the MONTHLY RATES AND CHARGES - Regulatory component of this schedule do not apply to a customer that is an embedded wholesale market participant."]
["STREET LIGHTING"]
["STREET LIGHTING"]
["STREET LIGHTING","It should be noted that this schedule does not list any charges, assessments or credits that are required by law to be invoiced by a distributor and that are not subject to Board approval, such as the Debt Retirement Charge, the Global Adjustment, the Ontario Clean Energy Benefit and the HST."]
["STREET LIGHTING"]
["STREET LIGHTING"]
["STREET LIGHTING"]
["STREET LIGHTING","MONTHLY RATES AND CHARGES - Delivery Component      (If applicable, Effective Date MUST be included in rate description)"]
["STREET LIGHTING","Service Charge",null,null,null,null,null,"$",1.1299999999999999,null,"6_C_MSC"]
["STREET LIGHTING","Distribution Volumetric Rate",null,null,null,null,null,"$/kW",4.4039999999999999,null,"6_C_VC"]
["STREET LIGHTING","Low Voltage Service Rate",null,null,null,null,null,"$/kW",0.12230000000000001,null,"6_C_LVrate"]
["STREET LIGHTING","Rate Rider for Disposition of Deferral/Variance Accounts (2012) - effective until April 30, 2014",null,null,null,null,null,"$/kW",-0.40150000000000002,null,"6_C_VC_DEFVAR_kW_1","2014-04-30"]
["STREET LIGHTING","Rate Rider for Disposition of Global Adjustment Sub-Account (2012) - effective until April 30, 2014 Applicable only for Non-RPP Customers",null,null,null,null,null,"$/kW",-0.19789999999999999,null,"6_C_VC_GA_Rate_Rider_kW_1","2014-04-30"]
["STREET LIGHTING","Rate Rider for Disposition of Deferred PILs Variance Account 1562 - effective until April 30, 2014",null,null,null,null,null,"$/kW",-0.4229,null,"6_C_VC_DEFVAR_kW_2","2014-04-30"]
["STREET LIGHTING","Rate Rider for Application of Tax Change - effective until April 30, 2014",null,null,null,null,null,"$/kW",-2.5499999999999998E-2,null,"6_C_VC_Rate_Rider_kW_3","2014-04-30"]
["STREET LIGHTING","Retail Transmission Rate - Network Service Rate",null,null,null,null,null,"$/kW",1.9283999999999999,null,"6_C_RTSR_Network"]
["STREET LIGHTING","Retail Transmission Rate - Line and Transformation Connection Service Rate",null,null,null,null,null,"$/kW",1.2113,null,"6_C_RTSR_Connection"]
["STREET LIGHTING"]
["STREET LIGHTING"]
["STREET LIGHTING"]
["STREET LIGHTING"]
["STREET LIGHTING"]
["STREET LIGHTING"]
["STREET LIGHTING"]
["STREET LIGHTING"]
["STREET LIGHTING"]
["STREET LIGHTING"]
["STREET LIGHTING"]
["STREET LIGHTING"]
["STREET LIGHTING"]
["STREET LIGHTING"]
["STREET LIGHTING"]
["STREET LIGHTING"]
["STREET LIGHTING"]
["STREET LIGHTING"]
["STREET LIGHTING"]
["STREET LIGHTING"]
["STREET LIGHTING"]
["STREET LIGHTING","MONTHLY RATES AND CHARGES - Regulatory Component"]
["STREET LIGHTING"]
["STREET LIGHTING","Wholesale Market Service Rate",null,null,null,null,null,{"$f":"H81","v":"$/kWh"},4.4000000000000003E-3,null,"6_C_WMSR"]
["STREET LIGHTING","Rural Rate Protection Charge",null,null,null,null,null,"$/kWh",1.1999999999999999E-3,null,"6_C_RRPC"]
["STREET LIGHTING","Standard Supply Service - Administrative Charge (if applicable)",null,null,null,null,null,"$",0.25,null,"6_C_SSS"]
["STREET LIGHTING"]
[]
[]
["microFIT","microFIT Service Classification"]
["microFIT"]
["microFIT","This classification applies to an electricity generation facility contracted under the Ontario Power Authority's microFIT program and connected to the distributor's distribution system.  Further servicing details are available in the distributor's Conditions of Service."]
["microFIT"]
["microFIT"]
["microFIT"]
["microFIT"]
["microFIT"]
["microFIT","APPLICATION"]
["microFIT"]
["microFIT","The application of these rates and charges shall be in accordance with the Licence of the Distributor and any Code or Order of the Board, and amendments thereto as approved by the Board, which may be applicable to the administration of this schedule."]
["microFIT"]
["microFIT"]
["microFIT","No rates and charges for the distribution of electricity and charges to meet the costs of any work or service done or furnished for the purpose of the distribution of electricity shall be made except as permitted by this schedule, unless required by the Distributor's Licence or a Code or Order of the Board, and amendments thereto as approved by the Board, or as specified herein."]
["microFIT"]
["microFIT"]
["microFIT"]
["microFIT","Unless specifically noted, this schedule does not contain any charges for the electricity commodity, be it under the Regulated Price Plan, a contract with a retailer or the wholesale market price, as applicable."]
["microFIT"]
["microFIT"]
["microFIT","It should be noted that this schedule does not list any charges, assessments or credits that are required by law to be invoiced by a distributor and that are not subject to Board approval, such as the Debt Retirement Charge, the Global Adjustment, the Ontario Clean Energy Benefit and the HST."]
["microFIT"]
["microFIT"]
["microFIT"]
["microFIT","MONTHLY RATES AND CHARGES - Delivery Component      (If applicable, Effective Date MUST be included in rate description)"]
["microFIT","Service Charge",null,null,null,null,null,"$",5.4,null,"7_C_MSC"]
["microFIT"]
["microFIT"]
["microFIT"]
["microFIT"]
["microFIT"]
["microFIT"]
["microFIT"]
["microFIT"]
["microFIT"]
["microFIT"]
["microFIT"]
["microFIT"]
["microFIT"]
["microFIT"]
["microFIT"]
["microFIT"]
["microFIT"]
["microFIT"]
["microFIT"]
["microFIT"]
["microFIT"]
["microFIT"]
["microFIT"]
["microFIT"]
["microFIT"]
["microFIT"]
["microFIT"]
["microFIT"]
["microFIT"]

{"sheet":"4. Hidden","index":4,"n_rows":84,"n_cols":18,"rows_kept":84,"cut":false,"hidden":true,"merged":[[80,1,80,6],[81,1,81,6],[60,1,60,6],[61,1,61,6],[82,1,82,6],[77,1,77,6],[73,1,73,6],[74,1,74,6],[75,1,75,6],[76,1,76,6],[67,1,67,6],[68,1,68,6],[69,1,69,6],[70,1,70,6],[83,1,83,6],[52,1,52,6],[58,1,58,6],[53,1,53,6],[54,1,54,6],[55,1,55,6],[56,1,56,6],[71,1,71,6],[72,1,72,6],[65,1,65,6],[63,1,63,6],[57,1,57,6],[59,1,59,6],[62,1,62,6],[64,1,64,6],[66,1,66,6],[43,1,46,8],[48,1,48,6],[49,1,49,6],[50,1,50,6],[51,1,51,6],[23,1,23,8],[25,1,30,8],[33,1,35,8],[36,1,39,8],[40,1,42,8]]}
[null,null,null,null,null,null,null,null,null,null,null,null,"Current Rate Classes","Changed to Rate Classes","Values in A that are NOT in B","Values in B that are Not in A","Count of A","Count of B"]
[null,null,null,null,null,null,null,null,null,null,null,null,"RESIDENTIAL","RESIDENTIAL",null,null,7,7]
[null,null,null,null,null,null,null,null,null,null,null,null,"GENERAL SERVICE LESS THAN 50 KW","GENERAL SERVICE LESS THAN 50 KW"]
[null,null,null,null,null,null,null,null,null,null,null,null,"GENERAL SERVICE 50 TO 4,999 KW","GENERAL SERVICE 50 TO 4,999 KW"]
[null,null,null,null,null,null,null,null,null,null,null,null,"UNMETERED SCATTERED LOAD","UNMETERED SCATTERED LOAD"]
[null,null,null,null,null,null,null,null,null,null,null,null,"SENTINEL LIGHTING","SENTINEL LIGHTING"]
[null,null,null,null,null,null,null,null,null,null,null,null,"STREET LIGHTING","STREET LIGHTING"]
[null,null,null,null,null,null,null,null,null,null,null,null,"microFIT","microFIT"]
[]
[]
[]
[]
[]
[]
[]
[]
[]
[]
[]
[]
[]
[]
[]
["RESIDENTIAL URBAN","RESIDENTIAL URBAN Service Classification"]
["RESIDENTIAL URBAN"]
["RESIDENTIAL URBAN"]
["RESIDENTIAL URBAN"]
["RESIDENTIAL URBAN"]
["RESIDENTIAL URBAN"]
["RESIDENTIAL URBAN"]
["RESIDENTIAL URBAN"]
["RESIDENTIAL URBAN","APPLICATION"]
["RESIDENTIAL URBAN"]
["RESIDENTIAL URBAN"]
["RESIDENTIAL URBAN"]
["RESIDENTIAL URBAN"]
["RESIDENTIAL URBAN"]
["RESIDENTIAL URBAN"]
["RESIDENTIAL URBAN"]
["RESIDENTIAL URBAN"]
["RESIDENTIAL URBAN"]
["RESIDENTIAL URBAN"]
["RESIDENTIAL URBAN"]
["RESIDENTIAL URBAN"]
["RESIDENTIAL URBAN"]
["RESIDENTIAL URBAN"]
["RESIDENTIAL URBAN"]
["RESIDENTIAL URBAN","MONTHLY RATES AND CHARGES - Delivery Component      (If applicable, Effective Date MUST be included in rate description)"]
["RESIDENTIAL URBAN"]
["RESIDENTIAL URBAN"]
["RESIDENTIAL URBAN"]
["RESIDENTIAL URBAN"]
["RESIDENTIAL URBAN"]
["RESIDENTIAL URBAN"]
["RESIDENTIAL URBAN"]
["RESIDENTIAL URBAN"]
["RESIDENTIAL URBAN"]
["RESIDENTIAL URBAN"]
["RESIDENTIAL URBAN"]
["RESIDENTIAL URBAN"]
["RESIDENTIAL URBAN"]
["RESIDENTIAL URBAN"]
["RESIDENTIAL URBAN"]
["RESIDENTIAL URBAN"]
["RESIDENTIAL URBAN"]
["RESIDENTIAL URBAN"]
["RESIDENTIAL URBAN"]
["RESIDENTIAL URBAN"]
["RESIDENTIAL URBAN"]
["RESIDENTIAL URBAN"]
["RESIDENTIAL URBAN"]
["RESIDENTIAL URBAN"]
["RESIDENTIAL URBAN"]
["RESIDENTIAL URBAN"]
["RESIDENTIAL URBAN"]
["RESIDENTIAL URBAN"]
["RESIDENTIAL URBAN"]
["RESIDENTIAL URBAN"]
["RESIDENTIAL URBAN","MONTHLY RATES AND CHARGES - Regulatory Component"]
["RESIDENTIAL URBAN"]
["RESIDENTIAL URBAN","Wholesale Market Service Rate"]
["RESIDENTIAL URBAN","Rural Rate Protection Charge"]
["RESIDENTIAL URBAN","Standard Supply Service - Administrative Charge (if applicable)"]
["RESIDENTIAL URBAN"]

{"sheet":"5. 2014 Continuity Schedule","index":5,"n_rows":59,"n_cols":96,"rows_kept":59,"cut":false,"hidden":false,"merged":[[19,73,21,73],[14,2,14,3],[51,2,52,3],[19,8,21,8],[19,21,21,21],[19,22,21,22],[19,7,21,7],[19,13,21,13],[19,11,21,11],[19,12,21,12],[19,18,21,18],[19,19,21,19],[19,66,21,66],[19,67,21,67],[19,68,21,68],[19,45,21,45],[19,46,21,46],[19,47,21,47],[19,48,21,48],[19,49,21,49],[19,40,21,40],[19,41,21,41],[19,42,21,42],[19,43,21,43],[19,75,21,75],[19,76,21,76],[19,77,21,77],[19,78,21,78],[19,51,21,51],[19,57,21,57],[19,63,21,63],[19,74,21,74],[19,52,21,52],[19,53,21,53],[19,54,21,54],[19,55,21,55],[19,56,21,56],[19,62,21,62],[19,58,21,58],[19,59,21,59],[19,60,21,60],[19,61,21,61],[19,64,21,64],[19,65,21,65],[19,69,21,69],[19,70,21,70],[19,71,21,71],[19,72,21,72],[19,95,21,95],[19,85,21,85],[19,86,21,86],[19,87,21,87],[19,88,21,88],[19,89,21,89],[19,90,21,90],[19,79,21,79],[19,80,21,80],[19,81,21,81],[19,82,21,82],[19,83,21,83],[19,84,21,84],[19,91,21,91],[19,92,21,92],[19,93,21,93],[19,94,21,94],[19,44,21,44],[19,26,21,26],[19,2,21,2],[19,3,21,3],[19,5,21,5],[19,6,21,6],[19,24,21,24],[19,25,21,25],[19,4,21,4],[19,23,21,23],[19,20,21,20],[19,14,21,14],[19,15,21,15],[19,16,21,16],[19,17,21,17],[19,9,21,9],[19,10,21,10],[18,87,18,90],[18,91,18,93],[18,34,18,43],[18,44,18,53],[18,4,18,13],[18,14,18,23],[18,24,18,33],[18,64,18,73],[19,38,21,38],[19,27,21,27],[19,28,21,28],[18,54,18,63],[18,74,18,86],[19,29,21,29],[19,30,21,30],[19,31,21,31],[19,32,21,32],[19,33,21,33],[19,34,21,34],[19,35,21,35],[19,36,21,36],[19,37,21,37],[19,50,21,50],[19,39,21,39]]}
[]
[]
[]
[]
[]
[]
[]
[]
[]
[]
[]
[]
[]
[]
[null,null,"Please complete the following continuity schedule for the following Deferral / Variance Accounts.  Enter information into green cells only.  \n\nIf you have received approval to dispose of balances from prior years, the starting point for entries in the 2014 DVA schedule below will be the balance sheet date as per your G/L for which you received approval.  For example, if in the 2013 EDR process (CoS or IRM) you received approval for the December 31, 2011 balances, the starting point for your entries below should be the adjustment column BQ for principal and column BV for interest.  This will allow for the correct starting point for the 2012 opening balance columns for both principal and interest.\n\nPlease refer to the footnotes for further instructions.\n"]
[]
[]
[]
[null,null,null,null,2005,null,null,null,null,null,null,null,null,null,2006,null,null,null,null,null,null,null,null,null,2007,null,null,null,null,null,null,null,null,null,2008,null,null,null,null,null,null,null,null,null,2009,null,null,null,null,null,null,null,null,null,2010,null,null,null,null,null,null,null,null,null,2011,null,null,null,null,null,null,null,null,null,2012,null,null,null,null,null,null,null,null,null,null,null,null,2013,null,null,null,"Projected Interest on Dec-31-12 Balances",null,null,"2.1.7 RRR"]
[null,null,"Account Descriptions","Account Number","Opening Principal Amounts as of Jan-1-05","Transactions Debit / (Credit) during 2005 excluding interest and adjustments 2","Board-Approved Disposition during 2005","Adjustments during 2005 - other 2","Closing Principal Balance as of Dec-31-05","Opening Interest Amounts as of Jan-1-05","Interest Jan-1 to Dec-31-05","Board-Approved Disposition during 2005","Adjustments during 2005 - other 2","Closing Interest Amounts as of Dec-31-05","Opening Principal Amounts as of Jan-1-06 ","Transactions Debit / (Credit) during 2006 excluding interest and adjustments 2","Board-Approved Disposition during 2006","Adjustments during 2006 - other 2","Closing Principal Balance as of Dec-31-06","Opening Interest Amounts as of Jan-1-06","Interest Jan-1 to Dec-31-06","Board-Approved Disposition during 2006  1","Adjustments during 2006 - other 2","Closing Interest Amounts as of Dec-31-06","Opening Principal Amounts as of Jan-1-07 ","Transactions Debit / (Credit) during 2007 excluding interest and adjustments 2","Board-Approved Disposition during 2007","Adjustments during 2007 - other 1","Closing Principal Balance as of Dec-31-07","Opening Interest Amounts as of Jan-1-07","Interest Jan-1 to Dec-31-07","Board-Approved Disposition during 2007","Adjustments during 2007 - other 1","Closing Interest Amounts as of Dec-31-07","Opening Principal Amounts as of Jan-1-08 ","Transactions Debit / (Credit) during 2008 excluding interest and adjustments 2","Board-Approved Disposition during 2008","Adjustments during 2008 - other 1","Closing Principal Balance as of Dec-31-08","Opening Interest Amounts as of Jan-1-08","Interest Jan-1 to Dec-31-08","Board-Approved Disposition during 2008","Adjustments during 2008 - other 1","Closing Interest Amounts as of Dec-31-08","Opening Principal Amounts as of Jan-1-09","Transactions Debit / (Credit) during 2009 excluding interest and adjustments 2","Board-Approved Disposition during 2009","Adjustments during 2009 - other 1","Closing Principal Balance as of Dec-31-09","Opening Interest Amounts as of Jan-1-09","Interest Jan-1 to Dec-31-09","Board-Approved Disposition during 2009","Adjustments during 2009 - other 1","Closing Interest Amounts as of Dec-31-09","Opening Principal Amounts as of Jan-1-10","Transactions Debit / (Credit) during 2010 excluding interest and adjustments 2","Board-Approved Disposition during 2010","Adjustments during 2010 - other 1","Closing Principal Balance as of Dec-31-10","Opening Interest Amounts as of Jan-1-10","Interest Jan-1 to Dec-31-10","Board-Approved Disposition during 2010","Adjustments during 2010 - other 2","Closing Interest Amounts as of Dec-31-10","Opening Principal Amounts as of Jan-1-11","Transactions Debit / (Credit) during 2011 excluding interest and adjustments 2","Board-Approved Disposition during 2011","Adjustments during 2011 - other 1","Closing Principal Balance as of Dec-31-11","Opening Interest Amounts as of Jan-1-11","Interest Jan-1 to Dec-31-11","Board-Approved Disposition during 2011","Adjustments during 2011 - other 2","Closing Interest Amounts as of Dec-31-11","Opening Principal Amounts as of Jan-1-12","Transactions Debit / (Credit) during 2012 excluding interest and adjustments 2","Board-Approved Disposition during 2012","Other 1 Adjustments during Q1 2012","Other 1 Adjustments during Q2 2012","Other 1 Adjustments during Q3 2012","Other 1 Adjustments during Q4 2012","Closing Principal Balance as of Dec-31-12","Opening Interest Amounts as of Jan-1-12","Interest Jan-1 to Dec-31-12","Board-Approved Disposition during 2012","Adjustments during 2012 - other 1","Closing Interest Amounts as of Dec-31-12","Principal Disposition during 2013 - instructed by Board","Interest Disposition during 2013 - instructed by Board","Closing Principal Balances as of Dec 31-12 Adjusted for Dispositions during 2013","Closing Interest Balances as of Dec 31-12 Adjusted for Dispositions during 2013","Projected Interest from Jan 1, 2013 to December 31, 2013 on Dec 31 -12 balance adjusted for disposition during 2013 3","Projected Interest from January 1, 2013 to April 30, 2013 on Dec 31 -12 balance adjusted for disposition during 2013  3","Total Claim","As of Dec 31-12","Variance                           RRR vs. 2012 Balance                        (Principal + Interest)"]
[]
[null,null,null,null,null,null,null,null,null,null,null,null,null,null,null,null,null,null,null,null,null,null,null,null,null,null,null,null,null,null,null,null,null,null,null,null,null,null,null,null,null,null,null,null,null,null,null,null,null,null,null,null,null,null,null,null,null,null,null,null,null,null,null,null,null,null,null,null,null,null,null,null,null,null,null,null,null,null,null,null,null,null,null,null,null,null,null,null,null,null,null,null,null,"Claim before Forecasted Transactions"]
[null,null,"Group 1 Accounts"]
[1,null,"LV Variance Account",1550,null,null,null,null,{"$f":"E24+F24-G24+H24","v":0},null,null,null,null,{"$f":"J24+K24-L24+M24","v":0},{"$f":"I24","v":0},null,null,null,{"$f":"O24+P24-Q24+R24","v":0},null,null,null,null,{"$f":"T24+U24-V24+W24","v":0},{"$f":"S24","v":0},null,null,null,{"$f":"Y24+Z24-AA24+AB24","v":0},{"$f":"X24","v":0},null,null,null,{"$f":"AD24+AE24-AF24+AG24","v":0},{"$f":"AC24","v":0},null,null,null,{"$f":"AI24+AJ24-AK24+AL24","v":0},{"$f":"AH24","v":0},null,null,null,{"$f":"AN24+AO24-AP24+AQ24","v":0},{"$f":"AM24","v":0},null,null,null,{"$f":"AS24+AT24-AU24+AV24","v":0},{"$f":"AR24","v":0},null,null,null,{"$f":"AX24+AY24-AZ24+BA24","v":0},{"$f":"AW24","v":0},null,null,null,-891418,{"$f":"BB24","v":0},null,null,null,-7086,{"$f":"BG24","v":-891418},-129408,-465376,null,{"$f":"BM24+BN24-BO24+BP24","v":-555450},{"$f":"BL24","v":-7086},-8279,-8614,null,{"$f":"BR24+BS24-BT24+BU24","v":-6751},{"$f":"BQ24","v":-555450},5975.609999999986,-426042,null,null,null,null,{"$f":"BW24+BX24-BY24+SUM(BZ24:CC24)","v":-123432.39000000001},{"$f":"BV24","v":-6751},-199.20999999999913,-8614,null,{"$f":"CE24+CF24-CG24+CH24","v":1663.7900000000009},null,null,{"$f":"CD24-CJ24","v":-123432.39000000001},{"$f":"CI24-CK24","v":1663.7900000000009},{"$f":"CL24*1.47%","v":-1814.4561330000001},{"$f":"CL24*0.0147*4/12","v":-604.81871100000001},{"$f":"SUM(CL24:CO24)","v":-124187.87484400001},-121768.21,{"$f":"CQ24-SUM(CD24,CI24)","v":0.38999999999941792}]
[2,null,"RSVA - Wholesale Market Service Charge",1580,null,null,null,null,0,null,null,null,null,{"$f":"J25+K25-L25+M25","v":0},{"$f":"I25","v":0},null,null,null,0,null,null,null,null,0,{"$f":"S25","v":0},null,null,null,0,{"$f":"X25","v":0},null,null,null,0,{"$f":"AC25","v":0},null,null,null,0,{"$f":"AH25","v":0},null,null,null,0,{"$f":"AM25","v":0},null,null,null,0,{"$f":"AR25","v":0},null,null,null,0,{"$f":"AW25","v":0},null,null,null,-1799445,{"$f":"BB25","v":0},null,null,null,-54281,{"$f":"BG25","v":-1799445},-1470817,-422914,null,{"$f":"BM25+BN25-BO25+SUM(BP25:BP25)","v":-2847348},{"$f":"BL25","v":-54281},-8110,-31616,null,-30775,{"$f":"BQ25","v":-2847348},-1693904.78,-1376531,null,null,null,null,-3164721.7800000003,{"$f":"BV25","v":-30775},-30804.11,-31616,null,{"$f":"CE25+CF25-CG25+CH25","v":-29963.11},null,null,{"$f":"CD25-CJ25","v":-3164721.7800000003},{"$f":"CI25-CK25","v":-29963.11},-46521.410166000001,{"$f":"CL25*0.0147*4/12","v":-15507.136722000001},{"$f":"SUM(CL25:CO25)","v":-3256713.436888},-3194684.62,{"$f":"CQ25-SUM(CD25,CI25)","v":0.27000000001862645}]
[3,null,"RSVA - Retail Transmission Network Charge",1584,null,null,null,null,0,null,null,null,null,0,0,null,null,null,0,null,null,null,null,0,0,null,null,null,0,0,null,null,null,0,0,null,null,null,0,0,null,null,null,0,0,null,null,null,0,0,null,null,null,0,0,null,null,null,1187982,0,null,null,null,-6824,1187982,495520,161644,null,1521858,-6824,50734,22960,null,20950,1521858,380922.76,1026338,null,null,null,null,876442.76,20950,12486.73,22960,null,10476.729999999996,null,null,876442.76,10476.729999999996,12883.708572,4294.5695239999995,904097.76809600007,886919.51,2.0000000018626451E-2]
[4,null,"RSVA - Retail Transmission Connection Charge",1586,null,null,null,null,{"$f":"E27+F27-G27+H27","v":0},null,null,null,null,0,0,null,null,null,0,null,null,null,null,0,0,null,null,null,0,0,null,null,null,0,0,null,null,null,0,0,null,null,null,0,0,null,null,null,0,0,null,null,null,0,0,null,null,null,-1276433,0,null,null,null,-20556,-1276433,317671,-409712,null,-549050,-20556,-23269,-22786,null,-21039,-549050,332471.81000000006,-866721,null,null,null,null,650142.81000000006,-21039,-2596.6500000000015,-22786,null,-849.65000000000146,null,null,650142.81000000006,-849.65000000000146,9557.0993070000004,3185.6997690000003,662035.95907600014,649292.68999999994,-0.47000000008847564]
[5,null,"RSVA - Power (excluding Global Adjustment)",1588,null,null,null,null,0,null,null,null,null,0,0,null,null,null,0,null,null,null,null,0,0,null,null,null,0,0,null,null,null,0,0,null,null,null,0,0,null,null,null,0,0,null,null,null,0,0,null,null,null,0,0,null,null,null,-1741092,0,null,null,null,-1638,-1741092,-3078479,-848384,null,-3971187,-1638,-56353,-16850,null,-41141,-3971187,-1640798.5299999998,-892708,null,null,null,null,-4719277.5299999993,-41141,-80232.97,-16850,null,-104523.97,null,null,-4719277.5299999993,-104523.97,-69373.379690999995,-23124.459896999997,-4916299.3395879995,-4823801.99,-0.49000000115483999]
[6,null,"RSVA - Global Adjustment",1589,null,null,null,null,0,null,null,null,null,0,0,null,null,null,0,null,null,null,null,0,0,null,null,null,0,0,null,null,null,0,0,null,null,null,0,0,null,null,null,0,0,null,null,null,0,0,null,null,null,0,0,null,null,null,475980,0,null,null,null,15237,475980,3466656,1135692,null,2806944,15237,-18730,-14395,null,10902,2806944,214684.17999999993,-659712,null,null,null,null,3681340.1799999997,10902,17487.259999999998,-14395,null,42784.259999999995,null,null,3681340.1799999997,42784.259999999995,54115.700645999998,18038.566881999999,3796278.7075279993,3724124.59,0.15000000037252903]
[7,null,"Recovery of Regulatory Asset Balances",1590,null,null,null,null,0,null,null,null,null,0,0,null,null,null,0,null,null,null,null,0,0,null,null,null,0,0,null,null,null,0,0,null,null,null,0,0,null,null,null,0,0,null,null,null,0,0,null,null,null,0,0,null,null,null,null,0,null,null,null,null,0,null,null,null,0,0,null,null,null,0,0,null,null,null,null,null,null,0,0,null,null,null,0,null,null,0,0,0,0,0,null,0]
[8,null,"Disposition and Recovery/Refund of Regulatory Balances (2008)5",1595,null,null,null,null,0,null,null,null,null,0,{"$f":"I31","v":0},null,null,null,0,null,null,null,null,0,{"$f":"S31","v":0},null,null,null,0,{"$f":"X31","v":0},null,null,null,0,{"$f":"AC31","v":0},null,null,null,0,{"$f":"AH31","v":0},null,null,null,0,{"$f":"AM31","v":0},null,null,null,0,{"$f":"AR31","v":0},null,null,null,0,{"$f":"AW31","v":0},null,null,null,0,{"$f":"BB31","v":0},null,null,null,0,{"$f":"BG31","v":0},0,null,null,0,{"$f":"BL31","v":0},0,null,null,0,0,0,null,null,null,null,null,0,0,0,null,null,0,null,null,0,0,0,0,0,null,0]
[9,null,"Disposition and Recovery/Refund of Regulatory Balances (2009)5",1595,null,null,null,null,0,null,null,null,null,0,0,null,null,null,0,null,null,null,null,0,0,null,null,null,0,0,null,null,null,0,0,null,null,null,0,0,null,null,null,0,0,null,null,null,0,0,null,null,null,0,0,null,null,null,null,0,null,null,null,null,{"$f":"BG32","v":0},null,null,null,0,{"$f":"BL32","v":0},null,0,null,0,0,null,null,null,null,null,null,0,0,null,null,null,0,null,null,0,0,0,0,0,null,0]
[9,null,"Disposition and Recovery/Refund of Regulatory Balances (2010)5",1595,null,null,null,null,{"$f":"E33+F33-G33+H33","v":0},null,null,null,null,{"$f":"J33+K33-L33+M33","v":0},{"$f":"I33","v":0},null,null,null,0,null,null,null,null,0,{"$f":"S33","v":0},null,null,null,0,{"$f":"X33","v":0},null,null,null,0,{"$f":"AC33","v":0},null,null,null,0,{"$f":"AH33","v":0},null,null,null,0,{"$f":"AM33","v":0},null,null,null,0,{"$f":"AR33","v":0},null,null,null,0,{"$f":"AW33","v":0},null,null,null,{"$f":"-11292515.27+3113333.77+1640764.6-489215.89","v":-7027632.79},{"$f":"BB33","v":0},null,null,null,{"$f":"2067377.58-243686.2","v":1823691.3800000001},{"$f":"BG33","v":-7027632.79},{"$f":"4677654.75-693964.89","v":3983689.86},null,null,-3043942.93,{"$f":"BL33","v":1823691.3800000001},{"$f":"-99124.38+13834.99","v":-85289.39},0,null,1738401.9900000002,-3043942.93,{"$f":"1485904.31-218531.51","v":1267372.8},null,null,null,null,null,-1776570.1300000001,1738401.9900000002,{"$f":"-49712.36+6561.8","v":-43150.559999999998},null,null,1695251.4300000002,null,null,{"$f":"CD33-CJ33","v":-1776570.1300000001},{"$f":"CI33-CK33","v":1695251.4300000002},{"$f":"CL33*1.47%/12*6","v":-13057.7904555},-8705.1936370000003,-103081.68409249996,-81318.699999999342,{"$f":"CQ33-SUM(CD33,CI33)","v":6.1118043959140778E-10}]
[9,null,"Disposition and Recovery/Refund of Regulatory Balances (2011)5",1595,null,null,null,null,{"$f":"E34+F34-G34+H34","v":0},null,null,null,null,{"$f":"J34+K34-L34+M34","v":0},{"$f":"I34","v":0},null,null,null,0,null,null,null,null,0,{"$f":"S34","v":0},null,null,null,0,{"$f":"X34","v":0},null,null,null,0,{"$f":"AC34","v":0},null,null,null,0,{"$f":"AH34","v":0},null,null,null,0,{"$f":"AM34","v":0},null,null,null,0,{"$f":"AR34","v":0},null,null,null,0,{"$f":"AW34","v":0},null,null,null,null,{"$f":"BB34","v":0},null,null,null,null,{"$f":"BG34","v":0},null,{"$f":"1167600.38-707232.18-1135691.71+716336.33","v":41012.819999999832},null,-41012.819999999832,{"$f":"BL34","v":0},null,65272,null,-65272,-41012.819999999832,{"$f":"377605.7-380363.12","v":-2757.4199999999837},null,null,null,null,null,-43770.239999999816,-65272,{"$f":"-3605.51+4472.48","v":866.96999999999935},null,null,-64405.03,null,null,{"$f":"CD34-CJ34","v":-43770.239999999816},{"$f":"CI34-CK34","v":-64405.03},{"$f":"CL34*1.47%/12*6","v":-321.71126399999866},-214.47417599999912,{"$f":"SUM(CL34:CO34)","v":-108711.45543999982},-108175.67,{"$f":"CQ34-SUM(CD34,CI34)","v":-0.40000000018335413}]
[]
[null,null,"Group 1 Sub-Total (including Account 1589 - Global Adjustment)",null,{"$f":"SUM(E24:E34)","v":0},{"$f":"SUM(F24:F34)","v":0},0,0,0,0,0,0,0,0,0,0,0,0,{"$f":"SUM(S24:S34)","v":0},null,null,null,null,{"$f":"SUM(X24:X34)","v":0},0,0,0,0,{"$f":"SUM(AC24:AC34)","v":0},0,0,0,0,{"$f":"SUM(AH24:AH34)","v":0},0,0,0,0,{"$f":"SUM(AM24:AM34)","v":0},0,0,0,0,{"$f":"SUM(AR24:AR34)","v":0},0,0,0,0,{"$f":"SUM(AW24:AW34)","v":0},0,0,0,0,{"$f":"SUM(BB24:BB34)","v":0},0,0,0,0,{"$f":"SUM(BG24:BG34)","v":-11072058.789999999},0,0,0,0,{"$f":"SUM(BL24:BL34)","v":1748543.3800000001},{"$f":"SUM(BM24:BM34)","v":-11072058.789999999},3584832.86,-808037.18000000017,0,{"$f":"SUM(BQ24:BQ34)","v":-6679188.75},1748543.3800000001,-149296.39000000001,-6029,0,{"$f":"SUM(BV24:BV34)","v":1605275.9900000002},-6679188.75,-1136033.57,-3195376,0,0,{"$f":"SUM(CB24:CB34)","v":0},0,{"$f":"SUM(CD24:CD34)","v":-4619846.3199999994},1605275.9900000002,-126142.54000000001,-71301,0,{"$f":"SUM(CI24:CI34)","v":1550434.4500000002},0,0,-4619846.3199999994,1550434.4500000002,-54532.239184499995,-22637.246967999999,-3146581.3561525,-3069412.4000000004,-0.53000000040628947]
[null,null,"Group 1 Sub-Total (excluding Account 1589 - Global Adjustment)",null,{"$f":"E36-E38","v":0},{"$f":"F36-F38","v":0},{"$f":"G36-G38","v":0},0,0,0,0,{"$f":"L36-L38","v":0},{"$f":"M36-M38","v":0},0,0,0,0,0,{"$f":"S36-S38","v":0},null,null,null,null,{"$f":"X36-X38","v":0},0,0,0,0,{"$f":"AC36-AC38","v":0},0,0,{"$f":"AF36-AF38","v":0},{"$f":"AG36-AG38","v":0},{"$f":"AH36-AH38","v":0},0,0,0,0,{"$f":"AM36-AM38","v":0},0,0,{"$f":"AP36-AP38","v":0},{"$f":"AQ36-AQ38","v":0},{"$f":"AR36-AR38","v":0},0,0,0,0,{"$f":"AW36-AW38","v":0},0,0,{"$f":"AZ36-AZ38","v":0},{"$f":"BA36-BA38","v":0},{"$f":"BB36-BB38","v":0},0,0,0,0,{"$f":"BG36-BG38","v":-11548038.789999999},0,0,0,0,{"$f":"BL36-BL38","v":1733306.3800000001},{"$f":"BM36-BM38","v":-11548038.789999999},118176.85999999987,-1943729.1800000002,0,{"$f":"BQ36-BQ38","v":-9486132.75},1733306.3800000001,-130566.39000000001,8366,0,{"$f":"BV36-BV38","v":1594373.9900000002},-9486132.75,-1350717.75,-2535664,0,0,0,{"$f":"CC36-CC38","v":0},{"$f":"CD36-CD38","v":-8301186.4999999991},1594373.9900000002,-143629.80000000002,-56906,0,{"$f":"CI36-CI38","v":1507650.1900000002},0,0,-8301186.4999999991,1507650.1900000002,-108647.93983049999,-40675.813849999999,-6942860.0636804979,{"$f":"CQ36-CQ38","v":-6793536.9900000002},-0.68000000156462193]
[null,null,{"$f":"C29","v":"RSVA - Global Adjustment"},1589,{"$f":"E29","v":0},{"$f":"F29","v":0},{"$f":"G29","v":0},0,0,0,0,{"$f":"L29","v":0},{"$f":"M29","v":0},0,0,0,0,0,{"$f":"S29","v":0},null,null,null,null,{"$f":"X29","v":0},0,0,0,0,{"$f":"AC29","v":0},0,0,0,0,{"$f":"AH29","v":0},0,0,0,0,{"$f":"AM29","v":0},0,0,{"$f":"AP29","v":0},{"$f":"AQ29","v":0},{"$f":"AR29","v":0},0,0,0,0,{"$f":"AW29","v":0},0,0,0,0,{"$f":"BB29","v":0},0,0,0,0,{"$f":"BG29","v":475980},0,0,0,0,{"$f":"BL29","v":15237},{"$f":"BM29","v":475980},3466656,1135692,0,{"$f":"BQ29","v":2806944},15237,-18730,-14395,0,{"$f":"BV29","v":10902},2806944,214684.17999999993,-659712,0,0,0,{"$f":"CC29","v":0},{"$f":"CD29","v":3681340.1799999997},10902,17487.259999999998,-14395,0,{"$f":"CI29","v":42784.259999999995},0,0,3681340.1799999997,42784.259999999995,54115.700645999998,18038.566881999999,3796278.7075279993,{"$f":"CQ29","v":3724124.59},0.15000000037252903]
[]
[]
[31,null,"Deferred Payments in Lieu of Taxes",1562,null,null,null,null,{"$f":"E41+F41-G41+H41","v":0},null,null,null,null,{"$f":"J41+K41-L41+M41","v":0},{"$f":"I41","v":0},null,null,null,{"$f":"O41+P41-Q41+R41","v":0},null,null,null,null,{"$f":"T41+U41-V41+W41","v":0},{"$f":"S41","v":0},null,null,null,{"$f":"Y41+Z41-AA41+AB41","v":0},{"$f":"X41","v":0},null,null,null,{"$f":"AD41+AE41-AF41+AG41","v":0},{"$f":"AC41","v":0},null,null,null,{"$f":"AI41+AJ41-AK41+AL41","v":0},{"$f":"AH41","v":0},null,null,null,{"$f":"AN41+AO41-AP41+AQ41","v":0},{"$f":"AM41","v":0},null,null,null,{"$f":"AS41+AT41-AU41+AV41","v":0},{"$f":"AR41","v":0},null,null,null,{"$f":"AX41+AY41-AZ41+BA41","v":0},{"$f":"AW41","v":0},null,null,null,{"$f":"-4111524+430577","v":-3680947},{"$f":"BB41","v":0},null,null,null,{"$f":"-811370+111950","v":-699420},{"$f":"BG41","v":-3680947},null,null,{"$f":"1599709-198285","v":1401424},{"$f":"BM41+BN41-BO41+SUM(BP41:BP41)","v":-2279523},{"$f":"BL41","v":-699420},-59648,null,{"$f":"381520-68500","v":313020},{"$f":"BR41+BS41-BT41+BU41","v":-446048},{"$f":"BQ41","v":-2279523},null,{"$f":"-2511815+232292","v":-2279523},null,null,null,null,{"$f":"BW41+BX41-BY41+SUM(BZ41:CC41)","v":0},{"$f":"BV41","v":-446048},null,{"$f":"-489498+43450","v":-446048},null,{"$f":"CE41+CF41-CG41+CH41","v":0},null,null,{"$f":"CD41-CJ41","v":0},{"$f":"CI41-CK41","v":0},{"$f":"CL41*1.47%","v":0},{"$f":"CM41*1.47%","v":0},0,0,0]
[null,null,null,null,null,null,null,null,null,null,null,null,null,null,null,null,null,null,null,null,null,null,null,null,null,null,null,null,null,null,null,null,null,null,null,null,null,null,null,null,null,null,null,null,null,null,null,null,null,null,null,null,null,null,null,null,null,null,null,null,null,null,null,null,null,null,null,null,null,null,null,null,null,null,null,null,null,null,null,null,null,null,null,null,null,null,null,null,null,null,null,null,null,null,null,0]
[null,null,"Total of Group 1 and Account 1562",null,{"$f":"SUM(E41,E36)","v":0},{"$f":"SUM(F41,F36)","v":0},{"$f":"SUM(G41,G36)","v":0},0,0,0,0,0,0,0,0,0,0,0,{"$f":"SUM(S41,S36)","v":0},null,null,null,null,{"$f":"SUM(X41,X36)","v":0},0,0,0,0,{"$f":"SUM(AC41,AC36)","v":0},0,0,0,0,{"$f":"SUM(AH41,AH36)","v":0},0,0,0,0,{"$f":"SUM(AM41,AM36)","v":0},0,0,0,0,{"$f":"SUM(AR41,AR36)","v":0},0,0,0,0,{"$f":"SUM(AW41,AW36)","v":0},0,0,0,0,{"$f":"SUM(BB41,BB36)","v":0},0,0,0,0,{"$f":"SUM(BG41,BG36)","v":-14753005.789999999},0,0,0,0,{"$f":"SUM(BL41,BL36)","v":1049123.3800000001},{"$f":"SUM(BM41,BM36)","v":-14753005.789999999},3584832.86,-808037.18000000017,1401424,{"$f":"SUM(BQ41,BQ36)","v":-8958711.75},1049123.3800000001,-208944.39,-6029,313020,{"$f":"SUM(BV41,BV36)","v":1159227.9900000002},-8958711.75,-1136033.57,-5474899,0,0,0,{"$f":"SUM(CC41,CC36)","v":0},{"$f":"SUM(CD41,CD36)","v":-4619846.3199999994},1159227.9900000002,-126142.54000000001,-517349,0,{"$f":"SUM(CI41,CI36)","v":1550434.4500000002},0,0,-4619846.3199999994,1550434.4500000002,-54532.239184499995,-22637.246967999999,-3146581.3561525,-3069412.4000000004,-0.53000000040628947]
[]
[34,null,"Special Purpose Charge Assessment Variance Account4",1521]
[]
[null,null,"LRAM Variance Account6",1568,null,null,null,null,null,null,null,null,null,null,null,null,null,null,null,null,null,null,null,null,null,null,null,null,null,null,null,null,null,null,null,null,null,null,null,null,null,null,null,null,null,null,null,null,null,null,null,null,null,null,null,null,null,null,null,null,null,null,null,null,null,null,null,null,{"$f":"BM47+BN47-BO47+SUM(BP47:BP47)","v":0},null,null,null,null,{"$f":"BR47+BS47-BT47+BU47","v":0},{"$f":"BQ47","v":0},null,null,null,null,null,null,{"$f":"BW47+BX47-BY47+SUM(BZ47:CC47)","v":0},{"$f":"BV47","v":0},null,null,null,{"$f":"CE47+CF47-CG47+CH47","v":0},null,null,{"$f":"CD47-CJ47","v":0},{"$f":"CI47-CK47","v":0},null,null,{"$f":"SUM(CL47:CO47)","v":0},null,{"$f":"CQ47-SUM(CD47,CI47)","v":0}]
[]
[null,null,"Total including Accounts 1562 and 1568",null,{"$f":"E45+E43+E47","v":0},{"$f":"F45+F43+F47","v":0},{"$f":"G45+G43+G47","v":0},0,0,0,0,0,0,0,0,0,0,0,{"$f":"S45+S43+S47","v":0},null,null,null,null,{"$f":"X45+X43+X47","v":0},0,0,0,0,{"$f":"AC45+AC43+AC47","v":0},0,0,0,0,{"$f":"AH45+AH43+AH47","v":0},0,0,{"$f":"AK43+AK47","v":0},{"$f":"AL43+AL47","v":0},{"$f":"AM43+AM47","v":0},0,0,0,0,{"$f":"AR43+AR47","v":0},0,0,0,0,{"$f":"AW43+AW47","v":0},0,0,0,0,{"$f":"BB43+BB47","v":0},0,0,0,0,{"$f":"BG43+BG47","v":-14753005.789999999},0,0,0,0,{"$f":"BL43+BL47","v":1049123.3800000001},{"$f":"BM43+BM47","v":-14753005.789999999},3584832.86,-808037.18000000017,1401424,{"$f":"BQ43+BQ47","v":-8958711.75},1049123.3800000001,-208944.39,-6029,313020,{"$f":"BV43+BV47","v":1159227.9900000002},-8958711.75,-1136033.57,-5474899,0,0,0,0,{"$f":"CD43+CD47","v":-4619846.3199999994},1159227.9900000002,-126142.54000000001,-517349,0,{"$f":"CI43+CI47","v":1550434.4500000002},0,0,-4619846.3199999994,1550434.4500000002,-54532.239184499995,-22637.246967999999,-3146581.3561525,-3069412.4000000004,-0.53000000040628947]
[]
[]
[null,null,"For all Board-Approved dispositions, please ensure that the disposition amount has the same sign (e.g: debit balances are to have a positive figure and credit balance are to have a negative figure) as per the related Board decision."]
[]
[]
[null,1,"Please provide explanations for the nature of the adjustments.  If the adjustment relates to previously Board Approved disposed balances, please provide amounts for adjustments and include supporting documentations."]
[null,2,"For RSVA accounts only, report the net variance to the account during the year.  For all other accounts, record the transactions during the year."]
[null,3,"If the LDC’s 2013 rate year begins January 1, 2014, the projected interest is recorded from January 1, 2013 to December 31, 2013 on the December 31, 2012 balance adjusted for the disposed balances approved by the Board in the 2013 rate decision.  If the LDC’s 2014 rate year begins May 1, 2014 the projected interest is recorded from January 1, 2013 to April 30, 2014 on the December 31, 2012 balance adjusted for the disposed balances approved by the Board in the 2013 rate decision."]
[null,4,"Applicants that did not have the balance in Account 1521 cleared by the Board in the 2012 rate proceedings are expected to file to dispose of Account 1521 in the 2013 rate proceedings.  No Account 1521 balance is to be filed for clearance in the 2013 rate proceedings for those distributors that had account 1521 cleared by the Board in the 2012 rate proceedings.\n\nIn accordance with section 8 of the Special Purpose Charge (“SPC”) Regulation, Ontario Regulation 66/10, distributors were required to apply to the Board no later than April 15, 2012 for an order authorizing the distributor to clear the balance in Account 1521.  As per the Board’s April 23, 2010 letter, the Board stated that it expected that requests for disposition of the balance in Account 1521 were to be addressed as part of the proceedings to set rates for the 2012 rate year, except in cases where this approach would result in non-compliance with the timeline set out in section 8 of the SPC Regulation."]
[null,5,"Include Account 1595 as part of Group 1 accounts (lines 31, 32, 33 and 34) for review and disposition if the recovery (or refund) period has been completed. If the recovery (or refund) period has not been completed, do not include the respective balance in Account 1595 for disposition at this time."]

{"sheet":"6. Billing Det. for Def-Var","index":6,"n_rows":39,"n_cols":13,"rows_kept":39,"cut":false,"hidden":false,"merged":[[35,0,36,7],[37,0,37,7],[38,0,38,7],[29,1,29,2],[30,1,30,2],[31,1,31,2],[31,3,32,7],[14,12,15,12],[14,11,15,11],[12,0,12,7],[14,4,15,4],[14,10,15,10],[14,6,15,6],[14,9,15,9],[14,5,15,5],[14,7,15,7],[14,8,15,8]]}
[]
[]
[]
[]
[]
[]
[]
[]
[]
[]
[]
[]
["In the green shaded cells, enter the most recent Board Approved volumetric forecast.  If there is a material difference between the latest Board-approved volumetric forecast and the most recent 12-month actual volumetric data, use the most recent 12-month actual data.  Do not enter data for the MicroFit class."]
[]
[null,null,null,null,"Billed kWh for Non-RPP Customers","Estimated kW for Non-RPP Customers","Distribution Revenue 1","1590 Recovery Share Proportion*","1595 Recovery Share Proportion (2008) 2","1595 Recovery Share Proportion (2009) 2","1595 Recovery Share Proportion (2010) 2","1595 Recovery Share Proportion (2011) 2","1568 LRAM Variance Account Class Allocation                           ($ amounts)"]
["Rate Class","Unit","Metered kWh","Metered kW"]
["RESIDENTIAL","$/kWh",462790265,null,71338420,{"$f":"IF(ISERROR(D17/C17*E17), 0, D17/C17*E17)","v":0},15743932,null,null,null,0.41147315413279884,0.64223230717979807]
["GENERAL SERVICE LESS THAN 50 KW","$/kWh",122331880,null,19756401,{"$f":"IF(ISERROR(D18/C18*E18), 0, D18/C18*E18)","v":0},3563569,null,null,null,0.13274004260930275,0.20657306224093583]
["GENERAL SERVICE 50 TO 4,999 KW","$/kW",628090148,1818411,539407131,{"$f":"IF(ISERROR(D19/C19*E19), 0, D19/C19*E19)","v":1561660.9552182325},9467683,null,null,null,0.44659444556201117,0.13639814101828945]
["UNMETERED SCATTERED LOAD","$/kWh",2335428,null,1123722,{"$f":"IF(ISERROR(D20/C20*E20), 0, D20/C20*E20)","v":0},137071,null,null,null,1.9824232767593057E-3,1.9791274145190621E-3]
["SENTINEL LIGHTING","$/kW",292817,809,113770,{"$f":"IF(ISERROR(D21/C21*E21), 0, D21/C21*E21)","v":314.3257734352855},8675,null,null,null,4.0643985950557362E-4,5.3191779849380972E-4]
["STREET LIGHTING","$/kW",7467591,20107,897746,{"$f":"IF(ISERROR(D22/C22*E22), 0, D22/C22*E22)","v":2417.2425648378439},93091,null,null,null,6.803494559622412E-3,1.2285444347963803E-2]
["microFIT"]
[]
[null,"Total",{"$f":"SUM(C17:C23)","v":1223308129},{"$f":"SUM(D17:D23)","v":1839327},632637190,1564392.5235565056,29014021,0,0,0,1.0000000000000002,1,0]
[null,null,null,null,null,null,null,null,null,null,null,"Balance as per Sheet 5",{"$f":"'5. 2014 Continuity Schedule'!CP47","v":0}]
[null,null,null,null,null,null,null,null,null,null,null,"Variance",{"$f":"M25-M26","v":0}]
[]
["Threshold Test"]
["Total Claim (including Account 1521, 1562 and 1568)",{"$f":"'5. 2014 Continuity Schedule'!CP49","v":-3146581.3561525}]
["Total Claim for Threshold Test (All Group 1 Accounts)",{"$f":"'5. 2014 Continuity Schedule'!CP36","v":-3146581.3561525}]
["Threshold Test (Total claim per kWh) 3",{"$f":"IF(ISERROR(B31/C25), 0, B31/C25)","v":-2.572190343184174E-3},null,{"$f":"IF(AND(B32>-0.001,B32<0.001),\"Claim does not meet the threshold test.  If data has been entered on Sheet 5 for Accounts 1521 and 1562, the model will only dispose of Accounts 1521 and 1562.\",\"\")","v":""}]
[]
[]
[]
["1 For Account 1562, the allocation to customer classes should be performed on the basis of the test year distribution revenue allocation to customer classes found in the Applicant’s Cost of Service application that was most recently approved at the time of disposition of the 1562 account balances"]
[]
["2 Residual Account balance to be allocated to rate classes in proportion to the recovery share as established when rate riders were implemented."]
["3 The Threshold Test does not include the amount in 1521, 1562 nor 1568."]

{"sheet":"6. hidden","index":7,"n_rows":9,"n_cols":13,"rows_kept":9,"cut":false,"hidden":true,"merged":[[0,10,1,10],[0,12,1,12],[0,4,1,4],[0,5,1,5],[0,6,1,6],[0,7,1,7],[0,8,1,8],[0,9,1,9],[0,11,1,11]]}
[null,null,null,null,"Billed kWh for Non-RPP Customers","Estimated kW for Non-RPP Customers","Distribution Revenue 1","1590 Recovery Share Proportion*","1595 Recovery Share Proportion (2008) 2","1595 Recovery Share Proportion (2009) 2","1595 Recovery Share Proportion (2010) 2","1595 Recovery Share Proportion (2011) 2","1568 LRAM Variance Account Class Allocation"]
["Rate Class","Unit","Metered kWh","Metered kW"]
["RESIDENTIAL","$/kWh",462790265,0,71338420,null,15743932,0,0,0,0.41147315413279884,0.64223230717979807,0]
["GENERAL SERVICE LESS THAN 50 KW","$/kWh",122331880,0,19756401,null,3563569,0,0,0,0.13274004260930275,0.20657306224093583,0]
["GENERAL SERVICE 50 TO 4,999 KW","$/kW",628090148,1818411,539407131,null,9467683,0,0,0,0.44659444556201117,0.13639814101828945,0]
["UNMETERED SCATTERED LOAD","$/kWh",2335428,0,1123722,null,137071,0,0,0,1.9824232767593057E-3,1.9791274145190621E-3,0]
["SENTINEL LIGHTING","$/kW",292817,809,113770,null,8675,0,0,0,4.0643985950557362E-4,5.3191779849380972E-4,0]
["STREET LIGHTING","$/kW",7467591,20107,897746,null,93091,0,0,0,6.803494559622412E-3,1.2285444347963803E-2,0]
["microFIT",0,0,0,0,null,0,0,0,0,0,0,0]

{"sheet":"7. Allocating Def-Var Balances","index":8,"n_rows":30,"n_cols":18,"rows_kept":30,"cut":false,"hidden":false,"merged":[[15,17,16,17],[12,0,13,8],[15,12,16,12],[15,13,16,13],[15,16,16,16],[15,14,16,14],[15,3,16,3],[15,4,16,4],[15,2,16,2],[15,15,16,15]]}
[]
[]
[]
[]
[]
[]
[]
[]
[]
[]
[]
[]
["No input required.  This workshseet allocates the deferral/variance account balances (Group 1, 1521, 1588 GA, 1562 and 1568) to the appropriate classes as per the EDDVAR Report dated July 31, 2009"]
[]
["Allocation of Group 1 Accounts (including Accounts 1521, 1562, 1568)"]
[null,null,"% of  Total kWh","% of  Total non-RPP kWh","% of Total Distribution Revenue",null,null,null,null,null,null,null,"1595                          (2008)","1595                            (2009)","1595                            (2010)","1595                            (2011)",1562,1568]
["Rate Class",null,null,null,null,1550,1580,1584,1586,"1588*","1588 GA",1590]
[]
["RESIDENTIAL",null,{"$f":"VLOOKUP(A19, '6. Billing Det. for Def-Var'!A17:D23, 3,0)/'6. Billing Det. for Def-Var'!C25","v":0.37831046326677359},{"$f":"VLOOKUP(A19, '6. Billing Det. for Def-Var'!A17:E23, 5,0)/'6. Billing Det. for Def-Var'!E25","v":0.11276355726099505},{"$f":"VLOOKUP(A19, '6. Billing Det. for Def-Var'!A17:G23, 7,0)/'6. Billing Det. for Def-Var'!G25","v":0.54263185375098477},{"$f":"C19* '5. 2014 Continuity Schedule'!CP24","v":-46981.572464349738},{"$f":"C19* '5. 2014 Continuity Schedule'!CP25","v":-1232048.7690362257},{"$f":"C19* '5. 2014 Continuity Schedule'!CP26","v":342029.64548685384},{"$f":"C19* '5. 2014 Continuity Schedule'!CP27","v":250455.13037730436},{"$f":"C19* '5. 2014 Continuity Schedule'!CP28","v":-1859887.4807176692},{"$f":"D19* '5. 2014 Continuity Schedule'!CP29","v":428081.89141502982},{"$f":"'6. Billing Det. for Def-Var'!H17* '5. 2014 Continuity Schedule'!CP30","v":0},{"$f":"'6. Billing Det. for Def-Var'!I17* '5. 2014 Continuity Schedule'!CP31","v":0},{"$f":"'6. Billing Det. for Def-Var'!J17* '5. 2014 Continuity Schedule'!CP32","v":0},{"$f":"'6. Billing Det. for Def-Var'!K17* '5. 2014 Continuity Schedule'!CP33","v":-42415.345686861714},{"$f":"'6. Billing Det. for Def-Var'!K17* '5. 2014 Continuity Schedule'!CP34","v":-44731.845460263939},{"$f":"E19* '5. 2014 Continuity Schedule'!CP41","v":0},{"$f":"'6. Billing Det. for Def-Var'!M17","v":0}]
["GENERAL SERVICE LESS THAN 50 KW",null,{"$f":"VLOOKUP(A20, '6. Billing Det. for Def-Var'!A17:D23, 3,0)/'6. Billing Det. for Def-Var'!C25","v":0.10000087230680048},{"$f":"VLOOKUP(A20, '6. Billing Det. for Def-Var'!A17:E23, 5,0)/'6. Billing Det. for Def-Var'!E25","v":3.1228643071078387E-2},{"$f":"VLOOKUP(A20, '6. Billing Det. for Def-Var'!A17:G23, 7,0)/'6. Billing Det. for Def-Var'!G25","v":0.12282230718727336},{"$f":"C20* '5. 2014 Continuity Schedule'!CP24","v":-12418.895814327763},{"$f":"C20* '5. 2014 Continuity Schedule'!CP25","v":-325674.18454207823},{"$f":"C20* '5. 2014 Continuity Schedule'!CP26","v":90410.565460231417},{"$f":"C20* '5. 2014 Continuity Schedule'!CP27","v":66204.173406069283},{"$f":"C20* '5. 2014 Continuity Schedule'!CP28","v":-491634.22248014709},{"$f":"D20* '5. 2014 Continuity Schedule'!CP29","v":118552.63275572666},{"$f":"'6. Billing Det. for Def-Var'!H18* '5. 2014 Continuity Schedule'!CP30","v":0},{"$f":"'6. Billing Det. for Def-Var'!I18* '5. 2014 Continuity Schedule'!CP31","v":0},{"$f":"'6. Billing Det. for Def-Var'!J18* '5. 2014 Continuity Schedule'!CP32","v":0},{"$f":"'6. Billing Det. for Def-Var'!K18* '5. 2014 Continuity Schedule'!CP33","v":-13683.06713867713},{"$f":"'6. Billing Det. for Def-Var'!K18* '5. 2014 Continuity Schedule'!CP34","v":-14430.363227224892},{"$f":"E20* '5. 2014 Continuity Schedule'!CP41","v":0},{"$f":"'6. Billing Det. for Def-Var'!M18","v":0}]
["GENERAL SERVICE 50 TO 4,999 KW",null,{"$f":"VLOOKUP(A21, '6. Billing Det. for Def-Var'!A17:D23, 3,0)/'6. Billing Det. for Def-Var'!C25","v":0.51343576741653452},{"$f":"VLOOKUP(A21, '6. Billing Det. for Def-Var'!A17:E23, 5,0)/'6. Billing Det. for Def-Var'!E25","v":0.85263266138369131},{"$f":"VLOOKUP(A21, '6. Billing Det. for Def-Var'!A17:G23, 7,0)/'6. Billing Det. for Def-Var'!G25","v":0.32631406036412536},{"$f":"C21* '5. 2014 Continuity Schedule'!CP24","v":-63762.496824357688},{"$f":"C21* '5. 2014 Continuity Schedule'!CP25","v":-1672113.1627243299},{"$f":"C21* '5. 2014 Continuity Schedule'!CP26","v":464196.13138194586},{"$f":"C21* '5. 2014 Continuity Schedule'!CP27","v":339912.94070552755},{"$f":"C21* '5. 2014 Continuity Schedule'!CP28","v":-2524203.9242707663},{"$f":"D21* '5. 2014 Continuity Schedule'!CP29","v":3236831.2177538378},{"$f":"'6. Billing Det. for Def-Var'!H19* '5. 2014 Continuity Schedule'!CP30","v":0},{"$f":"'6. Billing Det. for Def-Var'!I19* '5. 2014 Continuity Schedule'!CP31","v":0},{"$f":"'6. Billing Det. for Def-Var'!J19* '5. 2014 Continuity Schedule'!CP32","v":0},{"$f":"'6. Billing Det. for Def-Var'!K19* '5. 2014 Continuity Schedule'!CP33","v":-46035.707554888402},{"$f":"'6. Billing Det. for Def-Var'!K19* '5. 2014 Continuity Schedule'!CP34","v":-48549.932168466003},{"$f":"E21* '5. 2014 Continuity Schedule'!CP41","v":0},{"$f":"'6. Billing Det. for Def-Var'!M19","v":0}]
["UNMETERED SCATTERED LOAD",null,{"$f":"VLOOKUP(A22, '6. Billing Det. for Def-Var'!A17:D23, 3,0)/'6. Billing Det. for Def-Var'!C25","v":1.9091085431673773E-3},{"$f":"VLOOKUP(A22, '6. Billing Det. for Def-Var'!A17:E23, 5,0)/'6. Billing Det. for Def-Var'!E25","v":1.7762503023257296E-3},{"$f":"VLOOKUP(A22, '6. Billing Det. for Def-Var'!A17:G23, 7,0)/'6. Billing Det. for Def-Var'!G25","v":4.7243020882903478E-3},{"$f":"C22* '5. 2014 Continuity Schedule'!CP24","v":-237.08813282248144},{"$f":"C22* '5. 2014 Continuity Schedule'!CP25","v":-6217.4194450108716},{"$f":"C22* '5. 2014 Continuity Schedule'!CP26","v":1726.0207729306319},{"$f":"C22* '5. 2014 Continuity Schedule'!CP27","v":1263.898505356},{"$f":"C22* '5. 2014 Continuity Schedule'!CP28","v":-9385.7490699755854},{"$f":"D22* '5. 2014 Continuity Schedule'!CP29","v":6743.141201959339},{"$f":"'6. Billing Det. for Def-Var'!H20* '5. 2014 Continuity Schedule'!CP30","v":0},{"$f":"'6. Billing Det. for Def-Var'!I20* '5. 2014 Continuity Schedule'!CP31","v":0},{"$f":"'6. Billing Det. for Def-Var'!J20* '5. 2014 Continuity Schedule'!CP32","v":0},{"$f":"'6. Billing Det. for Def-Var'!K20* '5. 2014 Continuity Schedule'!CP33","v":-204.35152995252136},{"$f":"'6. Billing Det. for Def-Var'!K20* '5. 2014 Continuity Schedule'!CP34","v":-215.51211971463769},{"$f":"E22* '5. 2014 Continuity Schedule'!CP41","v":0},{"$f":"'6. Billing Det. for Def-Var'!M20","v":0}]
["SENTINEL LIGHTING",null,{"$f":"VLOOKUP(A23, '6. Billing Det. for Def-Var'!A17:D23, 3,0)/'6. Billing Det. for Def-Var'!C25","v":2.3936487713799865E-4},{"$f":"VLOOKUP(A23, '6. Billing Det. for Def-Var'!A17:E23, 5,0)/'6. Billing Det. for Def-Var'!E25","v":1.798345114677814E-4},{"$f":"VLOOKUP(A23, '6. Billing Det. for Def-Var'!A17:G23, 7,0)/'6. Billing Det. for Def-Var'!G25","v":2.9899337289374681E-4},{"$f":"C23* '5. 2014 Continuity Schedule'!CP24","v":-29.726215404063215},{"$f":"C23* '5. 2014 Continuity Schedule'!CP25","v":-779.54281169436547},{"$f":"C23* '5. 2014 Continuity Schedule'!CP26","v":216.40925118103786},{"$f":"C23* '5. 2014 Continuity Schedule'!CP27","v":158.46815600516388},{"$f":"C23* '5. 2014 Continuity Schedule'!CP28","v":-1176.7893873941055},{"$f":"D23* '5. 2014 Continuity Schedule'!CP29","v":682.7019267638384},{"$f":"'6. Billing Det. for Def-Var'!H21* '5. 2014 Continuity Schedule'!CP30","v":0},{"$f":"'6. Billing Det. for Def-Var'!I21* '5. 2014 Continuity Schedule'!CP31","v":0},{"$f":"'6. Billing Det. for Def-Var'!J21* '5. 2014 Continuity Schedule'!CP32","v":0},{"$f":"'6. Billing Det. for Def-Var'!K21* '5. 2014 Continuity Schedule'!CP33","v":-41.896505200153605},{"$f":"'6. Billing Det. for Def-Var'!K21* '5. 2014 Continuity Schedule'!CP34","v":-44.184668675679951},{"$f":"E23* '5. 2014 Continuity Schedule'!CP41","v":0},{"$f":"'6. Billing Det. for Def-Var'!M21","v":0}]
["STREET LIGHTING",null,{"$f":"VLOOKUP(A24, '6. Billing Det. for Def-Var'!A17:D23, 3,0)/'6. Billing Det. for Def-Var'!C25","v":6.1044235895860704E-3},{"$f":"VLOOKUP(A24, '6. Billing Det. for Def-Var'!A17:E23, 5,0)/'6. Billing Det. for Def-Var'!E25","v":1.4190534704417235E-3},{"$f":"VLOOKUP(A24, '6. Billing Det. for Def-Var'!A17:G23, 7,0)/'6. Billing Det. for Def-Var'!G25","v":3.2084832364324819E-3},{"$f":"C24* '5. 2014 Continuity Schedule'!CP24","v":-758.09539273827613},{"$f":"C24* '5. 2014 Continuity Schedule'!CP25","v":-19880.358328661034},{"$f":"C24* '5. 2014 Continuity Schedule'!CP26","v":5518.9957428573398},{"$f":"C24* '5. 2014 Continuity Schedule'!CP27","v":4041.3479257377735},{"$f":"C24* '5. 2014 Continuity Schedule'!CP28","v":-30011.173662047404},{"$f":"D24* '5. 2014 Continuity Schedule'!CP29","v":5387.1224746816279},{"$f":"'6. Billing Det. for Def-Var'!H22* '5. 2014 Continuity Schedule'!CP30","v":0},{"$f":"'6. Billing Det. for Def-Var'!I22* '5. 2014 Continuity Schedule'!CP31","v":0},{"$f":"'6. Billing Det. for Def-Var'!J22* '5. 2014 Continuity Schedule'!CP32","v":0},{"$f":"'6. Billing Det. for Def-Var'!K22* '5. 2014 Continuity Schedule'!CP33","v":-701.31567692003955},{"$f":"'6. Billing Det. for Def-Var'!K22* '5. 2014 Continuity Schedule'!CP34","v":-739.61779565467305},{"$f":"E24* '5. 2014 Continuity Schedule'!CP41","v":0},{"$f":"'6. Billing Det. for Def-Var'!M22","v":0}]
["microFIT",null,0,0,0,{"$f":"C25* '5. 2014 Continuity Schedule'!CP24","v":0},{"$f":"C25* '5. 2014 Continuity Schedule'!CP25","v":0},{"$f":"C25* '5. 2014 Continuity Schedule'!CP26","v":0},{"$f":"C25* '5. 2014 Continuity Schedule'!CP27","v":0},{"$f":"C25* '5. 2014 Continuity Schedule'!CP28","v":0},{"$f":"D25* '5. 2014 Continuity Schedule'!CP29","v":0},{"$f":"'6. Billing Det. for Def-Var'!H23* '5. 2014 Continuity Schedule'!CP30","v":0},{"$f":"'6. Billing Det. for Def-Var'!I23* '5. 2014 Continuity Schedule'!CP31","v":0},{"$f":"'6. Billing Det. for Def-Var'!J23* '5. 2014 Continuity Schedule'!CP32","v":0},{"$f":"'6. Billing Det. for Def-Var'!K23* '5. 2014 Continuity Schedule'!CP33","v":0},{"$f":"'6. Billing Det. for Def-Var'!K23* '5. 2014 Continuity Schedule'!CP34","v":0},{"$f":"E25* '5. 2014 Continuity Schedule'!CP41","v":0},{"$f":"'6. Billing Det. for Def-Var'!M23","v":0}]
[]
["Total",null,{"$f":"SUM(C19:C25)","v":1},{"$f":"SUM(D19:D25)","v":0.99999999999999989},{"$f":"SUM(E19:E25)","v":1},{"$f":"SUM(F19:F25)","v":-124187.87484400001},{"$f":"SUM(G19:G25)","v":-3256713.436888},{"$f":"SUM(H19:H25)","v":904097.76809600007},{"$f":"SUM(I19:I25)","v":662035.95907600014},{"$f":"SUM(J19:J25)","v":-4916299.3395879995},{"$f":"SUM(K19:K25)","v":3796278.7075279988},{"$f":"SUM(L19:L25)","v":0},{"$f":"SUM(M19:M25)","v":0},{"$f":"SUM(N19:N25)","v":0},{"$f":"SUM(O19:O25)","v":-103081.68409249997},{"$f":"SUM(P19:P25)","v":-108711.45543999983},{"$f":"SUM(Q19:Q25)","v":0},{"$f":"SUM(R19:R25)","v":0}]
[]
[]
["* RSVA - Power (Excluding Global Adjustment)"]

{"sheet":"8. Calculation of Def-Var RR","index":9,"n_rows":27,"n_cols":9,"rows_kept":27,"cut":false,"hidden":false,"merged":[[11,0,12,5],[16,4,17,4],[16,5,17,5],[16,8,17,8],[16,7,17,7],[16,6,17,6]]}
[]
[]
[]
[]
[]
[]
[]
[]
[]
[]
[]
["Input required at cell C15 only.  This workshseet calculates rate riders related to the Deferral/Variance Account Disposition (if applicable) and associated rate riders for the global adjustment sub-account.  Rate Riders will not be generated for the MicroFit class."]
[]
[]
[" Please indicate the Rate Rider Recovery Period (in years)",null,2]
[]
[null,null,null,null," Balance of Accounts Allocated by kWh/kW (RPP) or Distribution Revenue","Deferral/Variance Account Rate Rider","Allocation of Balance in Account 1588 Global Adjustment Sub-Account","Billed kWh or Estimated kW for Non-RPP Customers","Global Adjustment Rate Rider"]
["Rate Class","Unit","Billed kWh","Billed kW        or kVA"]
[]
["RESIDENTIAL","$/kWh",462790265,null,{"$f":"SUM('7. Allocating Def-Var Balances'!F19:J19)+SUM('7. Allocating Def-Var Balances'!L19:R19)","v":-2633580.2375012124},-2.8E-3,428081.89141502982,71338420,3.0003600543369886E-3]
["GENERAL SERVICE LESS THAN 50 KW","$/kWh",122331880,null,{"$f":"SUM('7. Allocating Def-Var Balances'!F20:J20)+SUM('7. Allocating Def-Var Balances'!L20:R20)","v":-701225.99433615443},-2.8999999999999998E-3,118552.63275572666,19756401,3.0003600543369886E-3]
["GENERAL SERVICE 50 TO 4,999 KW","$/kW",628090148,1818411,{"$f":"SUM('7. Allocating Def-Var Balances'!F21:J21)+SUM('7. Allocating Def-Var Balances'!L21:R21)","v":-3550556.1514553349},-0.97629999999999995,3236831.2177538378,1561660.9552182325,1.0363424938486443]
["UNMETERED SCATTERED LOAD","$/kWh",2335428,null,{"$f":"SUM('7. Allocating Def-Var Balances'!F22:J22)+SUM('7. Allocating Def-Var Balances'!L22:R22)","v":-13270.201019189464},-2.8E-3,6743.141201959339,1123722,3.0003600543369886E-3]
["SENTINEL LIGHTING","$/kW",292817,809,{"$f":"SUM('7. Allocating Def-Var Balances'!F23:J23)+SUM('7. Allocating Def-Var Balances'!L23:R23)","v":-1697.2621811821662},-1.0489999999999999,682.7019267638384,314.3257734352855,1.0859782818674835]
["STREET LIGHTING","$/kW",7467591,20107,{"$f":"SUM('7. Allocating Def-Var Balances'!F24:J24)+SUM('7. Allocating Def-Var Balances'!L24:R24)","v":-42530.217187426308},-1.0576000000000001,5387.1224746816279,2417.2425648378439,1.114311520292754]
["microFIT"]
["Total",null,{"$f":"SUM(C20:C26)","v":1223308129},{"$f":"SUM(D20:D26)","v":1839327},{"$f":"SUM(E20:E26)","v":-6942860.0636804989},null,{"$f":"SUM(G20:G26)","v":3796278.7075279988},{"$f":"SUM(H20:H26)","v":93782935.523556501}]

{"sheet":"9. Rev2Cost_GDPIPI","index":10,"n_rows":28,"n_cols":26,"rows_kept":28,"cut":false,"hidden":false,"merged":[[11,0,12,7],[18,5,19,5],[18,7,19,7],[18,2,19,2],[18,1,19,1],[18,3,19,3],[18,6,19,6],[18,4,19,4]]}
[null,null,null,null,null,null,null,null,null,null,null,null,null,null,null,null,null,null,null,null,null,null,null,null,null,0]
[]
[]
[]
[]
[]
[]
[]
[]
[]
[]
["If applicable, please enter any adjustments related to the revenue to cost ratio model into columns C and E. \nThe Price Escalator has been set at the 2013 values and will be updated by Board staff.  The Stretch Factor Value may be updated by Board staff."]
[]
[]
["Price Escalator",0.02,"Choose Stretch Factor Group",null,"III"]
["Productivity Factor",7.1999999999999998E-3,"Associated Stretch Factor Value",null,{"$f":"IF(ISBLANK(E15)=TRUE, \"\", IF(E15=\"I\", 0, IF(E15=\"II\", 0.0015, IF(E15=\"III\", 0.003, IF(E15=\"iv\", 0.0045, 0.006)))))","v":3.0000000000000001E-3}]
["Price Cap Index",{"$f":"B15-B16-E16","v":9.7999999999999997E-3}]
[]
[null,"Current MFC","MFC Adjustment from R/C Model","Current  Volumetric Charge","DVR Adjustment from R/C Model","Price Cap Index to be Applied to MFC and DVR","Proposed MFC","Proposed Volumetric Charge"]
["Rate Class"]
[]
["RESIDENTIAL",15.84,null,1.5900000000000001E-2,null,{"$f":"$B$17","v":9.7999999999999997E-3},{"$f":"ROUND(SUM(B22,C22)*(1+F22),2)","v":16},{"$f":"ROUND(SUM(D22,E22)*(1+F22),4)","v":1.61E-2}]
["GENERAL SERVICE LESS THAN 50 KW",37.270000000000003,null,1.3599999999999999E-2,null,{"$f":"$B$17","v":9.7999999999999997E-3},{"$f":"ROUND(SUM(B23,C23)*(1+F23),2)","v":37.64},{"$f":"ROUND(SUM(D23,E23)*(1+F23),4)","v":1.37E-2}]
["GENERAL SERVICE 50 TO 4,999 KW",177.1,null,4.1814999999999998,null,{"$f":"$B$17","v":9.7999999999999997E-3},{"$f":"ROUND(SUM(B24,C24)*(1+F24),2)","v":178.84},{"$f":"ROUND(SUM(D24,E24)*(1+F24),4)","v":4.2225000000000001}]
["UNMETERED SCATTERED LOAD",19.260000000000002,null,1.35E-2,null,{"$f":"$B$17","v":9.7999999999999997E-3},{"$f":"ROUND(SUM(B25,C25)*(1+F25),2)","v":19.45},{"$f":"ROUND(SUM(D25,E25)*(1+F25),4)","v":1.3599999999999999E-2}]
["SENTINEL LIGHTING",12.69,null,15.833600000000001,null,{"$f":"$B$17","v":9.7999999999999997E-3},{"$f":"ROUND(SUM(B26,C26)*(1+F26),2)","v":12.81},{"$f":"ROUND(SUM(D26,E26)*(1+F26),4)","v":15.988799999999999}]
["STREET LIGHTING",1.1299999999999999,null,4.4039999999999999,null,{"$f":"$B$17","v":9.7999999999999997E-3},{"$f":"ROUND(SUM(B27,C27)*(1+F27),2)","v":1.1399999999999999},{"$f":"ROUND(SUM(D27,E27)*(1+F27),4)","v":4.4471999999999996}]
["microFIT",5.4,null,null,null,null,{"$f":"ROUND(SUM(B28,C28)*(1+F28),2)","v":5.4}]

{"sheet":"9. hidden","index":11,"n_rows":8,"n_cols":3,"rows_kept":8,"cut":false,"hidden":true,"merged":[]}
["Rate Class","MFC Adjustment from R/C Model","DVR Adjustment from R/C Model"]
["RESIDENTIAL",0,0]
["GENERAL SERVICE LESS THAN 50 KW",0,0]
["GENERAL SERVICE 50 TO 4,999 KW",0,0]
["UNMETERED SCATTERED LOAD",0,0]
["SENTINEL LIGHTING",0,0]
["STREET LIGHTING",0,0]
["microFIT",0,0]

{"sheet":"10. Other Charges & LF","index":12,"n_rows":173,"n_cols":8,"rows_kept":173,"cut":false,"hidden":false,"merged":[[166,0,166,3],[10,0,12,1],[150,0,150,1],[151,0,151,1],[152,0,152,1],[153,0,153,1],[159,0,159,3],[160,0,160,3],[161,0,161,1],[162,0,162,1],[154,0,154,1],[155,0,155,3],[156,0,156,1],[157,0,157,1],[158,0,158,3]]}
[]
[]
[]
[]
[]
[]
[]
[]
[]
[]
["Please enter the following charges as found on your most recent Board-Approved Tariff Schedule.  The standard Allowance rates have been included as default entries.  If you have different rates, please make the appropriate corrections in the applicable cells below.  As well, please enter the current Specific Service Charges below.  The standard Retail Service Charges have been entered below.  If you have different rates, please make the appropriate corrections in columns A, C or D as applicable (cells are unlocked)."]
[]
[null,null,"UNIT","RATE"]
[]
["ALLOWANCES"]
[]
["Transformer Allowance for Ownership - per kW of billing demand/month",null,"$/kW",-0.6]
[]
[]
["Primary Metering Allowance for transformer losses – applied to measured demand and energy",null,"%",-1]
[]
["SPECIFIC SERVICE CHARGES"]
[]
["APPLICATION"]
[]
["The application of these rates and charges shall be in accordance with the Licence of the Distributor and any Code or"]
["Order of the Board, and amendments thereto as approved by the Board, which may be applicable to the "]
["administration of this schedule"]
[]
["No charges to meet the costs of any work or service done or furnished for the purpose of the distribution of electricity"]
["shall be made except as permitted by this schedule, unless required by the Distributor’s Licence or a Code or Order"]
["of the Board, and amendments thereto as approved by the Board, or as specified herein. "]
[]
["It should be noted that this schedule does not list any charges, assessments, or credits that are required by law to be"]
["invoiced by a distributor and that are not subject to Board approval, such as the Debt Retirement Charge, the Global "]
["Adjustment, the Ontario Clean Energy Benefit and the HST."]
[]
[]
["Customer Administration"]
[]
["Returned cheque (plus bank charges)",null,"$",20]
["Legal letter charge",null,"$",15]
["Account set up charge/change of occupancy charge (plus credit agency costs if applicable)",null,"$",30]
["Meter dispute charge plus Measurement Canada fees (if meter found correct)",null,"$",30]
[]
[]
[]
[]
[]
[]
[]
[]
[]
[]
[]
[]
[]
[]
[]
[]
[]
[]
[]
[]
[]
[]
[]
[]
[]
[]
[]
[]
[]
[]
[]
[]
["Non-Payment of Account"]
[]
["Late Payment – per month",null,"%",1.5]
["Late Payment – per annum",null,"%",19.559999999999999]
["Collection of account charge – no disconnection",null,"$",30]
["Collection of account charge – no disconnection – after regular hours",null,"$",165]
["Disconnect/Reconnect at meter – during regular hours",null,"$",65]
["Disconnect/Reconnect at meter – after regular hours",null,"$",185]
["Disconnect/Reconnect at pole – during regular hours",null,"$",185]
["Disconnect/Reconnect at pole – after regular hours",null,"$",415]
[]
[]
[]
[]
[]
[]
[]
[]
[]
[]
[]
[]
[]
[]
[]
[]
[]
[]
[]
["Install/Remove load control device – during regular hours",null,"$",65]
["Install/Remove load control device – after regular hours",null,"$",185]
["Service call – customer owned equipment",null,"$",30]
["Service call – after regular hours",null,"$",165]
["Temporary service install & remove – overhead – no transformer",null,"$",500]
["Temporary Service – Install & remove – underground – no transformer",null,"$",300]
["Temporary Service Install & Remove – Overhead – With Transformer",null,"$",1000]
["Specific Charge for Access to the Power Poles - $/pole/year",null,"$",22.35]
[]
[]
[]
[]
[]
[]
[]
[]
[]
[]
[]
[]
[]
[]
["RETAIL SERVICE CHARGES (if applicable)"]
[]
["The application of these rates and charges shall be in accordance with the Licence of the Distributor and any Code or"]
["Order of the Board, and amendments thereto as approved by the Board, which may be applicable to the "]
["administration of this schedule."]
[]
["No rates and charges for the distribution of electricity and charges to meet the costs of any work or service done or"]
["furnished for the purpose of the distribution of electricity shall be made except as permitted by this schedule, unless "]
["required by the Distributor’s Licence or a Code or Order of the Board, and amendments thereto as approved by the "]
["Board, or as specified herein. "]
[]
["Unless specifically noted, this schedule does not contain any charges for the electricity commodity, be it under the"]
["Regulated Price Plan, a contract with a retailer or the wholesale market price, as applicable."]
[]
["It should be noted that this schedule does not list any charges, assessments, or credits that are required by law to be"]
["invoiced by a distributor and that are not subject to Board approval, such as the Debt Retirement Charge, the Global "]
["Adjustment, the Ontario Clean Energy Benefit and the HST. "]
[]
[]
["Retail Service Charges refer to services provided by a distributor to retailers or customers related  "]
["to the supply of competitive electricity"]
[]
[]
["One-time charge, per retailer, to establish the service agreement between the distributor and the retailer",null,"$",100]
["Monthly Fixed Charge, per retailer",null,"$",20]
["Monthly Variable Charge, per customer, per retailer",null,"$/cust.",0.5]
["Distributor-consolidated billing monthly charge, per customer, per retailer",null,"$/cust.",0.3]
["Retailer-consolidated billing monthly credit, per customer, per retailer",null,"$/cust.",-0.3]
["Service Transaction Requests (STR) "]
["Request fee, per request, applied to the requesting party",null,"$",0.25]
["Processing fee, per request, applied to the requesting party",null,"$",0.5]
["Request for customer information as outlined in Section 10.6.3 and Chapter 11 of the Retail"]
["Settlement Code directly to retailers and customers, if not delivered electronically through the"]
["Electronic Business Transaction (EBT) system, applied to the requesting party "]
["Up to twice a year",null,"$","no charge"]
["More than twice a year, per request (plus incremental delivery costs)",null,"$",2]
[]
["LOSS FACTORS"]
[]
["If the distributor is not capable of prorating changed loss factors jointly with distribution rates, the revised loss factors will be implemented upon the first subsequent billing for each billing cycle."]
[]
[]
["Total Loss Factor – Secondary Metered Customer < 5,000 kW",null,null,1.056,null,null,null,"TLF_Secondary_LT_5000kW"]
["Total Loss Factor – Secondary Metered Customer > 5,000 kW",null,null,"N/A",null,null,null,"TLF_Secondary_GT_5000kW"]
["Total Loss Factor – Primary Metered Customer < 5,000 kW",null,null,1.0454000000000001,null,null,null,"TLF_Primary_LT_5000kW"]
["Total Loss Factor – Primary Metered Customer > 5,000 kW",null,null,"N/A",null,null,null,"TLF_Primary_GT_5000kW"]

{"sheet":"11. Proposed Rates","index":13,"n_rows":264,"n_cols":27,"rows_kept":264,"cut":false,"hidden":false,"merged":[[266,0,266,5],[267,0,267,5],[268,0,268,5],[269,0,269,5],[270,0,270,5],[260,0,260,5],[261,0,261,5],[262,0,262,5],[264,0,264,5],[265,0,265,5],[255,0,255,5],[256,0,256,5],[257,0,257,5],[258,0,258,5],[259,0,259,5],[250,0,250,5],[251,0,251,5],[252,0,252,5],[253,0,253,5],[254,0,254,5],[245,0,245,5],[246,0,246,5],[247,0,247,5],[248,0,248,5],[249,0,249,5],[240,0,240,5],[241,0,241,5],[242,0,242,5],[243,0,243,5],[244,0,244,5],[233,0,233,5],[234,0,234,5],[237,0,237,5],[238,0,238,5],[239,0,239,5],[228,0,228,5],[229,0,229,5],[230,0,230,5],[231,0,231,5],[232,0,232,5],[222,0,222,5],[223,0,223,5],[224,0,224,5],[225,0,225,5],[226,0,226,5],[217,0,217,5],[218,0,218,5],[219,0,219,5],[220,0,220,5],[221,0,221,5],[212,0,212,5],[213,0,213,5],[214,0,214,5],[215,0,215,5],[216,0,216,5],[205,0,205,5],[208,0,208,5],[209,0,209,5],[210,0,210,5],[211,0,211,5],[202,0,202,5],[203,0,203,5],[206,0,206,5],[207,0,207,5],[204,0,204,5],[195,0,195,5],[196,0,196,5],[197,0,197,5],[198,0,198,5],[201,0,201,5],[189,0,189,5],[190,0,190,5],[192,0,192,5],[193,0,193,5],[194,0,194,5],[184,0,184,5],[185,0,185,5],[186,0,186,5],[187,0,187,5],[188,0,188,5],[179,0,179,5],[180,0,180,5],[181,0,181,5],[182,0,182,5],[183,0,183,5],[174,0,174,5],[175,0,175,5],[176,0,176,5],[177,0,177,5],[178,0,178,5],[171,0,171,5],[168,0,168,5],[169,0,169,5],[172,0,172,5],[173,0,173,5],[162,0,162,5],[165,0,165,5],[166,0,166,5],[167,0,167,5],[170,0,170,5],[157,0,157,5],[158,0,158,5],[159,0,159,5],[160,0,160,5],[161,0,161,5],[151,0,151,5],[152,0,152,5],[153,0,153,5],[154,0,154,5],[156,0,156,5],[146,0,146,5],[147,0,147,5],[148,0,148,5],[149,0,149,5],[150,0,150,5],[141,0,141,5],[142,0,142,5],[143,0,143,5],[144,0,144,5],[145,0,145,5],[136,0,136,5],[137,0,137,5],[138,0,138,5],[139,0,139,5],[140,0,140,5],[131,0,131,5],[134,0,134,5],[135,0,135,5],[132,0,132,5],[133,0,133,5],[124,0,124,5],[125,0,125,5],[126,0,126,5],[129,0,129,5],[130,0,130,5],[118,0,118,5],[120,0,120,5],[121,0,121,5],[122,0,122,5],[123,0,123,5],[113,0,113,5],[114,0,114,5],[115,0,115,5],[116,0,116,5],[117,0,117,5],[108,0,108,5],[109,0,109,5],[110,0,110,5],[111,0,111,5],[112,0,112,5],[103,0,103,5],[104,0,104,5],[105,0,105,5],[106,0,106,5],[107,0,107,5],[96,0,96,5],[97,0,97,5],[100,0,100,5],[101,0,101,5],[102,0,102,5],[93,0,93,5],[94,0,94,5],[95,0,95,5],[98,0,98,5],[99,0,99,5],[86,0,86,5],[87,0,87,5],[88,0,88,5],[89,0,89,5],[90,0,90,5],[80,0,80,5],[81,0,81,5],[82,0,82,5],[84,0,84,5],[85,0,85,5],[75,0,75,5],[76,0,76,5],[77,0,77,5],[78,0,78,5],[79,0,79,5],[70,0,70,5],[71,0,71,5],[72,0,72,5],[73,0,73,5],[74,0,74,5],[65,0,65,5],[66,0,66,5],[67,0,67,5],[68,0,68,5],[69,0,69,5],[60,0,60,5],[63,0,63,5],[64,0,64,5],[61,0,61,5],[62,0,62,5],[31,0,31,5],[32,0,32,5],[57,0,57,5],[58,0,58,5],[59,0,59,5],[33,0,33,5],[34,0,34,5],[35,0,35,5],[36,0,36,5],[53,0,53,5],[42,0,42,5],[43,0,43,5],[44,0,44,5],[45,0,45,5],[46,0,46,5],[37,0,37,5],[38,0,38,5],[39,0,39,5],[40,0,40,5],[41,0,41,5],[54,0,54,5],[48,0,48,5],[49,0,49,5],[50,0,50,5],[51,0,51,5],[52,0,52,5],[11,0,17,7],[28,0,28,5],[25,0,25,5],[26,0,26,5],[29,0,29,5],[30,0,30,5],[21,0,21,5],[22,0,22,5],[23,0,23,5],[24,0,24,5],[27,0,27,5]]}
[null,null,null,null,null,null,null,null,null,null,null,null,null,null,null,null,null,null,null,null,null,null,null,null,0,3,"≥"]
[null,null,null,null,null,null,null,null,null,null,null,null,null,null,null,null,null,null,null,null,null,null,null,null,null,"February"]
[null,null,null,null,null,null,null,null,null,null,null,null,null,null,null,null,null,null,null,null,null,null,null,null,null,"March"]
[null,null,null,null,null,null,null,null,null,null,null,null,null,null,null,null,null,null,null,null,null,null,null,null,null,"April"]
[null,null,null,null,null,null,null,null,null,null,null,null,null,null,null,null,null,null,null,null,null,null,null,null,null,"May"]
[null,null,null,null,null,null,null,null,null,null,null,null,null,null,null,null,null,null,null,null,null,null,null,null,null,"June"]
[null,null,null,null,null,null,null,null,null,null,null,null,null,null,null,null,null,null,null,null,null,null,null,null,null,"July"]
[null,null,null,null,null,null,null,null,null,null,null,null,null,null,null,null,null,null,null,null,null,null,null,null,null,"August"]
[null,null,null,null,null,null,null,null,null,null,null,null,null,null,null,null,null,null,null,null,null,null,null,null,null,"September"]
[null,null,null,null,null,null,null,null,null,null,null,null,null,null,null,null,null,null,null,null,null,null,null,null,null,"October"]
[null,null,null,null,null,null,null,null,null,null,null,null,null,null,null,null,null,null,null,null,null,null,null,null,null,"November"]
["Below is a listing of the proposed Monthly Fixed Charges, proposed Distribution Volumetric Rates, proposed Deferral and Variance account Rate Riders and all unexpired volumetric rates that were entered on Sheet 4.  In the green cells (column A) below, please enter any additional rates being proposed (eg:  LRAM/SSM, Tax Adjustments, etc). Please ensure that the word \"Rider\" or \"Adder\" is included in the description (as applicable).  Note:  All rates with expired effective dates have been removed.  As well, the Current RTSR-Network and RTSR-Connection rate descriptions entered on Sheet 4 can be found below.  The associated rates have been removed from this sheet, giving the applicant the opportunity to enter updated rates (from Sheet 13 in the Board-Approved RTSR model into the cells in column I.",null,null,null,null,null,null,null,null,null,null,null,null,null,null,null,null,null,null,null,null,null,null,null,null,"December"]
[]
[]
[]
[]
[]
[]
[]
["RESIDENTIAL SERVICE CLASSIFICATION"]
["MONTHLY RATES AND CHARGES - Delivery Component"]
["Service Charge",null,null,null,null,null,null,"$",16,null,"1_P_MSC"]
["Rate Rider for Smart Metering Entity Charge - effective until October 31, 2018",null,null,null,null,null,null,"$",0.79,null,"1_P_SMEC"]
["Distribution Volumetric Rate",null,null,null,null,null,null,"$/kWh",1.61E-2,null,"1_P_VC"]
["Low Voltage Service Rate",null,null,null,null,null,null,"$/kWh",5.0000000000000001E-4,null,"1_P_LVrate"]
["Rate Rider for Deferral/Variance Account Disposition (2014) - effective until April 28, 2016",null,null,null,null,null,null,"$/kWh",-2.8E-3,null,"1_P_VC_DEFVAR_kWh_1"]
["Rate Rider for Global Adjustment Sub-Account Disposition (2014) - effective until April 28, 2016 Applicable only for Non-RPP Customers",null,null,null,null,null,null,"$/kWh",3.0000000000000001E-3,null,"1_P_VC_GA_Rate_Rider_kWh_1"]
["Retail Transmission Rate - Network Service Rate",null,null,null,null,null,null,"$/kWh",6.8999999999999999E-3,null,"1_P_RTSR_Network"]
["Retail Transmission Rate - Line and Transformation Connection Service Rate",null,null,null,null,null,null,"$/kWh",4.7000000000000002E-3,null,"1_P_RTSR_Connection"]
["Rate Rider for Tax Change",null,null,null,null,null,null,"$/kWh",-1E-4,null,"1_P_VC_Rate_Rider_kWh_2"]
[]
[]
[]
[]
[]
[]
[]
[]
[]
[]
[]
[]
[]
[]
[]
[]
[]
["MONTHLY RATES AND CHARGES - Regulatory Component"]
["Wholesale Market Service Rate",null,null,null,null,null,null,"$/kWh",4.4000000000000003E-3,null,"1_P_WMSR"]
["Rural Rate Protection Charge",null,null,null,null,null,null,"$/kWh",1.1999999999999999E-3,null,"1_P_RRPC"]
["Standard Supply Service - Administrative Charge (if applicable)",null,null,null,null,null,null,"$",0.25,null,"1_P_SSS"]
[]
[]
[]
[]
["GENERAL SERVICE LESS THAN 50 KW SERVICE CLASSIFICATION"]
["MONTHLY RATES AND CHARGES - Delivery Component"]
["Service Charge",null,null,null,null,null,null,"$",37.64,null,"2_P_MSC"]
["Rate Rider for Smart Metering Entity Charge - effective until October 31, 2018",null,null,null,null,null,null,"$",0.79,null,"2_P_SMEC"]
["Distribution Volumetric Rate",null,null,null,null,null,null,"$/kWh",1.37E-2,null,"2_P_VC"]
["Low Voltage Service Rate",null,null,null,null,null,null,"$/kWh",4.0000000000000002E-4,null,"2_P_LVrate"]
["Rate Rider for Deferral/Variance Account Disposition (2014) - effective until April 28, 2016",null,null,null,null,null,null,"$/kWh",-2.8999999999999998E-3,null,"2_P_VC_DEFVAR_kWh_1"]
["Rate Rider for Global Adjustment Sub-Account Disposition (2014) - effective until April 28, 2016 Applicable only for Non-RPP Customers",null,null,null,null,null,null,"$/kWh",3.0000000000000001E-3,null,"2_P_VC_GA_Rate_Rider_kWh_1"]
["Retail Transmission Rate - Network Service Rate",null,null,null,null,null,null,"$/kWh",6.3E-3,null,"2_P_RTSR_Network"]
["Retail Transmission Rate - Line and Transformation Connection Service Rate",null,null,null,null,null,null,"$/kWh",4.1999999999999997E-3,null,"2_P_RTSR_Connection"]
["Rate Rider for Tax Change",null,null,null,null,null,null,"$/kWh",-1E-4,null,"2_P_VC_Rate_Rider_kWh_2"]
[]
[]
[]
[]
[]
[]
[]
[]
[]
[]
[]
[]
[]
[]
[]
[]
[]
["MONTHLY RATES AND CHARGES - Regulatory Component"]
["Wholesale Market Service Rate",null,null,null,null,null,null,"$/kWh",4.4000000000000003E-3,null,"2_P_WMSR"]
["Rural Rate Protection Charge",null,null,null,null,null,null,"$/kWh",1.1999999999999999E-3,null,"2_P_RRPC"]
["Standard Supply Service - Administrative Charge (if applicable)",null,null,null,null,null,null,"$",0.25,null,"2_P_SSS"]
[]
[]
[]
[]
["GENERAL SERVICE 50 TO 4,999 KW SERVICE CLASSIFICATION"]
["MONTHLY RATES AND CHARGES - Delivery Component"]
["Service Charge",null,null,null,null,null,null,"$",178.84,null,"3_P_MSC"]
["Distribution Volumetric Rate",null,null,null,null,null,null,"$/kW",4.2225000000000001,null,"3_P_VC"]
["Low Voltage Service Rate",null,null,null,null,null,null,"$/kW",0.15920000000000001,null,"3_P_LVrate"]
["Rate Rider for Deferral/Variance Account Disposition (2014) - effective until April 28, 2016",null,null,null,null,null,null,"$/kW",-0.97629999999999995,null,"3_P_VC_DEFVAR_kW_1"]
["Rate Rider for Global Adjustment Sub-Account Disposition (2014) - effective until April 28, 2016 Applicable only for Non-RPP Customers",null,null,null,null,null,null,"$/kW",1.0363,null,"3_P_VC_GA_Rate_Rider_kW_1"]
["Retail Transmission Rate - Network Service Rate",null,null,null,null,null,null,"$/kW",2.5998999999999999,null,"3_P_RTSR_Network"]
["Retail Transmission Rate - Line and Transformation Connection Service Rate",null,null,null,null,null,null,"$/kW",1.6503000000000001,null,"3_P_RTSR_Connection"]
["Rate Rider for Tax Change",null,null,null,null,null,null,"$/kW",-1.78E-2,null,"3_P_VC_Rate_Rider_kW_2"]
[]
[]
[]
[]
[]
[]
[]
[]
[]
[]
[]
[]
[]
[]
[]
[]
[]
[]
["MONTHLY RATES AND CHARGES - Regulatory Component"]
["Wholesale Market Service Rate",null,null,null,null,null,null,"$/kWh",4.4000000000000003E-3,null,"3_P_WMSR"]
["Rural Rate Protection Charge",null,null,null,null,null,null,"$/kWh",1.1999999999999999E-3,null,"3_P_RRPC"]
["Standard Supply Service - Administrative Charge (if applicable)",null,null,null,null,null,null,"$",0.25,null,"3_P_SSS"]
[]
[]
[]
[]
["UNMETERED SCATTERED LOAD SERVICE CLASSIFICATION"]
["MONTHLY RATES AND CHARGES - Delivery Component"]
["Service Charge",null,null,null,null,null,null,"$",19.45,null,"4_P_MSC"]
["Distribution Volumetric Rate",null,null,null,null,null,null,"$/kWh",1.3599999999999999E-2,null,"4_P_VC"]
["Low Voltage Service Rate",null,null,null,null,null,null,"$/kWh",4.0000000000000002E-4,null,"4_P_LVrate"]
["Rate Rider for Deferral/Variance Account Disposition (2014) - effective until April 28, 2016",null,null,null,null,null,null,"$/kWh",-2.8E-3,null,"4_P_VC_DEFVAR_kWh_1"]
["Rate Rider for Global Adjustment Sub-Account Disposition (2014) - effective until April 28, 2016 Applicable only for Non-RPP Customers",null,null,null,null,null,null,"$/kWh",3.0000000000000001E-3,null,"4_P_VC_GA_Rate_Rider_kWh_1"]
["Retail Transmission Rate - Network Service Rate",null,null,null,null,null,null,"$/kWh",6.3E-3,null,"4_P_RTSR_Network"]
["Retail Transmission Rate - Line and Transformation Connection Service Rate",null,null,null,null,null,null,"$/kWh",4.1999999999999997E-3,null,"4_P_RTSR_Connection"]
["Rate Rider for Tax Change",null,null,null,null,null,null,"$/kWh",-2.0000000000000001E-4,null,"4_P_VC_Rate_Rider_kWh_2"]
[]
[]
[]
[]
[]
[]
[]
[]
[]
[]
[]
[]
[]
[]
[]
[]
[]
[]
["MONTHLY RATES AND CHARGES - Regulatory Component"]
["Wholesale Market Service Rate",null,null,null,null,null,null,"$/kWh",4.4000000000000003E-3,null,"4_P_WMSR"]
["Rural Rate Protection Charge",null,null,null,null,null,null,"$/kWh",1.1999999999999999E-3,null,"4_P_RRPC"]
["Standard Supply Service - Administrative Charge (if applicable)",null,null,null,null,null,null,"$",0.25,null,"4_P_SSS"]
[]
[]
[]
[]
["SENTINEL LIGHTING SERVICE CLASSIFICATION"]
["MONTHLY RATES AND CHARGES - Delivery Component"]
["Service Charge",null,null,null,null,null,null,"$",12.81,null,"5_P_MSC"]
["Distribution Volumetric Rate",null,null,null,null,null,null,"$/kW",15.988799999999999,null,"5_P_VC"]
["Low Voltage Service Rate",null,null,null,null,null,null,"$/kW",0.13300000000000001,null,"5_P_LVrate"]
["Rate Rider for Deferral/Variance Account Disposition (2014) - effective until April 28, 2016",null,null,null,null,null,null,"$/kW",-1.0489999999999999,null,"5_P_VC_DEFVAR_kW_1"]
["Rate Rider for Global Adjustment Sub-Account Disposition (2014) - effective until April 28, 2016 Applicable only for Non-RPP Customers",null,null,null,null,null,null,"$/kW",1.0860000000000001,null,"5_P_VC_GA_Rate_Rider_kW_1"]
["Retail Transmission Rate - Network Service Rate",null,null,null,null,null,null,"$/kW",1.925,null,"5_P_RTSR_Network"]
["Retail Transmission Rate - Line and Transformation Connection Service Rate",null,null,null,null,null,null,"$/kW",1.3789,null,"5_P_RTSR_Connection"]
["Rate Rider for Tax Change",null,null,null,null,null,null,"$/kW",-0.4168,null,"5_P_VC_Rate_Rider_kW_2"]
[]
[]
[]
[]
[]
[]
[]
[]
[]
[]
[]
[]
[]
[]
[]
[]
[]
[]
["MONTHLY RATES AND CHARGES - Regulatory Component"]
["Wholesale Market Service Rate",null,null,null,null,null,null,"$/kWh",4.4000000000000003E-3,null,"5_P_WMSR"]
["Rural Rate Protection Charge",null,null,null,null,null,null,"$/kWh",1.1999999999999999E-3,null,"5_P_RRPC"]
["Standard Supply Service - Administrative Charge (if applicable)",null,null,null,null,null,null,"$",0.25,null,"5_P_SSS"]
[]
[]
[]
[]
["STREET LIGHTING SERVICE CLASSIFICATION"]
["MONTHLY RATES AND CHARGES - Delivery Component"]
["Service Charge",null,null,null,null,null,null,"$",1.1399999999999999,null,"6_P_MSC"]
["Distribution Volumetric Rate",null,null,null,null,null,null,"$/kW",4.4471999999999996,null,"6_P_VC"]
["Low Voltage Service Rate",null,null,null,null,null,null,"$/kW",0.12230000000000001,null,"6_P_LVrate"]
["Rate Rider for Deferral/Variance Account Disposition (2014) - effective until April 28, 2016",null,null,null,null,null,null,"$/kW",-1.0576000000000001,null,"6_P_VC_DEFVAR_kW_1"]
["Rate Rider for Global Adjustment Sub-Account Disposition (2014) - effective until April 28, 2016 Applicable only for Non-RPP Customers",null,null,null,null,null,null,"$/kW",1.1143000000000001,null,"6_P_VC_GA_Rate_Rider_kW_1"]
["Retail Transmission Rate - Network Service Rate",null,null,null,null,null,null,"$/kW",1.9655,null,"6_P_RTSR_Network"]
["Retail Transmission Rate - Line and Transformation Connection Service Rate",null,null,null,null,null,null,"$/kW",1.2679,null,"6_P_RTSR_Connection"]
["Rate Rider for Tax Change",null,null,null,null,null,null,"$/kW",-4.3900000000000002E-2,null,"6_P_VC_Rate_Rider_kW_2"]
[]
[]
[]
[]
[]
[]
[]
[]
[]
[]
[]
[]
[]
[]
[]
[]
[]
[]
["MONTHLY RATES AND CHARGES - Regulatory Component"]
["Wholesale Market Service Rate",null,null,null,null,null,null,"$/kWh",4.4000000000000003E-3,null,"6_P_WMSR"]
["Rural Rate Protection Charge",null,null,null,null,null,null,"$/kWh",1.1999999999999999E-3,null,"6_P_RRPC"]
["Standard Supply Service - Administrative Charge (if applicable)",null,null,null,null,null,null,"$",0.25,null,"6_P_SSS"]
[]
[]
[]
[]
["MICROFIT SERVICE CLASSIFICATION"]
["MONTHLY RATES AND CHARGES - Delivery Component"]
["Service Charge",null,null,null,null,null,null,"$",5.4,null,"7_P_MSC"]
[]
[]
[]
[]
[]
[]
[]
[]
[]
[]
[]
[]
[]
[]
[]
[]
[]
[]
[]
[]
[]
[]
[]
[]
[]
["MONTHLY RATES AND CHARGES - Regulatory Component"]

{"sheet":"11. Hidden","index":14,"n_rows":264,"n_cols":27,"rows_kept":264,"cut":false,"hidden":true,"merged":[[268,0,268,5],[269,0,269,5],[270,0,270,5],[262,0,262,5],[264,0,264,5],[265,0,265,5],[266,0,266,5],[267,0,267,5],[257,0,257,5],[258,0,258,5],[259,0,259,5],[260,0,260,5],[261,0,261,5],[252,0,252,5],[253,0,253,5],[254,0,254,5],[255,0,255,5],[256,0,256,5],[247,0,247,5],[248,0,248,5],[249,0,249,5],[250,0,250,5],[251,0,251,5],[242,0,242,5],[243,0,243,5],[244,0,244,5],[245,0,245,5],[246,0,246,5],[237,0,237,5],[238,0,238,5],[239,0,239,5],[240,0,240,5],[241,0,241,5],[230,0,230,5],[231,0,231,5],[232,0,232,5],[233,0,233,5],[234,0,234,5],[224,0,224,5],[225,0,225,5],[226,0,226,5],[228,0,228,5],[229,0,229,5],[219,0,219,5],[220,0,220,5],[221,0,221,5],[222,0,222,5],[223,0,223,5],[214,0,214,5],[215,0,215,5],[216,0,216,5],[217,0,217,5],[218,0,218,5],[209,0,209,5],[210,0,210,5],[211,0,211,5],[212,0,212,5],[213,0,213,5],[204,0,204,5],[205,0,205,5],[206,0,206,5],[207,0,207,5],[208,0,208,5],[197,0,197,5],[198,0,198,5],[201,0,201,5],[202,0,202,5],[203,0,203,5],[192,0,192,5],[193,0,193,5],[194,0,194,5],[195,0,195,5],[196,0,196,5],[186,0,186,5],[187,0,187,5],[188,0,188,5],[189,0,189,5],[190,0,190,5],[181,0,181,5],[182,0,182,5],[183,0,183,5],[184,0,184,5],[185,0,185,5],[176,0,176,5],[177,0,177,5],[178,0,178,5],[179,0,179,5],[180,0,180,5],[171,0,171,5],[172,0,172,5],[173,0,173,5],[174,0,174,5],[175,0,175,5],[166,0,166,5],[167,0,167,5],[168,0,168,5],[169,0,169,5],[170,0,170,5],[159,0,159,5],[160,0,160,5],[161,0,161,5],[162,0,162,5],[165,0,165,5],[153,0,153,5],[154,0,154,5],[156,0,156,5],[157,0,157,5],[158,0,158,5],[148,0,148,5],[149,0,149,5],[150,0,150,5],[151,0,151,5],[152,0,152,5],[143,0,143,5],[144,0,144,5],[145,0,145,5],[146,0,146,5],[147,0,147,5],[138,0,138,5],[139,0,139,5],[140,0,140,5],[141,0,141,5],[142,0,142,5],[133,0,133,5],[134,0,134,5],[135,0,135,5],[136,0,136,5],[137,0,137,5],[126,0,126,5],[129,0,129,5],[130,0,130,5],[131,0,131,5],[132,0,132,5],[121,0,121,5],[122,0,122,5],[123,0,123,5],[124,0,124,5],[125,0,125,5],[115,0,115,5],[116,0,116,5],[117,0,117,5],[118,0,118,5],[120,0,120,5],[110,0,110,5],[111,0,111,5],[112,0,112,5],[113,0,113,5],[114,0,114,5],[105,0,105,5],[106,0,106,5],[107,0,107,5],[108,0,108,5],[109,0,109,5],[100,0,100,5],[101,0,101,5],[102,0,102,5],[103,0,103,5],[104,0,104,5],[95,0,95,5],[96,0,96,5],[97,0,97,5],[98,0,98,5],[99,0,99,5],[88,0,88,5],[89,0,89,5],[90,0,90,5],[93,0,93,5],[94,0,94,5],[82,0,82,5],[84,0,84,5],[85,0,85,5],[86,0,86,5],[87,0,87,5],[77,0,77,5],[78,0,78,5],[79,0,79,5],[80,0,80,5],[81,0,81,5],[72,0,72,5],[73,0,73,5],[74,0,74,5],[75,0,75,5],[76,0,76,5],[67,0,67,5],[68,0,68,5],[69,0,69,5],[70,0,70,5],[71,0,71,5],[62,0,62,5],[63,0,63,5],[64,0,64,5],[65,0,65,5],[66,0,66,5],[57,0,57,5],[58,0,58,5],[59,0,59,5],[60,0,60,5],[61,0,61,5],[52,0,52,5],[53,0,53,5],[54,0,54,5],[50,0,50,5],[39,0,39,5],[40,0,40,5],[41,0,41,5],[42,0,42,5],[51,0,51,5],[49,0,49,5],[43,0,43,5],[44,0,44,5],[45,0,45,5],[46,0,46,5],[48,0,48,5],[11,0,17,7],[21,0,21,5],[22,0,22,5],[23,0,23,5],[24,0,24,5],[38,0,38,5],[25,0,25,5],[32,0,32,5],[33,0,33,5],[34,0,34,5],[35,0,35,5],[36,0,36,5],[37,0,37,5],[26,0,26,5],[27,0,27,5],[28,0,28,5],[29,0,29,5],[30,0,30,5],[31,0,31,5]]}
[null,null,null,null,null,null,null,null,null,null,null,null,null,null,null,null,null,null,null,null,null,null,null,null,0,0,"≥"]
[null,null,null,null,null,null,null,null,null,null,null,null,null,null,null,null,null,null,null,null,null,null,null,null,null,"February"]
[null,null,null,null,null,null,null,null,null,null,null,null,null,null,null,null,null,null,null,null,null,null,null,null,null,"March"]
[null,null,null,null,null,null,null,null,null,null,null,null,null,null,null,null,null,null,null,null,null,null,null,null,null,"April"]
[null,null,null,null,null,null,null,null,null,null,null,null,null,null,null,null,null,null,null,null,null,null,null,null,null,"May"]
[null,null,null,null,null,null,null,null,null,null,null,null,null,null,null,null,null,null,null,null,null,null,null,null,null,"June"]
[null,null,null,null,null,null,null,null,null,null,null,null,null,null,null,null,null,null,null,null,null,null,null,null,null,"July"]
[null,null,null,null,null,null,null,null,null,null,null,null,null,null,null,null,null,null,null,null,null,null,null,null,null,"August"]
[null,null,null,null,null,null,null,null,null,null,null,null,null,null,null,null,null,null,null,null,null,null,null,null,null,"September"]
[null,null,null,null,null,null,null,null,null,null,null,null,null,null,null,null,null,null,null,null,null,null,null,null,null,"October"]
[null,null,null,null,null,null,null,null,null,null,null,null,null,null,null,null,null,null,null,null,null,null,null,null,null,"November"]
["Below is a listing of the proposed Monthly Fixed Charges, proposed Distribution Volumetric Rates, proposed Deferral and Variance account Rate Riders and all unexpired volumetric rates that were entered on Sheet 4.  In the green cells (column A) below, please enter any additional rates being proposed (eg:  LRAM/SSM, Tax Adjustments, etc). Please ensure that the word \"Rider\" or \"Adder\" is included in the description (as applicable).  Note:  All rates with expired effective dates have been removed.  As well, the Current RTSR-Network and RTSR-Connection rate descriptions entered on Sheet 4 can be found below.  The associated rates have been removed from this sheet, giving the applicant the opportunity to enter updated rates (from Sheet 13 in the Board-Approved RTSR model into the cells in column I.",null,null,null,null,null,null,null,null,null,null,null,null,null,null,null,null,null,null,null,null,null,null,null,null,"December"]
[]
[]
[]
[]
[]
[]
[]
["RESIDENTIAL SERVICE CLASSIFICATION"]
["MONTHLY RATES AND CHARGES - Delivery Component"]
["Service Charge",null,null,null,null,null,null,"$",16,null,"1_P_MSC"]
["Rate Rider for Smart Metering Entity Charge - effective until October 31, 2018",null,null,null,null,null,null,"$",0.79,null,"1_P_SMEC"]
["Distribution Volumetric Rate",null,null,null,null,null,null,"$/kWh",1.61E-2,null,"1_P_VC"]
["Low Voltage Service Rate",null,null,null,null,null,null,"$/kWh",5.0000000000000001E-4,null,"1_P_LVrate"]
["Rate Rider for Deferral/Variance Account Disposition (2014) - effective until April 28, 2016",null,null,null,null,null,null,"$/kWh",-2.8E-3,null,"1_P_VC_DEFVAR_kWh_1"]
["Rate Rider for Global Adjustment Sub-Account Disposition (2014) - effective until April 28, 2016 Applicable only for Non-RPP Customers",null,null,null,null,null,null,"$/kWh",3.0000000000000001E-3,null,"1_P_VC_GA_Rate_Rider_kWh_1"]
["Retail Transmission Rate - Network Service Rate",null,null,null,null,null,null,"$/kWh",7.1000000000000004E-3,null,"1_P_RTSR_Network"]
["Retail Transmission Rate - Line and Transformation Connection Service Rate",null,null,null,null,null,null,"$/kWh",4.7000000000000002E-3,null,"1_P_RTSR_Connection"]
["Rate Rider for Tax Change",null,null,null,null,null,null,"$/kWh",-1E-4,null,"1_P_VC_Rate_Rider_kWh_2"]
[]
[]
[]
[]
[]
[]
[]
[]
[]
[]
[]
[]
[]
[]
[]
[]
[]
["MONTHLY RATES AND CHARGES - Regulatory Component"]
["Wholesale Market Service Rate",null,null,null,null,null,null,"$/kWh",4.4000000000000003E-3,null,"1_P_WMSR"]
["Rural Rate Protection Charge",null,null,null,null,null,null,"$/kWh",1.1999999999999999E-3,null,"1_P_RRPC"]
["Standard Supply Service - Administrative Charge (if applicable)",null,null,null,null,null,null,"$",0.25,null,"1_P_SSS"]
[]
[]
[]
[]
["GENERAL SERVICE LESS THAN 50 KW SERVICE CLASSIFICATION"]
["MONTHLY RATES AND CHARGES - Delivery Component"]
["Service Charge",null,null,null,null,null,null,"$",37.64,null,"2_P_MSC"]
["Rate Rider for Smart Metering Entity Charge - effective until October 31, 2018",null,null,null,null,null,null,"$",0.79,null,"2_P_SMEC"]
["Distribution Volumetric Rate",null,null,null,null,null,null,"$/kWh",1.37E-2,null,"2_P_VC"]
["Low Voltage Service Rate",null,null,null,null,null,null,"$/kWh",4.0000000000000002E-4,null,"2_P_LVrate"]
["Rate Rider for Deferral/Variance Account Disposition (2014) - effective until April 28, 2016",null,null,null,null,null,null,"$/kWh",-2.8E-3,null,"2_P_VC_DEFVAR_kWh_1"]
["Rate Rider for Global Adjustment Sub-Account Disposition (2014) - effective until April 28, 2016 Applicable only for Non-RPP Customers",null,null,null,null,null,null,"$/kWh",3.0000000000000001E-3,null,"2_P_VC_GA_Rate_Rider_kWh_1"]
["Retail Transmission Rate - Network Service Rate",null,null,null,null,null,null,"$/kWh",6.4999999999999997E-3,null,"2_P_RTSR_Network"]
["Retail Transmission Rate - Line and Transformation Connection Service Rate",null,null,null,null,null,null,"$/kWh",4.1999999999999997E-3,null,"2_P_RTSR_Connection"]
["Rate Rider for Tax Change",null,null,null,null,null,null,"$/kWh",-1E-4,null,"2_P_VC_Rate_Rider_kWh_2"]
[]
[]
[]
[]
[]
[]
[]
[]
[]
[]
[]
[]
[]
[]
[]
[]
[]
["MONTHLY RATES AND CHARGES - Regulatory Component"]
["Wholesale Market Service Rate",null,null,null,null,null,null,"$/kWh",4.4000000000000003E-3,null,"2_P_WMSR"]
["Rural Rate Protection Charge",null,null,null,null,null,null,"$/kWh",1.1999999999999999E-3,null,"2_P_RRPC"]
["Standard Supply Service - Administrative Charge (if applicable)",null,null,null,null,null,null,"$",0.25,null,"2_P_SSS"]
[]
[]
[]
[]
["GENERAL SERVICE 50 TO 4,999 KW SERVICE CLASSIFICATION"]
["MONTHLY RATES AND CHARGES - Delivery Component"]
["Service Charge",null,null,null,null,null,null,"$",178.84,null,"3_P_MSC"]
["Distribution Volumetric Rate",null,null,null,null,null,null,"$/kW",4.2225000000000001,null,"3_P_VC"]
["Low Voltage Service Rate",null,null,null,null,null,null,"$/kW",0.15920000000000001,null,"3_P_LVrate"]
["Rate Rider for Deferral/Variance Account Disposition (2014) - effective until April 28, 2016",null,null,null,null,null,null,"$/kW",-0.97070000000000001,null,"3_P_VC_DEFVAR_kW_1"]
["Rate Rider for Global Adjustment Sub-Account Disposition (2014) - effective until April 28, 2016 Applicable only for Non-RPP Customers",null,null,null,null,null,null,"$/kW",1.0314000000000001,null,"3_P_VC_GA_Rate_Rider_kW_1"]
["Retail Transmission Rate - Network Service Rate",null,null,null,null,null,null,"$/kW",2.6648000000000001,null,"3_P_RTSR_Network"]
["Retail Transmission Rate - Line and Transformation Connection Service Rate",null,null,null,null,null,null,"$/kW",1.6366000000000001,null,"3_P_RTSR_Connection"]
["Rate Rider for Tax Change",null,null,null,null,null,null,"$/kW",-1.78E-2,null,"3_P_VC_Rate_Rider_kW_2"]
[]
[]
[]
[]
[]
[]
[]
[]
[]
[]
[]
[]
[]
[]
[]
[]
[]
[]
["MONTHLY RATES AND CHARGES - Regulatory Component"]
["Wholesale Market Service Rate",null,null,null,null,null,null,"$/kWh",4.4000000000000003E-3,null,"3_P_WMSR"]
["Rural Rate Protection Charge",null,null,null,null,null,null,"$/kWh",1.1999999999999999E-3,null,"3_P_RRPC"]
["Standard Supply Service - Administrative Charge (if applicable)",null,null,null,null,null,null,"$",0.25,null,"3_P_SSS"]
[]
[]
[]
[]
["UNMETERED SCATTERED LOAD SERVICE CLASSIFICATION"]
["MONTHLY RATES AND CHARGES - Delivery Component"]
["Service Charge",null,null,null,null,null,null,"$",19.45,null,"4_P_MSC"]
["Distribution Volumetric Rate",null,null,null,null,null,null,"$/kWh",1.3599999999999999E-2,null,"4_P_VC"]
["Low Voltage Service Rate",null,null,null,null,null,null,"$/kWh",4.0000000000000002E-4,null,"4_P_LVrate"]
["Rate Rider for Deferral/Variance Account Disposition (2014) - effective until April 28, 2016",null,null,null,null,null,null,"$/kWh",-2.8E-3,null,"4_P_VC_DEFVAR_kWh_1"]
["Rate Rider for Global Adjustment Sub-Account Disposition (2014) - effective until April 28, 2016 Applicable only for Non-RPP Customers",null,null,null,null,null,null,"$/kWh",3.0000000000000001E-3,null,"4_P_VC_GA_Rate_Rider_kWh_1"]
["Retail Transmission Rate - Network Service Rate",null,null,null,null,null,null,"$/kWh",6.4999999999999997E-3,null,"4_P_RTSR_Network"]
["Retail Transmission Rate - Line and Transformation Connection Service Rate",null,null,null,null,null,null,"$/kWh",4.1999999999999997E-3,null,"4_P_RTSR_Connection"]
["Rate Rider for Tax Change",null,null,null,null,null,null,"$/kWh",-2.0000000000000001E-4,null,"4_P_VC_Rate_Rider_kWh_2"]
[]
[]
[]
[]
[]
[]
[]
[]
[]
[]
[]
[]
[]
[]
[]
[]
[]
[]
["MONTHLY RATES AND CHARGES - Regulatory Component"]
["Wholesale Market Service Rate",null,null,null,null,null,null,"$/kWh",4.4000000000000003E-3,null,"4_P_WMSR"]
["Rural Rate Protection Charge",null,null,null,null,null,null,"$/kWh",1.1999999999999999E-3,null,"4_P_RRPC"]
["Standard Supply Service - Administrative Charge (if applicable)",null,null,null,null,null,null,"$",0.25,null,"4_P_SSS"]
[]
[]
[]
[]
["SENTINEL LIGHTING SERVICE CLASSIFICATION"]
["MONTHLY RATES AND CHARGES - Delivery Component"]
["Service Charge",null,null,null,null,null,null,"$",12.81,null,"5_P_MSC"]
["Distribution Volumetric Rate",null,null,null,null,null,null,"$/kW",15.988799999999999,null,"5_P_VC"]
["Low Voltage Service Rate",null,null,null,null,null,null,"$/kW",0.13300000000000001,null,"5_P_LVrate"]
["Rate Rider for Deferral/Variance Account Disposition (2014) - effective until April 28, 2016",null,null,null,null,null,null,"$/kW",-1.042,null,"5_P_VC_DEFVAR_kW_1"]
["Rate Rider for Global Adjustment Sub-Account Disposition (2014) - effective until April 28, 2016 Applicable only for Non-RPP Customers",null,null,null,null,null,null,"$/kW",1.0808,null,"5_P_VC_GA_Rate_Rider_kW_1"]
["Retail Transmission Rate - Network Service Rate",null,null,null,null,null,null,"$/kW",1.9730000000000001,null,"5_P_RTSR_Network"]
["Retail Transmission Rate - Line and Transformation Connection Service Rate",null,null,null,null,null,null,"$/kW",1.3674999999999999,null,"5_P_RTSR_Connection"]
["Rate Rider for Tax Change",null,null,null,null,null,null,"$/kW",-0.4168,null,"5_P_VC_Rate_Rider_kW_2"]
[]
[]
[]
[]
[]
[]
[]
[]
[]
[]
[]
[]
[]
[]
[]
[]
[]
[]
["MONTHLY RATES AND CHARGES - Regulatory Component"]
["Wholesale Market Service Rate",null,null,null,null,null,null,"$/kWh",4.4000000000000003E-3,null,"5_P_WMSR"]
["Rural Rate Protection Charge",null,null,null,null,null,null,"$/kWh",1.1999999999999999E-3,null,"5_P_RRPC"]
["Standard Supply Service - Administrative Charge (if applicable)",null,null,null,null,null,null,"$",0.25,null,"5_P_SSS"]
[]
[]
[]
[]
["STREET LIGHTING SERVICE CLASSIFICATION"]
["MONTHLY RATES AND CHARGES - Delivery Component"]
["Service Charge",null,null,null,null,null,null,"$",1.1399999999999999,null,"6_P_MSC"]
["Distribution Volumetric Rate",null,null,null,null,null,null,"$/kW",4.4471999999999996,null,"6_P_VC"]
["Low Voltage Service Rate",null,null,null,null,null,null,"$/kW",0.12230000000000001,null,"6_P_LVrate"]
["Rate Rider for Deferral/Variance Account Disposition (2014) - effective until April 28, 2016",null,null,null,null,null,null,"$/kW",-1.0512999999999999,null,"6_P_VC_DEFVAR_kW_1"]
["Rate Rider for Global Adjustment Sub-Account Disposition (2014) - effective until April 28, 2016 Applicable only for Non-RPP Customers",null,null,null,null,null,null,"$/kW",1.109,null,"6_P_VC_GA_Rate_Rider_kW_1"]
["Retail Transmission Rate - Network Service Rate",null,null,null,null,null,null,"$/kW",2.0146000000000002,null,"6_P_RTSR_Network"]
["Retail Transmission Rate - Line and Transformation Connection Service Rate",null,null,null,null,null,null,"$/kW",1.2574000000000001,null,"6_P_RTSR_Connection"]
["Rate Rider for Tax Change",null,null,null,null,null,null,"$/kW",-4.3900000000000002E-2,null,"6_P_VC_Rate_Rider_kW_2"]
[]
[]
[]
[]
[]
[]
[]
[]
[]
[]
[]
[]
[]
[]
[]
[]
[]
[]
["MONTHLY RATES AND CHARGES - Regulatory Component"]
["Wholesale Market Service Rate",null,null,null,null,null,null,"$/kWh",4.4000000000000003E-3,null,"6_P_WMSR"]
["Rural Rate Protection Charge",null,null,null,null,null,null,"$/kWh",1.1999999999999999E-3,null,"6_P_RRPC"]
["Standard Supply Service - Administrative Charge (if applicable)",null,null,null,null,null,null,"$",0.25,null,"6_P_SSS"]
[]
[]
[]
[]
["MICROFIT SERVICE CLASSIFICATION"]
["MONTHLY RATES AND CHARGES - Delivery Component"]
["Service Charge",null,null,null,null,null,null,"$",5.4,null,"7_P_MSC"]
[]
[]
[]
[]
[]
[]
[]
[]
[]
[]
[]
[]
[]
[]
[]
[]
[]
[]
[]
[]
[]
[]
[]
[]
[]
["MONTHLY RATES AND CHARGES - Regulatory Component"]

{"sheet":"12. Summary Sheet","index":15,"n_rows":98,"n_cols":27,"rows_kept":98,"cut":false,"hidden":false,"merged":[]}
[null,null,null,null,null,null,null,null,null,null,null,null,null,null,null,null,null,null,null,null,null,null,null,null,3,3,"≥"]
[null,null,null,null,null,null,null,null,null,null,null,null,null,null,null,null,null,null,null,null,null,null,null,null,null,"February"]
[null,null,null,null,null,null,null,null,null,null,null,null,null,null,null,null,null,null,null,null,null,null,null,null,null,"March"]
[null,null,null,null,null,null,null,null,null,null,null,null,null,null,null,null,null,null,null,null,null,null,null,null,null,"April"]
[null,null,null,null,null,null,null,null,null,null,null,null,null,null,null,null,null,null,null,null,null,null,null,null,null,"May"]
[null,null,null,null,null,null,null,null,null,null,null,null,null,null,null,null,null,null,null,null,null,null,null,null,null,"June"]
[null,null,null,null,null,null,null,null,null,null,null,null,null,null,null,null,null,null,null,null,null,null,null,null,null,"July"]
[null,null,null,null,null,null,null,null,null,null,null,null,null,null,null,null,null,null,null,null,null,null,null,null,null,"August"]
[null,null,null,null,null,null,null,null,null,null,null,null,null,null,null,null,null,null,null,null,null,null,null,null,null,"September"]
[null,null,null,null,null,null,null,null,null,null,null,null,null,null,null,null,null,null,null,null,null,null,null,null,null,"October"]
["The following table provides applicants with a class to class comparison of current vs. proposed rates.",null,null,null,null,null,null,null,null,null,null,null,null,null,null,null,null,null,null,null,null,null,null,null,null,"November"]
[null,null,null,null,null,null,null,null,null,null,null,null,null,null,null,null,null,null,null,null,null,null,null,null,null,"December"]
[]
[]
["Current Rates",null,null,null,"Proposed Rates"]
["Rate Description","Unit","Amount",null,"Rate Description","Unit","Amount"]
["RESIDENTIAL",null,null,null,"RESIDENTIAL"]
["Service Charge","$",15.84,null,"Service Charge","$",16]
["Rate Rider for Smart Metering Entity Charge - effective until October 31, 2018","$",0.79,null,"Rate Rider for Smart Metering Entity Charge - effective until October 31, 2018","$",0.79]
["Distribution Volumetric Rate","$/kWh",1.5900000000000001E-2,null,"Distribution Volumetric Rate","$/kWh",1.61E-2]
["Low Voltage Service Rate","$/kWh",5.0000000000000001E-4,null,"Low Voltage Service Rate","$/kWh",5.0000000000000001E-4]
["Rate Rider for Disposition of Deferral/Variance Accounts (2012) - effective until April 30, 2014","$/kWh",-1.1000000000000001E-3,null,"Rate Rider for Deferral/Variance Account Disposition (2014) - effective until April 28, 2016","$/kWh",-2.8E-3]
["Rate Rider for Disposition of Global Adjustment Sub-Account (2012) - effective until April 30, 2014 Applicable only for Non-RPP Customers","$/kWh",-5.0000000000000001E-4,null,"Rate Rider for Global Adjustment Sub-Account Disposition (2014) - effective until April 28, 2016 Applicable only for Non-RPP Customers","$/kWh",3.0000000000000001E-3]
["Rate Rider for Disposition of Deferred PILs Variance Account 1562 - effective until April 30, 2014","$/kWh",-3.3999999999999998E-3,null,"Retail Transmission Rate - Network Service Rate","$/kWh",6.8999999999999999E-3]
["Rate Rider for Application of Tax Change - effective until April 30, 2014","$/kWh",-1E-4,null,"Retail Transmission Rate - Line and Transformation Connection Service Rate","$/kWh",4.7000000000000002E-3]
["Retail Transmission Rate - Network Service Rate","$/kWh",6.7999999999999996E-3,null,"Rate Rider for Tax Change","$/kWh",-1E-4]
["Retail Transmission Rate - Line and Transformation Connection Service Rate","$/kWh",4.4999999999999997E-3,null,"Wholesale Market Service Rate","$/kWh",4.4000000000000003E-3]
["Wholesale Market Service Rate","$/kWh",4.4000000000000003E-3,null,"Rural Rate Protection Charge","$/kWh",1.1999999999999999E-3]
["Rural Rate Protection Charge","$/kWh",1.1999999999999999E-3,null,"Standard Supply Service - Administrative Charge (if applicable)","$",0.25]
["Standard Supply Service - Administrative Charge (if applicable)","$",0.25]
["GENERAL SERVICE LESS THAN 50 KW",null,null,null,"GENERAL SERVICE LESS THAN 50 KW"]
["Service Charge","$",37.270000000000003,null,"Service Charge","$",37.64]
["Rate Rider for Smart Metering Entity Charge - effective until October 31, 2018","$",0.79,null,"Rate Rider for Smart Metering Entity Charge - effective until October 31, 2018","$",0.79]
["Distribution Volumetric Rate","$/kWh",1.3599999999999999E-2,null,"Distribution Volumetric Rate","$/kWh",1.37E-2]
["Low Voltage Service Rate","$/kWh",4.0000000000000002E-4,null,"Low Voltage Service Rate","$/kWh",4.0000000000000002E-4]
["Rate Rider for Disposition of Deferral/Variance Accounts (2012) - effective until April 30, 2014","$/kWh",-1.1000000000000001E-3,null,"Rate Rider for Deferral/Variance Account Disposition (2014) - effective until April 28, 2016","$/kWh",-2.8999999999999998E-3]
["Rate Rider for Disposition of Global Adjustment Sub-Account (2012) - effective until April 30, 2014 Applicable only for Non-RPP Customers","$/kWh",-5.0000000000000001E-4,null,"Rate Rider for Global Adjustment Sub-Account Disposition (2014) - effective until April 28, 2016 Applicable only for Non-RPP Customers","$/kWh",3.0000000000000001E-3]
["Rate Rider for Disposition of Deferred PILs Variance Account 1562 - effective until April 30, 2014","$/kWh",-3.0000000000000001E-3,null,"Retail Transmission Rate - Network Service Rate","$/kWh",6.3E-3]
["Rate Rider for Application of Tax Change - effective until April 30, 2014","$/kWh",-1E-4,null,"Retail Transmission Rate - Line and Transformation Connection Service Rate","$/kWh",4.1999999999999997E-3]
["Retail Transmission Rate - Network Service Rate","$/kWh",6.1999999999999998E-3,null,"Rate Rider for Tax Change","$/kWh",-1E-4]
["Retail Transmission Rate - Line and Transformation Connection Service Rate","$/kWh",4.0000000000000001E-3,null,"Wholesale Market Service Rate","$/kWh",4.4000000000000003E-3]
["Wholesale Market Service Rate","$/kWh",4.4000000000000003E-3,null,"Rural Rate Protection Charge","$/kWh",1.1999999999999999E-3]
["Rural Rate Protection Charge","$/kWh",1.1999999999999999E-3,null,"Standard Supply Service - Administrative Charge (if applicable)","$",0.25]
["Standard Supply Service - Administrative Charge (if applicable)","$",0.25]
["GENERAL SERVICE 50 TO 4,999 KW",null,null,null,"GENERAL SERVICE 50 TO 4,999 KW"]
["Service Charge","$",177.1,null,"Service Charge","$",178.84]
["Distribution Volumetric Rate","$/kW",4.1814999999999998,null,"Distribution Volumetric Rate","$/kW",4.2225000000000001]
["Low Voltage Service Rate","$/kW",0.15920000000000001,null,"Low Voltage Service Rate","$/kW",0.15920000000000001]
["Rate Rider for Disposition of Deferral/Variance Accounts (2012) - effective until April 30, 2014","$/kW",-0.37340000000000001,null,"Rate Rider for Deferral/Variance Account Disposition (2014) - effective until April 28, 2016","$/kW",-0.97629999999999995]
["Rate Rider for Disposition of Global Adjustment Sub-Account (2012) - effective until April 30, 2014 Applicable only for Non-RPP Customers","$/kW",-0.184,null,"Rate Rider for Global Adjustment Sub-Account Disposition (2014) - effective until April 28, 2016 Applicable only for Non-RPP Customers","$/kW",1.0363]
["Rate Rider for Disposition of Deferred PILs Variance Account 1562 - effective until April 30, 2014","$/kW",-0.44969999999999999,null,"Retail Transmission Rate - Network Service Rate","$/kW",2.5998999999999999]
["Rate Rider for Application of Tax Change - effective until April 30, 2014","$/kW",-1.24E-2,null,"Retail Transmission Rate - Line and Transformation Connection Service Rate","$/kW",1.6503000000000001]
["Retail Transmission Rate - Network Service Rate","$/kW",2.5508000000000002,null,"Rate Rider for Tax Change","$/kW",-1.78E-2]
["Retail Transmission Rate - Line and Transformation Connection Service Rate","$/kW",1.5766,null,"Wholesale Market Service Rate","$/kWh",4.4000000000000003E-3]
["Wholesale Market Service Rate","$/kWh",4.4000000000000003E-3,null,"Rural Rate Protection Charge","$/kWh",1.1999999999999999E-3]
["Rural Rate Protection Charge","$/kWh",1.1999999999999999E-3,null,"Standard Supply Service - Administrative Charge (if applicable)","$",0.25]
["Standard Supply Service - Administrative Charge (if applicable)","$",0.25]
["UNMETERED SCATTERED LOAD",null,null,null,"UNMETERED SCATTERED LOAD"]
["Service Charge","$",19.260000000000002,null,"Service Charge","$",19.45]
["Distribution Volumetric Rate","$/kWh",1.35E-2,null,"Distribution Volumetric Rate","$/kWh",1.3599999999999999E-2]
["Low Voltage Service Rate","$/kWh",4.0000000000000002E-4,null,"Low Voltage Service Rate","$/kWh",4.0000000000000002E-4]
["Rate Rider for Disposition of Deferral/Variance Accounts (2012) - effective until April 30, 2014","$/kWh",-1.1000000000000001E-3,null,"Rate Rider for Deferral/Variance Account Disposition (2014) - effective until April 28, 2016","$/kWh",-2.8E-3]
["Rate Rider for Disposition of Global Adjustment Sub-Account (2012) - effective until April 30, 2014 Applicable only for Non-RPP Customers","$/kWh",-5.0000000000000001E-4,null,"Rate Rider for Global Adjustment Sub-Account Disposition (2014) - effective until April 28, 2016 Applicable only for Non-RPP Customers","$/kWh",3.0000000000000001E-3]
["Rate Rider for Disposition of Deferred PILs Variance Account 1562 - effective until April 30, 2014","$/kWh",-7.4999999999999997E-3,null,"Retail Transmission Rate - Network Service Rate","$/kWh",6.3E-3]
["Rate Rider for Application of Tax Change - effective until April 30, 2014","$/kWh",-1E-4,null,"Retail Transmission Rate - Line and Transformation Connection Service Rate","$/kWh",4.1999999999999997E-3]
["Retail Transmission Rate - Network Service Rate","$/kWh",6.1999999999999998E-3,null,"Rate Rider for Tax Change","$/kWh",-2.0000000000000001E-4]
["Retail Transmission Rate - Line and Transformation Connection Service Rate","$/kWh",4.0000000000000001E-3,null,"Wholesale Market Service Rate","$/kWh",4.4000000000000003E-3]
["Wholesale Market Service Rate","$/kWh",4.4000000000000003E-3,null,"Rural Rate Protection Charge","$/kWh",1.1999999999999999E-3]
["Rural Rate Protection Charge","$/kWh",1.1999999999999999E-3,null,"Standard Supply Service - Administrative Charge (if applicable)","$",0.25]
["Standard Supply Service - Administrative Charge (if applicable)","$",0.25]
["SENTINEL LIGHTING",null,null,null,"SENTINEL LIGHTING"]
["Service Charge","$",12.69,null,"Service Charge","$",12.81]
["Distribution Volumetric Rate","$/kW",15.833600000000001,null,"Distribution Volumetric Rate","$/kW",15.988799999999999]
["Low Voltage Service Rate","$/kW",0.13300000000000001,null,"Low Voltage Service Rate","$/kW",0.13300000000000001]
["Rate Rider for Disposition of Deferral/Variance Accounts (2012) - effective until April 30, 2014","$/kW",-0.39129999999999998,null,"Rate Rider for Deferral/Variance Account Disposition (2014) - effective until April 28, 2016","$/kW",-1.0489999999999999]
["Rate Rider for Disposition of Global Adjustment Sub-Account (2012) - effective until April 30, 2014 Applicable only for Non-RPP Customers","$/kW",-0.1928,null,"Rate Rider for Global Adjustment Sub-Account Disposition (2014) - effective until April 28, 2016 Applicable only for Non-RPP Customers","$/kW",1.0860000000000001]
["Rate Rider for Disposition of Deferred PILs Variance Account 1562 - effective until April 30, 2014","$/kW",-1.3281000000000001,null,"Retail Transmission Rate - Network Service Rate","$/kW",1.925]
["Rate Rider for Application of Tax Change - effective until April 30, 2014","$/kW",-0.2235,null,"Retail Transmission Rate - Line and Transformation Connection Service Rate","$/kW",1.3789]
["Retail Transmission Rate - Network Service Rate","$/kW",1.8886000000000001,null,"Rate Rider for Tax Change","$/kW",-0.4168]
["Retail Transmission Rate - Line and Transformation Connection Service Rate","$/kW",1.3173999999999999,null,"Wholesale Market Service Rate","$/kWh",4.4000000000000003E-3]
["Wholesale Market Service Rate","$/kWh",4.4000000000000003E-3,null,"Rural Rate Protection Charge","$/kWh",1.1999999999999999E-3]
["Rural Rate Protection Charge","$/kWh",1.1999999999999999E-3,null,"Standard Supply Service - Administrative Charge (if applicable)","$",0.25]
["Standard Supply Service - Administrative Charge (if applicable)","$",0.25]
["STREET LIGHTING",null,null,null,"STREET LIGHTING"]
["Service Charge","$",1.1299999999999999,null,"Service Charge","$",1.1399999999999999]
["Distribution Volumetric Rate","$/kW",4.4039999999999999,null,"Distribution Volumetric Rate","$/kW",4.4471999999999996]
["Low Voltage Service Rate","$/kW",0.12230000000000001,null,"Low Voltage Service Rate","$/kW",0.12230000000000001]
["Rate Rider for Disposition of Deferral/Variance Accounts (2012) - effective until April 30, 2014","$/kW",-0.40150000000000002,null,"Rate Rider for Deferral/Variance Account Disposition (2014) - effective until April 28, 2016","$/kW",-1.0576000000000001]
["Rate Rider for Disposition of Global Adjustment Sub-Account (2012) - effective until April 30, 2014 Applicable only for Non-RPP Customers","$/kW",-0.19789999999999999,null,"Rate Rider for Global Adjustment Sub-Account Disposition (2014) - effective until April 28, 2016 Applicable only for Non-RPP Customers","$/kW",1.1143000000000001]
["Rate Rider for Disposition of Deferred PILs Variance Account 1562 - effective until April 30, 2014","$/kW",-0.4229,null,"Retail Transmission Rate - Network Service Rate","$/kW",1.9655]
["Rate Rider for Application of Tax Change - effective until April 30, 2014","$/kW",-2.5499999999999998E-2,null,"Retail Transmission Rate - Line and Transformation Connection Service Rate","$/kW",1.2679]
["Retail Transmission Rate - Network Service Rate","$/kW",1.9283999999999999,null,"Rate Rider for Tax Change","$/kW",-4.3900000000000002E-2]
["Retail Transmission Rate - Line and Transformation Connection Service Rate","$/kW",1.2113,null,"Wholesale Market Service Rate","$/kWh",4.4000000000000003E-3]
["Wholesale Market Service Rate","$/kWh",4.4000000000000003E-3,null,"Rural Rate Protection Charge","$/kWh",1.1999999999999999E-3]
["Rural Rate Protection Charge","$/kWh",1.1999999999999999E-3,null,"Standard Supply Service - Administrative Charge (if applicable)","$",0.25]
["Standard Supply Service - Administrative Charge (if applicable)","$",0.25]
["microFIT",null,null,null,"microFIT"]
["Service Charge","$",5.4,null,"Service Charge","$",5.4]

{"sheet":"13. Final Tariff Schedule","index":16,"n_rows":341,"n_cols":27,"rows_kept":341,"cut":false,"hidden":false,"merged":[[27,0,27,8],[31,0,31,8],[33,0,33,8],[35,0,35,8],[52,0,52,5],[54,0,54,5],[111,0,111,5],[112,0,112,5],[113,0,113,5],[231,0,231,8],[233,0,233,8],[235,0,235,8],[212,0,212,5],[213,0,213,5],[214,0,214,5],[215,0,215,5],[216,0,216,5],[218,0,218,5],[220,0,220,5],[221,0,221,5],[222,0,222,5],[2,0,2,8],[11,0,17,7],[148,0,148,5],[150,0,150,5],[115,0,115,5],[117,0,117,5],[42,0,42,5],[43,0,43,5],[44,0,44,5],[55,0,55,5],[67,0,67,8],[69,0,69,8],[71,0,71,8],[75,0,75,5],[76,0,76,5],[78,0,78,5],[83,0,83,5],[88,0,88,5],[80,0,80,5],[81,0,81,5],[82,0,82,5],[84,0,84,5],[86,0,86,5],[114,0,114,5],[116,0,116,5],[119,0,119,5],[37,0,37,8],[41,0,41,5],[187,0,187,5],[105,0,105,8],[183,0,183,5],[189,0,189,5],[18,0,18,8],[19,0,19,8],[20,0,20,8],[21,0,21,8],[22,0,22,8],[23,0,23,8],[24,0,24,8],[61,0,61,8],[65,0,65,8],[56,0,56,5],[45,0,45,5],[46,0,46,5],[47,0,47,5],[48,0,48,5],[49,0,49,5],[50,0,50,5],[77,0,77,5],[79,0,79,5],[103,0,103,8],[109,0,109,5],[110,0,110,5],[89,0,89,5],[90,0,90,5],[95,0,95,8],[99,0,99,8],[101,0,101,8],[147,0,147,5],[144,0,144,5],[145,0,145,5],[146,0,146,5],[121,0,121,5],[122,0,122,5],[123,0,123,5],[128,0,128,8],[132,0,132,8],[134,0,134,8],[136,0,136,8],[138,0,138,8],[142,0,142,5],[143,0,143,5],[149,0,149,5],[152,0,152,5],[154,0,154,5],[155,0,155,5],[156,0,156,5],[161,0,161,8],[165,0,165,8],[167,0,167,8],[188,0,188,5],[194,0,194,8],[241,0,241,5],[243,0,243,5],[169,0,169,8],[171,0,171,8],[175,0,175,5],[176,0,176,5],[177,0,177,5],[179,0,179,5],[180,0,180,5],[181,0,181,5],[182,0,182,5],[237,0,237,8],[202,0,202,8],[178,0,178,5],[185,0,185,5],[198,0,198,8],[200,0,200,8],[204,0,204,8],[208,0,208,5],[209,0,209,5],[210,0,210,5],[211,0,211,5],[227,0,227,8]]}
[null,null,null,null,null,null,null,null,null,null,null,null,null,null,null,null,null,null,null,null,null,null,null,null,3,3,"≥"]
[null,null,null,null,null,null,null,null,null,null,null,null,null,null,null,null,null,null,null,null,null,null,null,null,null,"February"]
[null,null,null,null,null,null,null,null,null,null,null,null,null,null,null,null,null,null,null,null,null,null,null,null,null,"March"]
[null,null,null,null,null,null,null,null,null,null,null,null,null,null,null,null,null,null,null,null,null,null,null,null,null,"April"]
[null,null,null,null,null,null,null,null,null,null,null,null,null,null,null,null,null,null,null,null,null,null,null,null,null,"May"]
[null,null,null,null,null,null,null,null,null,null,null,null,null,null,null,null,null,null,null,null,null,null,null,null,null,"June"]
[null,null,null,null,null,null,null,null,null,null,null,null,null,null,null,null,null,null,null,null,null,null,null,null,null,"July"]
[null,null,null,null,null,null,null,null,null,null,null,null,null,null,null,null,null,null,null,null,null,null,null,null,null,"August"]
[null,null,null,null,null,null,null,null,null,null,null,null,null,null,null,null,null,null,null,null,null,null,null,null,null,"September"]
[null,null,null,null,null,null,null,null,null,null,null,null,null,null,null,null,null,null,null,null,null,null,null,null,null,"October"]
[null,null,null,null,null,null,null,null,null,null,null,null,null,null,null,null,null,null,null,null,null,null,null,null,null,"November"]
["The following is a complete Tariff Schedule based on the information entered in this model. Pressing \nthe button on the right hand side will transfer the tariff schedule to a new file.",null,null,null,null,null,null,null,null,null,null,null,null,null,null,null,null,null,null,null,null,null,null,null,null,"December"]
[]
[]
[]
[]
[]
[]
[{"$f":"'1. Information Sheet'!F14","v":"Niagara Peninsula Energy Inc."}]
["TARIFF OF RATES AND CHARGES"]
[{"$f":"\"Effective and Implementation Date \" & TEXT('1. Information Sheet'!F26, \"mmmm dd, yyyy\")","v":"Effective and Implementation Date May 01, 2014"}]
[]
["This schedule supersedes and replaces all previously"]
["approved schedules of Rates, Charges and Loss Factors"]
[{"$f":"'1. Information Sheet'!F18","v":"EB-2013-0154"}]
["RESIDENTIAL SERVICE CLASSIFICATION"]
[]
["This class pertains to customers residing in detached, semi-detached or duplex dwelling units, where energy is supplied single-phase, 3 wire, 60 hertz, having a nominal voltage of 120/240 volts.  Large residential services will include all services from 201 amp. up to and including 400 amp., 120/240 volt, single phase, three wire.  Further servicing details are available in the distributor's Conditions of Service."]
[]
["APPLICATION"]
[]
["The application of these rates and charges shall be in accordance with the Licence of the Distributor and any Code or Order of the Board, and amendments thereto as approved by the Board, which may be applicable to the administration of this schedule."]
[]
["No rates and charges for the distribution of electricity and charges to meet the costs of any work or service done or furnished for the purpose of the distribution of electricity shall be made except as permitted by this schedule, unless required by the Distributor's Licence or a Code or Order of the Board, and amendments thereto as approved by the Board, or as specified herein."]
[]
["Unless specifically noted, this schedule does not contain any charges for the electricity commodity, be it under the Regulated Price Plan, a contract with a retailer or the wholesale market price, as applicable. In addition, the charges in the MONTHLY RATES AND CHARGES - Regulatory component of this schedule do not apply to a customer that is an embedded wholesale market participant."]
[]
["It should be noted that this schedule does not list any charges, assessments or credits that are required by law to be invoiced by a distributor and that are not subject to Board approval, such as the Debt Retirement Charge, the Global Adjustment, the Ontario Clean Energy Benefit and the HST."]
[]
["MONTHLY RATES AND CHARGES - Delivery Component"]
[]
["Service Charge",null,null,null,null,null,null,"$",16]
["Rate Rider for Smart Metering Entity Charge - effective until October 31, 2018",null,null,null,null,null,null,"$",0.79]
["Distribution Volumetric Rate",null,null,null,null,null,null,"$/kWh",1.61E-2]
["Low Voltage Service Rate",null,null,null,null,null,null,"$/kWh",5.0000000000000001E-4]
["Rate Rider for Deferral/Variance Account Disposition (2014) - effective until April 28, 2016",null,null,null,null,null,null,"$/kWh",-2.8E-3]
["Rate Rider for Global Adjustment Sub-Account Disposition (2014) - effective until April 28, 2016 "]
["Applicable only for Non-RPP Customers",null,null,null,null,null,null,"$/kWh",3.0000000000000001E-3]
["Retail Transmission Rate - Network Service Rate",null,null,null,null,null,null,"$/kWh",6.8999999999999999E-3]
["Retail Transmission Rate - Line and Transformation Connection Service Rate",null,null,null,null,null,null,"$/kWh",4.7000000000000002E-3]
["Rate Rider for Tax Change",null,null,null,null,null,null,"$/kWh",-1E-4]
[]
["MONTHLY RATES AND CHARGES - Regulatory Component"]
[]
["Wholesale Market Service Rate",null,null,null,null,null,null,"$/kWh",4.4000000000000003E-3]
["Rural Rate Protection Charge",null,null,null,null,null,null,"$/kWh",1.1999999999999999E-3]
["Standard Supply Service - Administrative Charge (if applicable)",null,null,null,null,null,null,"$",0.25]
[]
[]
["GENERAL SERVICE LESS THAN 50 KW SERVICE CLASSIFICATION"]
[]
["This class pertains to non-residential customers taking electricity at 750 volts or less whose monthly average peak demand is less than, or is forecast to be less than, 50 kW.  Further servicing details are available in the distributor's Conditions of Service."]
[]
["APPLICATION"]
[]
["The application of these rates and charges shall be in accordance with the Licence of the Distributor and any Code or Order of the Board, and amendments thereto as approved by the Board, which may be applicable to the administration of this schedule."]
[]
["No rates and charges for the distribution of electricity and charges to meet the costs of any work or service done or furnished for the purpose of the distribution of electricity shall be made except as permitted by this schedule, unless required by the Distributor's Licence or a Code or Order of the Board, and amendments thereto as approved by the Board, or as specified herein."]
[]
["Unless specifically noted, this schedule does not contain any charges for the electricity commodity, be it under the Regulated Price Plan, a contract with a retailer or the wholesale market price, as applicable. In addition, the charges in the MONTHLY RATES AND CHARGES - Regulatory component of this schedule do not apply to a customer that is an embedded wholesale market participant."]
[]
["It should be noted that this schedule does not list any charges, assessments or credits that are required by law to be invoiced by a distributor and that are not subject to Board approval, such as the Debt Retirement Charge, the Global Adjustment, the Ontario Clean Energy Benefit and the HST."]
[]
["MONTHLY RATES AND CHARGES - Delivery Component"]
[]
["Service Charge",null,null,null,null,null,null,"$",37.64]
["Rate Rider for Smart Metering Entity Charge - effective until October 31, 2018",null,null,null,null,null,null,"$",0.79]
["Distribution Volumetric Rate",null,null,null,null,null,null,"$/kWh",1.37E-2]
["Low Voltage Service Rate",null,null,null,null,null,null,"$/kWh",4.0000000000000002E-4]
["Rate Rider for Deferral/Variance Account Disposition (2014) - effective until April 28, 2016",null,null,null,null,null,null,"$/kWh",-2.8999999999999998E-3]
["Rate Rider for Global Adjustment Sub-Account Disposition (2014) - effective until April 28, 2016 "]
["Applicable only for Non-RPP Customers",null,null,null,null,null,null,"$/kWh",3.0000000000000001E-3]
["Retail Transmission Rate - Network Service Rate",null,null,null,null,null,null,"$/kWh",6.3E-3]
["Retail Transmission Rate - Line and Transformation Connection Service Rate",null,null,null,null,null,null,"$/kWh",4.1999999999999997E-3]
["Rate Rider for Tax Change",null,null,null,null,null,null,"$/kWh",-1E-4]
[]
["MONTHLY RATES AND CHARGES - Regulatory Component"]
[]
["Wholesale Market Service Rate",null,null,null,null,null,null,"$/kWh",4.4000000000000003E-3]
["Rural Rate Protection Charge",null,null,null,null,null,null,"$/kWh",1.1999999999999999E-3]
["Standard Supply Service - Administrative Charge (if applicable)",null,null,null,null,null,null,"$",0.25]
[]
[]
["GENERAL SERVICE 50 TO 4,999 KW SERVICE CLASSIFICATION"]
[]
["This classification referes to a non residential account whose monthly average peak demand is equal to or greater than, or is forecast to be equal to or greater than 50 kW but less than 5,000 kW.  Further servicing details are available in the distributor's Conditions of Service."]
[]
["APPLICATION"]
[]
["The application of these rates and charges shall be in accordance with the Licence of the Distributor and any Code or Order of the Board, and amendments thereto as approved by the Board, which may be applicable to the administration of this schedule."]
[]
["No rates and charges for the distribution of electricity and charges to meet the costs of any work or service done or furnished for the purpose of the distribution of electricity shall be made except as permitted by this schedule, unless required by the Distributor's Licence or a Code or Order of the Board, and amendments thereto as approved by the Board, or as specified herein."]
[]
["Unless specifically noted, this schedule does not contain any charges for the electricity commodity, be it under the Regulated Price Plan, a contract with a retailer or the wholesale market price, as applicable. In addition, the charges in the MONTHLY RATES AND CHARGES - Regulatory component of this schedule do not apply to a customer that is an embedded wholesale market participant."]
[]
["It should be noted that this schedule does not list any charges, assessments or credits that are required by law to be invoiced by a distributor and that are not subject to Board approval, such as the Debt Retirement Charge, the Global Adjustment, the Ontario Clean Energy Benefit and the HST."]
[]
["MONTHLY RATES AND CHARGES - Delivery Component"]
[]
["Service Charge",null,null,null,null,null,null,"$",178.84]
["Distribution Volumetric Rate",null,null,null,null,null,null,"$/kW",4.2225000000000001]
["Low Voltage Service Rate",null,null,null,null,null,null,"$/kW",0.15920000000000001]
["Rate Rider for Deferral/Variance Account Disposition (2014) - effective until April 28, 2016",null,null,null,null,null,null,"$/kW",-0.97629999999999995]
["Rate Rider for Global Adjustment Sub-Account Disposition (2014) - effective until April 28, 2016 "]
["Applicable only for Non-RPP Customers",null,null,null,null,null,null,"$/kW",1.0363]
["Retail Transmission Rate - Network Service Rate",null,null,null,null,null,null,"$/kW",2.5998999999999999]
["Retail Transmission Rate - Line and Transformation Connection Service Rate",null,null,null,null,null,null,"$/kW",1.6503000000000001]
["Rate Rider for Tax Change",null,null,null,null,null,null,"$/kW",-1.78E-2]
[]
["MONTHLY RATES AND CHARGES - Regulatory Component"]
[]
["Wholesale Market Service Rate",null,null,null,null,null,null,"$/kWh",4.4000000000000003E-3]
["Rural Rate Protection Charge",null,null,null,null,null,null,"$/kWh",1.1999999999999999E-3]
["Standard Supply Service - Administrative Charge (if applicable)",null,null,null,null,null,null,"$",0.25]
[]
[]
["UNMETERED SCATTERED LOAD SERVICE CLASSIFICATION"]
[]
["This classification refers to an account taking electricity at 750 volts or less whos monthly averge peak demand is less than, or forecast to be less than, 50 kW and the consumption is unmetered.  Such connections include cable TV power pack, bus shelters, telephone booths, traffic lights, railway crossings etc.  The customer will provide detailed manufacturer information/documentation with regard to electricity demand/consumption of the proposed unmetered load.  Further servicing details are available in the distributor's Conditions of Service."]
[]
["APPLICATION"]
[]
["The application of these rates and charges shall be in accordance with the Licence of the Distributor and any Code or Order of the Board, and amendments thereto as approved by the Board, which may be applicable to the administration of this schedule."]
[]
["No rates and charges for the distribution of electricity and charges to meet the costs of any work or service done or furnished for the purpose of the distribution of electricity shall be made except as permitted by this schedule, unless required by the Distributor's Licence or a Code or Order of the Board, and amendments thereto as approved by the Board, or as specified herein."]
[]
["Unless specifically noted, this schedule does not contain any charges for the electricity commodity, be it under the Regulated Price Plan, a contract with a retailer or the wholesale market price, as applicable. In addition, the charges in the MONTHLY RATES AND CHARGES - Regulatory component of this schedule do not apply to a customer that is an embedded wholesale market participant."]
[]
["It should be noted that this schedule does not list any charges, assessments or credits that are required by law to be invoiced by a distributor and that are not subject to Board approval, such as the Debt Retirement Charge, the Global Adjustment, the Ontario Clean Energy Benefit and the HST."]
[]
["MONTHLY RATES AND CHARGES - Delivery Component"]
[]
["Service Charge",null,null,null,null,null,null,"$",19.45]
["Distribution Volumetric Rate",null,null,null,null,null,null,"$/kWh",1.3599999999999999E-2]
["Low Voltage Service Rate",null,null,null,null,null,null,"$/kWh",4.0000000000000002E-4]
["Rate Rider for Deferral/Variance Account Disposition (2014) - effective until April 28, 2016",null,null,null,null,null,null,"$/kWh",-2.8E-3]
["Rate Rider for Global Adjustment Sub-Account Disposition (2014) - effective until April 28, 2016 "]
["Applicable only for Non-RPP Customers",null,null,null,null,null,null,"$/kWh",3.0000000000000001E-3]
["Retail Transmission Rate - Network Service Rate",null,null,null,null,null,null,"$/kWh",6.3E-3]
["Retail Transmission Rate - Line and Transformation Connection Service Rate",null,null,null,null,null,null,"$/kWh",4.1999999999999997E-3]
["Rate Rider for Tax Change",null,null,null,null,null,null,"$/kWh",-2.0000000000000001E-4]
[]
["MONTHLY RATES AND CHARGES - Regulatory Component"]
[]
["Wholesale Market Service Rate",null,null,null,null,null,null,"$/kWh",4.4000000000000003E-3]
["Rural Rate Protection Charge",null,null,null,null,null,null,"$/kWh",1.1999999999999999E-3]
["Standard Supply Service - Administrative Charge (if applicable)",null,null,null,null,null,null,"$",0.25]
[]
[]
["SENTINEL LIGHTING SERVICE CLASSIFICATION"]
[]
["This classification refers to accounts that are an unmetered lighting load supplied to a sentinel light.  Further servicing details are available in the distributor's Conditions of Service."]
[]
["APPLICATION"]
[]
["The application of these rates and charges shall be in accordance with the Licence of the Distributor and any Code or Order of the Board, and amendments thereto as approved by the Board, which may be applicable to the administration of this schedule."]
[]
["No rates and charges for the distribution of electricity and charges to meet the costs of any work or service done or furnished for the purpose of the distribution of electricity shall be made except as permitted by this schedule, unless required by the Distributor's Licence or a Code or Order of the Board, and amendments thereto as approved by the Board, or as specified herein."]
[]
["Unless specifically noted, this schedule does not contain any charges for the electricity commodity, be it under the Regulated Price Plan, a contract with a retailer or the wholesale market price, as applicable. In addition, the charges in the MONTHLY RATES AND CHARGES - Regulatory component of this schedule do not apply to a customer that is an embedded wholesale market participant."]
[]
["It should be noted that this schedule does not list any charges, assessments or credits that are required by law to be invoiced by a distributor and that are not subject to Board approval, such as the Debt Retirement Charge, the Global Adjustment, the Ontario Clean Energy Benefit and the HST."]
[]
["MONTHLY RATES AND CHARGES - Delivery Component"]
[]
["Service Charge",null,null,null,null,null,null,"$",12.81]
["Distribution Volumetric Rate",null,null,null,null,null,null,"$/kW",15.988799999999999]
["Low Voltage Service Rate",null,null,null,null,null,null,"$/kW",0.13300000000000001]
["Rate Rider for Deferral/Variance Account Disposition (2014) - effective until April 28, 2016",null,null,null,null,null,null,"$/kW",-1.0489999999999999]
["Rate Rider for Global Adjustment Sub-Account Disposition (2014) - effective until April 28, 2016 "]
["Applicable only for Non-RPP Customers",null,null,null,null,null,null,"$/kW",1.0860000000000001]
["Retail Transmission Rate - Network Service Rate",null,null,null,null,null,null,"$/kW",1.925]
["Retail Transmission Rate - Line and Transformation Connection Service Rate",null,null,null,null,null,null,"$/kW",1.3789]
["Rate Rider for Tax Change",null,null,null,null,null,null,"$/kW",-0.4168]
[]
["MONTHLY RATES AND CHARGES - Regulatory Component"]
[]
["Wholesale Market Service Rate",null,null,null,null,null,null,"$/kWh",4.4000000000000003E-3]
["Rural Rate Protection Charge",null,null,null,null,null,null,"$/kWh",1.1999999999999999E-3]
["Standard Supply Service - Administrative Charge (if applicable)",null,null,null,null,null,null,"$",0.25]
[]
[]
["STREET LIGHTING SERVICE CLASSIFICATION"]
[]
["This classification refers to an account for roadway lighting with a Municipality, Regional Municipality, Ministry of Transportation and private roadway lighting operation, controlled by photo cells.  Street lighting profile is derived throught the use of a \"virtual streetlight meter\" that uses a street light control eye, consistent with the model type and product manufacturer of devices currently in service in the Applicant's distribution area, to simulate the exact daily condititions that the typical street light is exposed to.  This simulated street light load is captured using an interval metering device, and is processed as part of the distributor's daily interval meter interrogation, validation and processing procedures.   Further servicing details are available in the distributor's Conditions of Service."]
[]
["APPLICATION"]
[]
["The application of these rates and charges shall be in accordance with the Licence of the Distributor and any Code or Order of the Board, and amendments thereto as approved by the Board, which may be applicable to the administration of this schedule."]
[]
["No rates and charges for the distribution of electricity and charges to meet the costs of any work or service done or furnished for the purpose of the distribution of electricity shall be made except as permitted by this schedule, unless required by the Distributor's Licence or a Code or Order of the Board, and amendments thereto as approved by the Board, or as specified herein."]
[]
["Unless specifically noted, this schedule does not contain any charges for the electricity commodity, be it under the Regulated Price Plan, a contract with a retailer or the wholesale market price, as applicable. In addition, the charges in the MONTHLY RATES AND CHARGES - Regulatory component of this schedule do not apply to a customer that is an embedded wholesale market participant."]
[]
["It should be noted that this schedule does not list any charges, assessments or credits that are required by law to be invoiced by a distributor and that are not subject to Board approval, such as the Debt Retirement Charge, the Global Adjustment, the Ontario Clean Energy Benefit and the HST."]
[]
["MONTHLY RATES AND CHARGES - Delivery Component"]
[]
["Service Charge",null,null,null,null,null,null,"$",1.1399999999999999]
["Distribution Volumetric Rate",null,null,null,null,null,null,"$/kW",4.4471999999999996]
["Low Voltage Service Rate",null,null,null,null,null,null,"$/kW",0.12230000000000001]
["Rate Rider for Deferral/Variance Account Disposition (2014) - effective until April 28, 2016",null,null,null,null,null,null,"$/kW",-1.0576000000000001]
["Rate Rider for Global Adjustment Sub-Account Disposition (2014) - effective until April 28, 2016 "]
["Applicable only for Non-RPP Customers",null,null,null,null,null,null,"$/kW",1.1143000000000001]
["Retail Transmission Rate - Network Service Rate",null,null,null,null,null,null,"$/kW",1.9655]
["Retail Transmission Rate - Line and Transformation Connection Service Rate",null,null,null,null,null,null,"$/kW",1.2679]
["Rate Rider for Tax Change",null,null,null,null,null,null,"$/kW",-4.3900000000000002E-2]
[]
["MONTHLY RATES AND CHARGES - Regulatory Component"]
[]
["Wholesale Market Service Rate",null,null,null,null,null,null,"$/kWh",4.4000000000000003E-3]
["Rural Rate Protection Charge",null,null,null,null,null,null,"$/kWh",1.1999999999999999E-3]
["Standard Supply Service - Administrative Charge (if applicable)",null,null,null,null,null,null,"$",0.25]
[]
[]
["MICROFIT SERVICE CLASSIFICATION"]
[]
["This classification applies to an electricity generation facility contracted under the Ontario Power Authority's microFIT program and connected to the distributor's distribution system.  Further servicing details are available in the distributor's Conditions of Service."]
[]
["APPLICATION"]
[]
["The application of these rates and charges shall be in accordance with the Licence of the Distributor and any Code or Order of the Board, and amendments thereto as approved by the Board, which may be applicable to the administration of this schedule."]
[]
["No rates and charges for the distribution of electricity and charges to meet the costs of any work or service done or furnished for the purpose of the distribution of electricity shall be made except as permitted by this schedule, unless required by the Distributor's Licence or a Code or Order of the Board, and amendments thereto as approved by the Board, or as specified herein."]
[]
["Unless specifically noted, this schedule does not contain any charges for the electricity commodity, be it under the Regulated Price Plan, a contract with a retailer or the wholesale market price, as applicable."]
[]
["It should be noted that this schedule does not list any charges, assessments or credits that are required by law to be invoiced by a distributor and that are not subject to Board approval, such as the Debt Retirement Charge, the Global Adjustment, the Ontario Clean Energy Benefit and the HST."]
[]
["MONTHLY RATES AND CHARGES - Delivery Component"]
[]
["Service Charge",null,null,null,null,null,null,"$",5.4]
[]
["MONTHLY RATES AND CHARGES - Regulatory Component"]
[]
["MONTHLY RATES AND CHARGES - Regulatory Component"]
[]
[]
["ALLOWANCES"]
[]
["Transformer Allowance for Ownership - per kW of billing demand/month",null,null,null,null,null,null,"$/kW",-0.6]
["Primary Metering Allowance for transformer losses – applied to measured demand and energy",null,null,null,null,null,null,"%",-1]
[]
["SPECIFIC SERVICE CHARGES"]
[]
["APPLICATION"]
[]
["The application of these rates and charges shall be in accordance with the Licence of the Distributor and any Code or"]
["Order of the Board, and amendments thereto as approved by the Board, which may be applicable to the "]
["administration of this schedule"]
[]
["No charges to meet the costs of any work or service done or furnished for the purpose of the distribution of electricity"]
["shall be made except as permitted by this schedule, unless required by the Distributor’s Licence or a Code or Order"]
["of the Board, and amendments thereto as approved by the Board, or as specified herein. "]
[]
["It should be noted that this schedule does not list any charges, assessments, or credits that are required by law to be"]
["invoiced by a distributor and that are not subject to Board approval, such as the Debt Retirement Charge, the Global "]
["Adjustment, the Ontario Clean Energy Benefit and the HST."]
[]
[]
["Customer Administration"]
[]
["Returned cheque (plus bank charges)",null,null,null,null,null,null,"$",20]
["Legal letter charge",null,null,null,null,null,null,"$",15]
["Account set up charge/change of occupancy charge (plus credit agency costs if applicable)",null,null,null,null,null,null,"$",30]
["Meter dispute charge plus Measurement Canada fees (if meter found correct)",null,null,null,null,null,null,"$",30]
[]
["Non-Payment of Account"]
[]
["Late Payment – per month",null,null,null,null,null,null,"%",1.5]
["Late Payment – per annum",null,null,null,null,null,null,"%",19.559999999999999]
["Collection of account charge – no disconnection",null,null,null,null,null,null,"$",30]
["Collection of account charge – no disconnection – after regular hours",null,null,null,null,null,null,"$",165]
["Disconnect/Reconnect at meter – during regular hours",null,null,null,null,null,null,"$",65]
["Disconnect/Reconnect at meter – after regular hours",null,null,null,null,null,null,"$",185]
["Disconnect/Reconnect at pole – during regular hours",null,null,null,null,null,null,"$",185]
["Disconnect/Reconnect at pole – after regular hours",null,null,null,null,null,null,"$",415]
["Install/Remove load control device – during regular hours",null,null,null,null,null,null,"$",65]
["Install/Remove load control device – after regular hours",null,null,null,null,null,null,"$",185]
["Service call – customer owned equipment",null,null,null,null,null,null,"$",30]
["Service call – after regular hours",null,null,null,null,null,null,"$",165]
["Temporary service install & remove – overhead – no transformer",null,null,null,null,null,null,"$",500]
["Temporary Service – Install & remove – underground – no transformer",null,null,null,null,null,null,"$",300]
["Temporary Service Install & Remove – Overhead – With Transformer",null,null,null,null,null,null,"$",1000]
["Specific Charge for Access to the Power Poles - $/pole/year",null,null,null,null,null,null,"$",22.35]
["RETAIL SERVICE CHARGES (if applicable)"]
[]
["The application of these rates and charges shall be in accordance with the Licence of the Distributor and any Code or"]
["Order of the Board, and amendments thereto as approved by the Board, which may be applicable to the "]
["administration of this schedule."]
[]
["No rates and charges for the distribution of electricity and charges to meet the costs of any work or service done or"]
["furnished for the purpose of the distribution of electricity shall be made except as permitted by this schedule, unless "]
["required by the Distributor’s Licence or a Code or Order of the Board, and amendments thereto as approved by the "]
["Board, or as specified herein. "]
[]
["Unless specifically noted, this schedule does not contain any charges for the electricity commodity, be it under the"]
["Regulated Price Plan, a contract with a retailer or the wholesale market price, as applicable."]
[]
["It should be noted that this schedule does not list any charges, assessments, or credits that are required by law to be"]
["invoiced by a distributor and that are not subject to Board approval, such as the Debt Retirement Charge, the Global "]
["Adjustment, the Ontario Clean Energy Benefit and the HST. "]
[]
[]
["Retail Service Charges refer to services provided by a distributor to retailers or customers related  "]
["to the supply of competitive electricity"]
[]
[]
["One-time charge, per retailer, to establish the service agreement between the distributor and the retailer",null,null,null,null,null,null,"$",100]
["Monthly Fixed Charge, per retailer",null,null,null,null,null,null,"$",20]
["Monthly Variable Charge, per customer, per retailer",null,null,null,null,null,null,"$/cust.",0.5]
["Distributor-consolidated billing monthly charge, per customer, per retailer",null,null,null,null,null,null,"$/cust.",0.3]
["Retailer-consolidated billing monthly credit, per customer, per retailer",null,null,null,null,null,null,"$/cust.",-0.3]
["Service Transaction Requests (STR) "]
["Request fee, per request, applied to the requesting party",null,null,null,null,null,null,"$",0.25]
["Processing fee, per request, applied to the requesting party",null,null,null,null,null,null,"$",0.5]
["Request for customer information as outlined in Section 10.6.3 and Chapter 11 of the Retail"]
["Settlement Code directly to retailers and customers, if not delivered electronically through the"]
["Electronic Business Transaction (EBT) system, applied to the requesting party "]
["Up to twice a year",null,null,null,null,null,null,"$","no charge"]
["More than twice a year, per request (plus incremental delivery costs)",null,null,null,null,null,null,"$",2]
[]
["LOSS FACTORS"]
[]
["If the distributor is not capable of prorating changed loss factors jointly with distribution rates, the revised loss factors will be implemented upon the first subsequent billing for each billing cycle."]
[]
[]
["Total Loss Factor – Secondary Metered Customer < 5,000 kW",null,null,null,null,null,null,null,1.056]
["Total Loss Factor – Secondary Metered Customer > 5,000 kW",null,null,null,null,null,null,null,"N/A"]
["Total Loss Factor – Primary Metered Customer < 5,000 kW",null,null,null,null,null,null,null,1.0454000000000001]
["Total Loss Factor – Primary Metered Customer > 5,000 kW",null,null,null,null,null,null,null,"N/A"]

{"sheet":"14. Bill Impacts","index":17,"n_rows":57,"n_cols":27,"rows_kept":57,"cut":false,"hidden":true,"merged":[[56,0,56,8],[42,6,42,7],[43,6,43,7],[44,6,44,7],[50,6,50,7],[45,6,45,7],[46,6,46,7],[47,6,47,7],[48,6,48,7],[49,6,49,7],[51,6,51,7],[52,6,52,7],[53,6,53,7],[10,0,10,9],[34,6,34,7],[31,6,31,7],[32,6,32,7],[33,6,33,7],[23,6,23,7],[22,6,22,7],[25,6,25,7],[26,6,26,7],[27,6,27,7],[41,6,41,7],[12,0,12,2],[21,6,21,7],[20,1,20,3],[20,4,20,7],[29,6,29,7],[30,6,30,7],[35,6,35,7],[36,6,36,7],[37,6,37,7],[38,6,38,7],[39,6,39,7],[40,6,40,7]]}
[null,null,null,null,null,null,null,null,null,null,null,null,null,null,null,null,null,null,null,null,null,null,null,null,null,{"$f":"MATCH(A13, '3. Rate Class Selection'!B19:B40,0)","v":1},{"$f":"VLOOKUP(A13, lists!AO:AP,2,0)","v":"kWh"}]
[]
[]
[]
[]
[]
[]
[]
[]
[]
["Choose a Rate Class from the drop-down menu below and click UPDATE.\nFor Street Lighting and USL classes, please ensure that the number of customers is manually entered into cells B30 and B31.  \nClick the UPDATE button to refresh the sheet."]
[]
["RESIDENTIAL",null,null,null,null,{"$f":"IF(ISERROR(SEARCH(\"MicroFit\",A13,1))=FALSE,\"Bill impact presentation for this class does not exist.\", \"\")","v":""}]
[]
["Consumption",{"$f":"730*D15*B17","v":3650000},"kWh",10000,{"$f":"IF(AA1 = \"kWh\", \"\", \"kW\")","v":""}]
["RPP Tier One",600,"kWh",null,1]
["Load Factor",0.5]
["Loss Factor",1]
[]
[]
[null,"CURRENT ESTIMATED BILL",null,null,"PROPOSED ESTIMATED BILL"]
[null,"Volume","Current Rate ($)","Current Charge ($)","Volume","Proposed Rate ($)","Proposed Charge ($)",null,"Change ($)","Change (%)","% of Total RPP Bill","% of Total TOU Bill"]
["Energy First Tier (kWh)",3650000,7.4999999999999997E-2,{"$f":"B23*C23","v":273750},{"$f":"B23","v":3650000},{"$f":"C23","v":7.4999999999999997E-2},{"$f":"E23*F23","v":273750},null,{"$f":"G23-D23","v":0},{"$f":"I23/D23","v":0},{"$f":"G23/G48","v":0.86460785769833803}]
["Energy Second Tier (kWh)",0,8.7999999999999995E-2,{"$f":"B24*C24","v":0},{"$f":"B24","v":0},{"$f":"C24","v":8.7999999999999995E-2},{"$f":"E24*F24","v":0},null,{"$f":"G24-D24","v":0},0,{"$f":"G24/G48","v":0}]
[]
["TOU - Off Peak",{"$f":"0.64*$B$15*$B$18","v":2336000},6.5000000000000002E-2,{"$f":"C26*B26","v":151840},{"$f":"B26","v":2336000},{"$f":"C26","v":6.5000000000000002E-2},{"$f":"F26*E26","v":151840},null,{"$f":"G26-D26","v":0},{"$f":"I26/D26","v":0},null,{"$f":"G26/G54","v":0.44972609595619467}]
["TOU - Mid Peak",{"$f":"0.18*$B$15*$B$18","v":657000},0.1,{"$f":"C27*B27","v":65700},{"$f":"B27","v":657000},{"$f":"C27","v":0.1},{"$f":"F27*E27","v":65700},6570,{"$f":"G27-D27","v":0},{"$f":"I27/D27","v":0},null,{"$f":"G27/G54","v":0.19459302228873809}]
["TOU - On Peak",{"$f":"0.18*$B$15*$B$18","v":657000},0.11700000000000001,76869,null,0.11700000000000001,{"$f":"F28*E28","v":0},0,null,{"$f":"I28/D28","v":0},null,{"$f":"G28/G54","v":0}]
[]
["Service Charge",1,null,0,null,null,{"$f":"F30*E30","v":0},0,null,0,0,0]
["Service Charge Rate Rider(s)",1,0,0,null,0,{"$f":"F31*E31","v":0},{"$f":"G31*F31","v":0},null,0,0,0]
["Distribution Volumetric Rate",10000,null,0,{"$f":"B32","v":10000},null,0,0,0,0,0,0]
["Low Voltage Volumetric Rate",10000,null,0,null,null,0,0,null,0,0,0]
["Distribution Volumetric Rate Rider(s)",10000,0,0,null,1.2024999999999999,0,0,null,0,{"$f":"G34/G48","v":0},{"$f":"G34/G54","v":0}]
["Total:  Distribution",null,null,{"$f":"ROUND(SUM(D30:D34),2)","v":0},null,null,{"$f":"ROUND(SUM(G30:G34),2)","v":0},null,null,0,{"$f":"G35/G48","v":0},{"$f":"G35/G54","v":0}]
["Total:  Retail Transmission"]
["Sub-Total:  Delivery (Distribution and Retail Transmission)",null,null,{"$f":"SUM(D36,D35)","v":0},null,null,{"$f":"SUM(G36,G35)","v":0},null,null,0,{"$f":"G37/G48","v":0},{"$f":"G37/G54","v":0}]
["Wholesale Market Service Rate ",3650000,0,{"$f":"B38*C38","v":0},null,{"$f":"C38","v":0},{"$f":"E38*F38","v":0},null,null,0,0,0]
["Rural Rate Protection Charge",3650000,0,{"$f":"B39*C39","v":0},3650000,0,{"$f":"E39*F39","v":0},null,{"$f":"G39-D39","v":0},0,0,0]
["Standard Supply Service – Administration Charge (if applicable)",1,0,0,1,0,{"$f":"E40*F40","v":0},null,0,0,0,0]
["Sub-Total:  Regulatory",null,null,{"$f":"SUM(D38:D40)","v":0},null,null,{"$f":"SUM(G38:H40)","v":0},null,{"$f":"G41-D41","v":0},0,0,0]
["Debt Retirement Charge (DRC)",3650000,7.0000000000000001E-3,25550,{"$f":"B42","v":3650000},{"$f":"C42","v":7.0000000000000001E-3},{"$f":"E42*F42","v":25550},null,0,{"$f":"I42/D42","v":0},{"$f":"G42/G48","v":8.0696733385178215E-2},{"$f":"G42/G54","v":7.5675064223398147E-2}]
[]
["Total Bill on RPP (before taxes)",null,null,299300,null,null,311325,null,{"$f":"G44-D44","v":12025},{"$f":"I44/D44","v":4.0177079852990308E-2},{"$f":"G44/G48","v":0.98328416912487704}]
["HST",null,0.13,{"$f":"C45*D44","v":38909},null,{"$f":"C45","v":0.13},{"$f":"F45*G44","v":40472.25},null,{"$f":"G45-D45","v":1563.25},{"$f":"I45/D45","v":4.0177079852990308E-2},{"$f":"G45/G48","v":0.12782694198623401}]
["Total Bill (including HST)",null,null,{"$f":"D45+D44","v":338209},null,null,{"$f":"G45+G44","v":351797.25},null,{"$f":"G46-D46","v":13588.25},{"$f":"I46/D46","v":4.0177079852990308E-2},{"$f":"G46/G48","v":1.1111111111111109}]
["Ontario Clean Energy Benefit (OCEB)",null,-0.1,{"$f":"-0.1*D46","v":-33820.9},null,{"$f":"C47","v":-0.1},{"$f":"-0.1*G46","v":-35179.724999999999},null,{"$f":"G47-D47","v":-1358.8249999999971},{"$f":"I47/D47","v":4.0177079852990225E-2},{"$f":"G47/G48","v":-0.1111111111111111}]
["Total Bill on RPP (including OCEB)",null,null,{"$f":"D46+D47","v":304388.09999999998},null,null,{"$f":"G46+G47","v":316617.52500000002},null,{"$f":"G48-D48","v":12229.425000000047},{"$f":"I48/D48","v":4.0177079852990467E-2},{"$f":"G48/G48","v":1}]
[]
["Total Bill on TOU (before taxes)",null,null,319959,null,null,331984,null,{"$f":"G50-D50","v":12025},{"$f":"I50/D50","v":3.7582940314227757E-2},null,{"$f":"G50/G54","v":0.98328416912487704}]
["HST",null,0.13,{"$f":"C51*D50","v":41594.67},null,{"$f":"C51","v":0.13},{"$f":"F51*G50","v":43157.919999999998},null,{"$f":"G51-D51","v":1563.25},{"$f":"I51/D51","v":3.7582940314227764E-2},null,{"$f":"G51/G54","v":0.12782694198623401}]
["Total Bill (including HST)",null,null,{"$f":"D51+D50","v":361553.67},null,null,{"$f":"G51+G50","v":375141.92},null,{"$f":"G52-D52","v":13588.25},{"$f":"I52/D52","v":3.7582940314227764E-2},null,{"$f":"G52/G54","v":1.1111111111111112}]
["Ontario Clean Energy Benefit (OCEB)",null,-0.1,{"$f":"-0.1*D52","v":-36155.366999999998},null,{"$f":"C53","v":-0.1},{"$f":"-0.1*G52","v":-37514.192000000003},null,{"$f":"G53-D53","v":-1358.8250000000044},{"$f":"I53/D53","v":3.7582940314227882E-2},null,{"$f":"G53/G54","v":-0.11111111111111112}]
["Total Bill on TOU (including OCEB)",null,null,{"$f":"D52+D53","v":325398.30299999996},null,null,{"$f":"G52+G53","v":337627.728},null,{"$f":"G54-D54","v":12229.425000000047},{"$f":"I54/D54","v":3.758294031422791E-2},null,{"$f":"G54/G54","v":1}]
[]
[]
["Applicants must provide bill impacts for residential at 800 kWh and GS<50kW at 2000 kWh. In addition, their filing should cover the range that is relevant\nto their service territory, class by class. A general guideline of consumption levels follows:\n\nResidential (kWh) - 100, 250, 500, 800, 1000, 1500, 2000\nGS<50kW (kWh) - 1000, 2000, 5000, 10000, 15000\nGS>50kW (kW) 100, 500, 1000\nLarge User - range appropriate for utility\nStreet/Sentinel Lighting Classes and USL - 150 kWh and 1 kW, range appropriate for utility.\n"]

{"sheet":"14. Bill Impacts1","index":18,"n_rows":58,"n_cols":27,"rows_kept":58,"cut":false,"hidden":false,"merged":[[25,13,26,13],[51,0,51,2],[2,0,2,9],[9,0,9,13],[10,0,10,13],[24,4,24,6],[24,8,24,10],[24,12,24,13],[38,0,38,2],[52,0,52,2],[13,2,13,10],[22,4,22,9],[25,2,26,2],[25,12,26,12]]}
[null,null,null,null,null,null,null,null,null,null,null,null,null,null,null,null,null,null,1,null,null,null,null,null,null,{"$f":"MATCH(C14, '3. Rate Class Selection'!B19:B40,0)","v":4},{"$f":"VLOOKUP(C14, lists!AO:AP,2,0)","v":"kWh"}]
[]
[]
[]
[]
[]
[]
[]
[]
[]
[]
[]
[]
["Rate Class",null,"UNMETERED SCATTERED LOAD"]
[]
["Loss Factor",null,null,null,1.056]
[]
["Consumption",null," kWh",null,250]
[]
["If Billed on a kW basis:"]
["Demand",null,"kW"]
["Load Factor"]
[null,null,null,null,{"$f":"IF(AND(ISNUMBER(E21), ISBLANK(E22)), \"Please enter a load factor\", \"\")","v":""}]
[]
[null,null,null,null,"Current Board-Approved",null,null,null,"Proposed",null,null,null,"Impact"]
[null,null,null,null,"Rate","Volume","Charge",null,"Rate","Volume","Charge",null,"$ Change","% Change"]
[null,null,null,null,"($)",null,"($)",null,"($)",null,"($)"]
["Monthly Service Charge",null,null,null,19.260000000000002,1,{"$f":"F28*E28","v":19.260000000000002},null,19.45,1,{"$f":"J28*I28","v":19.45},null,{"$f":"K28-G28","v":0.18999999999999773},{"$f":"IF((G28)=0,\"\",(M28/G28))","v":9.8650051921078778E-3}]
["Distribution Volumetric Rate",null,null,null,1.35E-2,250,{"$f":"F29*E29","v":3.375},null,1.3599999999999999E-2,{"$f":"F29","v":250},{"$f":"J29*I29","v":3.4},null,{"$f":"K29-G29","v":2.4999999999999911E-2},{"$f":"IF((G29)=0,\"\",(M29/G29))","v":7.4074074074073808E-3}]
["Fixed Rate Riders",null,null,null,0,1,{"$f":"F30*E30","v":0},null,0,1,{"$f":"J30*I30","v":0},null,{"$f":"K30-G30","v":0},{"$f":"IF((G30)=0,\"\",(M30/G30))","v":""}]
["Volumetric Rate Riders",null,null,null,-1E-4,250,-2.5000000000000001E-2,null,-2.0000000000000001E-4,{"$f":"F31","v":250},-0.05,null,-2.5000000000000001E-2,1]
["Sub-Total A (excluding pass through)",null,null,null,null,null,{"$f":"SUM(G28:G31)","v":22.610000000000003},null,null,null,{"$f":"SUM(K28:K31)","v":22.799999999999997},null,0.18999999999999417,8.4033613445375563E-3]
["Line Losses on Cost of Power",null,null,null,{"$f":"E45*0.64+E46*0.18+E47*0.18","v":8.3919999999999995E-2},{"$f":"E18*(E16-1)","v":14.000000000000012},{"$f":"E33*F33","v":1.174880000000001},null,{"$f":"I45*0.64+I46*0.18+I47*0.18","v":8.3919999999999995E-2},{"$f":"F33","v":14.000000000000012},{"$f":"I33*J33","v":1.174880000000001},null,0,0]
["Total Deferral/Variance Account Rate Riders",null,null,null,-8.6E-3,250,{"$f":"F34*E34","v":-2.15},null,-2.8E-3,{"$f":"F34","v":250},{"$f":"J34*I34","v":-0.7},null,{"$f":"K34-G34","v":1.45},{"$f":"IF((G34)=0,\"\",(M34/G34))","v":-0.67441860465116277}]
["Low Voltage Service Charge",null,null,null,4.0000000000000002E-4,250,{"$f":"F35*E35","v":0.1},null,4.0000000000000002E-4,{"$f":"F35","v":250},{"$f":"J35*I35","v":0.1},null,{"$f":"K35-G35","v":0},{"$f":"IF((G35)=0,\"\",(M35/G35))","v":0}]
["Smart Meter Entity Charge",null,null,null,null,1,{"$f":"F36*E36","v":0},null,null,{"$f":"F36","v":1},{"$f":"J36*I36","v":0},null,{"$f":"K36-G36","v":0},{"$f":"IF((G36)=0,\"\",(M36/G36))","v":""}]
["Sub-Total B - Distribution (includes Sub-Total A)",null,null,null,null,null,{"$f":"SUM(G34:G36)+G32","v":20.560000000000002},null,null,null,{"$f":"SUM(K34:K36)+K32","v":22.199999999999996},null,{"$f":"K37-G37","v":1.6399999999999935},{"$f":"IF((G37)=0,\"\",(M37/G37))","v":7.976653696498022E-2}]
["RTSR - Network",null,null,null,6.1999999999999998E-3,264,{"$f":"F38*E38","v":1.6368},null,6.3E-3,{"$f":"F38","v":264},{"$f":"J38*I38","v":1.6632},null,2.6399999999999979E-2,1.6129032258064502E-2]
["RTSR - Connection and/or Line and Transformation Connection",null,null,null,4.0000000000000001E-3,264,{"$f":"F39*E39","v":1.056},null,4.1999999999999997E-3,{"$f":"F39","v":264},{"$f":"J39*I39","v":1.1088},null,5.2799999999999958E-2,4.9999999999999961E-2]
["Sub-Total C - Delivery (including Sub-Total B)",null,null,null,null,null,{"$f":"SUM(G37:G39)","v":23.252800000000004},null,null,null,{"$f":"SUM(K37:K39)","v":24.971999999999994},null,1.7191999999999901,7.3935181999586708E-2]
["Wholesale Market Service Charge (WMSC)",null,null,null,4.4000000000000003E-3,{"$f":"E18*E16","v":264},{"$f":"F41*E41","v":1.1616},null,4.4000000000000003E-3,{"$f":"E18*E16","v":264},{"$f":"J41*I41","v":1.1616},null,0,0]
["Rural and Remote Rate Protection (RRRP)",null,null,null,1.1999999999999999E-3,{"$f":"E18*E16","v":264},0.31679999999999997,null,1.1999999999999999E-3,{"$f":"E18*E16","v":264},0.31679999999999997,null,0,0]
["Standard Supply Service Charge",null,null,null,0.25,1,0.25,null,0.25,1,0.25,null,0,0]
["Debt Retirement Charge (DRC)",null,null,null,7.0000000000000001E-3,{"$f":"E18","v":250},1.75,null,7.0000000000000001E-3,{"$f":"E18","v":250},1.75,null,0,0]
["TOU - Off Peak",null,null,null,6.7000000000000004E-2,160,10.72,null,6.7000000000000004E-2,{"$f":"F45","v":160},10.72,null,0,0]
["TOU - Mid Peak",null,null,null,0.104,45,4.68,null,0.104,45,4.68,null,0,0]
["TOU - On Peak",null,null,null,0.124,45,5.58,null,0.124,{"$f":"F47","v":45},5.58,null,0,0]
[]
["Total Bill on TOU (before Taxes)",null,null,null,null,null,{"$f":"SUM(G40:G44,G45:G47)","v":47.711200000000005},null,null,null,{"$f":"SUM(K40:K44,K45:K47)","v":49.430399999999992},null,{"$f":"K49-G49","v":1.7191999999999865},{"$f":"IF((G49)=0,\"\",(M49/G49))","v":3.6033468032662906E-2}]
["HST",null,null,null,0.13,null,{"$f":"G49*E50","v":6.2024560000000006},null,0.13,null,{"$f":"K49*I50","v":6.4259519999999988},null,0.22349599999999814,3.6033468032662885E-2]
["Total Bill (including HST)",null,null,null,null,null,{"$f":"G49+G50","v":53.913656000000003},null,null,null,{"$f":"K49+K50","v":55.856351999999987},null,1.9426959999999838,3.6033468032662885E-2]
["Ontario Clean Energy Benefit 1",null,null,null,null,null,{"$f":"ROUND(-G51*10%,2)","v":-5.39},null,null,null,{"$f":"ROUND(-K51*10%,2)","v":-5.59},null,-0.20000000000000018,3.7105751391465713E-2]
["Total Bill on TOU (including OCEB)",null,null,null,null,null,{"$f":"G51+G52","v":48.523656000000003},null,null,null,{"$f":"K51+K52","v":50.266351999999983},null,1.7426959999999809,3.5914358967510218E-2]
[]
[]
[]
[]
["Note:  For distributors who have a majority of customers on Tiered pricing, please provide a separate bill impact for such customers."]

{"sheet":"lists","index":19,"n_rows":189,"n_cols":55,"rows_kept":189,"cut":false,"hidden":true,"merged":[[13,51,13,52],[14,51,14,52],[15,51,15,52],[16,51,16,52],[17,51,17,52],[12,51,12,52],[1,51,1,52],[0,51,0,52],[11,51,11,52],[10,51,10,52],[9,51,9,52],[8,51,8,52],[7,51,7,52],[5,51,5,52],[4,51,4,52],[3,51,3,52],[2,51,2,52],[6,51,6,52]]}
["DISTRIBUTED GENERATION [DGEN]","Embedded Distributor",{"$f":"COUNTA(B1:B17)","v":4},null,null,null,null,null,"Distribution Volumetric Rate",null,null,"Loss Factors",null,"Units","Units1","Units2",null,null,null,null,null,null,null,null,null,"Account History","Account set up charge/change of occupancy charge (plus credit agency costs if applicable)","Total Loss Factor – Embedded Distributor – Hydro One Networks Inc.",null,null,null,null,null,null,null,null,null,"Algoma Power Inc.","Algoma Power Inc.",null,"DISTRIBUTED GENERATION [DGEN]","kW",null,null,null,"Sub-Total:  Delivery (Distribution and Retail Transmission)"]
["EMBEDDED DISTRIBUTOR","General Service 3,000 to 4,999 kW",null,null,null,null,null,null,"Distribution Volumetric Rate - $/kW of contracted amount",null,null,"Total Loss Factor – Primary Metered Customer",null,"$","$/kWh","$",null,null,null,null,null,null,null,null,null,"Account set up charge/change of occupancy charge","Administrative Billing Charge","Total Loss Factor – Primary Metered Customer",null,null,null,null,null,null,null,null,null,"Atikokan Hydro Inc.","Atikokan Hydro Inc.",null,"EMBEDDED DISTRIBUTOR","kW",null,null,null,"Wholesale Market Service Rate ",null,null,{"$f":"AU2*AV2","v":0},{"$f":"AU2","v":0},0,{"$f":"AX2*AY2","v":0},null,{"$f":"AZ2-AW2","v":0},{"$f":"BB2/AW2","v":{"$error":"#DIV/0!"}}]
["EMBEDDED DISTRIBUTOR","General Service 1,000 to 4,999 kW",null,null,null,null,null,null,"Distribution Wheeling Service Rate",null,null,"Total Loss Factor – Primary Metered Customer < 5,000 kW",null,"$/kWh","$/kW","%",null,null,null,null,null,null,"MSC",null,null,"Account set up charge/change of occupancy charge (plus credit agency costs if applicable – Residential)","Bell Canada Pole Rentals","Total Loss Factor – Primary Metered Customer < 5,000 kW",null,null,null,null,null,null,null,null,null,"Attawapiskat Power Corp. ","Attawapiskat Power Corp. ",null,"EMBEDDED DISTRIBUTOR","kW",null,null,null,"Rural Rate Protection Charge",null,null,{"$f":"AU3*AV3","v":0},0,0,{"$f":"AX3*AY3","v":0},null,{"$f":"AZ3-AW3","v":0},{"$f":"BB3/AW3","v":{"$error":"#DIV/0!"}}]
["FARMS - SINGLE PHASE ENERGY-BILLED [F1]","General Service Equal To Or Greater Than 1,500 kW - Interval Metered",null,null,null,null,null,null,"General Service 1,500 to 4,999 kW customer",null,null,"Total Loss Factor – Primary Metered Customer > 5,000 kW",null,"$/kW","$/kVA",null,null,null,null,null,null,null,"SM_Rate_Adder",null,null,"Account set up charge/change of occupancy charge (plus credit agency costs if applicable)","Clearance Pole Attachment charge $/pole/year","Total Loss Factor – Primary Metered Customer > 5,000 kW",null,null,null,null,null,null,null,null,null,"Bluewater Power Distribution Corporation","Bluewater Power Distribution Corporation",null,"FARMS - SINGLE PHASE ENERGY-BILLED [F1]","kWh",null,null,null,"Standard Supply Service – Administration Charge (if applicable)",null,null,0,0,0,{"$f":"AX4*AY4","v":0},null,0,{"$error":"#DIV/0!"}]
["FARMS - THREE PHASE ENERGY-BILLED [F3]",null,null,null,null,null,null,null,"General Service 50 to 1,499 kW customer",null,null,"Total Loss Factor – Secondary Metered Customer",null,"$/kVA",null,null,null,null,null,null,null,null,"MSC_Rate_Rider_",null,null,"Arrears certificate","Collection of account charge – no disconnection","Total Loss Factor – Secondary Metered Customer",null,null,null,null,null,null,null,null,null,"Brant County Power Inc.","Brant County Power Inc.",null,"FARMS - THREE PHASE ENERGY-BILLED [F3]","kWh",null,null,null,"Sub-Total:  Regulatory",null,null,{"$f":"SUM(AW2:AW4)","v":0},null,null,{"$f":"SUM(AZ2:BA4)","v":0},null,{"$f":"AZ5-AW5","v":0},{"$error":"#DIV/0!"}]
["GENERAL SERVICE - COMMERCIAL",null,null,null,null,null,null,null,"General Service Large Use customer",null,null,"Total Loss Factor – Secondary Metered Customer < 5,000 kW",null,null,null,null,null,null,null,null,null,null,"VC",null,null,"Arrears certificate (credit reference)","Collection of account charge – no disconnection – after regular hours","Total Loss Factor – Secondary Metered Customer < 5,000 kW",null,null,null,null,null,null,null,null,null,"Brantford Power Inc.","Brantford Power Inc.",null,"GENERAL SERVICE - COMMERCIAL","kW",null,null,null,"Debt Retirement Charge (DRC)",null,null,0,{"$f":"AU6","v":0},{"$f":"AV6","v":0},{"$f":"AX6*AY6","v":0},null,0,{"$error":"#DIV/0!"}]
["GENERAL SERVICE - INSTITUTIONAL",null,null,null,null,null,null,null,"Green Energy Act Plan Funding Adder",null,null,null,null,null,null,null,null,null,null,null,null,null,null,null,null,null,null,null,null,null,null,null,null,null,null,null,null,"Burlington Hydro Inc.","Burlington Hydro Inc.",null,"GENERAL SERVICE - INSTITUTIONAL","kW"]
["GENERAL SERVICE 1,000 TO 2,999 KW",null,null,null,null,null,null,null,"Green Energy Act Plan Funding Adder - effective April 1, 2013 until March 31, 2014",null,null,"Total Loss Factor – Secondary Metered Customer > 5,000 kW",null,null,null,null,null,null,null,null,null,null,"VC_Rate_Rider_",null,null,"Charge to certify cheque","Collection of account charge – no disconnection - during regular business hours","Total Loss Factor – Secondary Metered Customer > 5,000 kW",null,null,null,null,null,null,null,null,null,"Cambridge and North Dumfries Hydro Inc.","Cambridge and North Dumfries Hydro Inc.",null,"GENERAL SERVICE 1,000 TO 2,999 KW","kW",null,null,null,"Total Bill on RPP (before taxes)",null,null,null,null,null,null,null,{"$f":"AZ8-AW8","v":0}]
["GENERAL SERVICE 1,000 TO 4,999 KW - INTERVAL METERS",null,null,null,null,null,null,null,"Green Energy Act Plan Funding Adder - effective until March 31, 2013",null,null,"Distribution Loss Factor - Secondary Metered Customer < 5,000 kW",null,null,null,null,null,null,null,null,null,null,"VC_GA_Rate_Rider_kW_",null,null,"Collection of Account Charge – No Disconnection","Collection of account charge – no disconnection – during regular hours",null,null,null,null,null,null,null,null,null,null,"Canadian Niagara Power Inc.","Canadian Niagara Power Inc. - Eastern Ontario Power",null,"GENERAL SERVICE 1,000 TO 4,999 KW - INTERVAL METERS","kW",null,null,null,"HST",null,null,{"$f":"AV9*AW8","v":0},null,{"$f":"AV9","v":0},{"$f":"AY9*AZ8","v":0},null,{"$f":"AZ9-AW9","v":0},{"$f":"BB9/AW9","v":{"$error":"#DIV/0!"}}]
["GENERAL SERVICE 1,000 TO 4,999 KW (CO-GENERATION)",null,null,null,null,null,null,null,"Low Voltage Service Charge",null,null,"Distribution Loss Factor - Secondary Metered Customer > 5,000 kW",null,null,null,null,null,null,null,null,null,null,"VC_LV_Rate",null,null,"Credit Card Convenience Charge","Collection/Disconnection/Load Limiter/Reconnection – if in Community",null,null,null,null,null,null,null,null,null,null,"Centre Wellington Hydro Ltd.","Canadian Niagara Power Inc. - Fort Erie",null,"GENERAL SERVICE 1,000 TO 4,999 KW (CO-GENERATION)","kW",null,null,null,"Total Bill (including HST)",null,null,{"$f":"AW9+AW8","v":0},null,null,{"$f":"AZ9+AZ8","v":0},null,{"$f":"AZ10-AW10","v":0},{"$f":"BB10/AW10","v":{"$error":"#DIV/0!"}}]
["GENERAL SERVICE 1,000 TO 4,999 KW",null,null,null,null,null,null,null,"Low Voltage Service Rate",null,null,"Distribution Loss Factor - Primary Metered Customer < 5,000 kW",null,null,null,null,null,null,null,null,null,null,"RTSR_Network",null,null,"Credit check (plus credit agency costs)","Credit Card Convenience Charge",null,null,null,null,null,null,null,null,null,null,"Chapleau Public Utilities Corporation","Canadian Niagara Power Inc. - Port Colborne Hydro Inc.",null,"GENERAL SERVICE 1,000 TO 4,999 KW","kW",null,null,null,"Ontario Clean Energy Benefit (OCEB)",null,null,{"$f":"-0.1*AW10","v":0},null,{"$f":"AV11","v":0},{"$f":"-0.1*AZ10","v":0},null,{"$f":"AZ11-AW11","v":0},{"$f":"BB11/AW11","v":{"$error":"#DIV/0!"}}]
["GENERAL SERVICE 1,500 TO 4,999 KW",null,null,null,null,null,null,null,"Low Voltage Volumetric Rate",null,null,"Distribution Loss Factor - Primary Metered Customer > 5,000 kW",null,null,null,null,null,null,null,null,null,null,"RTSR_Connection",null,null,"Credit reference Letter","Disconnect/Reconnect at meter – after regular hours",null,null,null,null,null,null,null,null,null,null,"Clinton Power Corporation","Centre Wellington Hydro Ltd.",null,"GENERAL SERVICE 1,500 TO 4,999 KW","kW",null,null,null,"Total Bill on RPP (including OCEB)",null,null,{"$f":"AW10+AW11","v":0},null,null,{"$f":"AZ10+AZ11","v":0},null,{"$f":"AZ12-AW12","v":0},{"$f":"BB12/AW12","v":{"$error":"#DIV/0!"}}]
["GENERAL SERVICE 2,500 TO 4,999 KW",null,null,null,null,null,null,null,"Mechanism (SSM) Recovery (2012) - effective until April 30, 2014",null,null,null,null,null,null,null,null,null,null,null,null,null,null,null,null,null,null,null,null,null,null,null,null,null,null,null,null,"COLLUS Power Corporation","Chapleau Public Utilities Corporation",null,"GENERAL SERVICE 2,500 TO 4,999 KW","kW"]
["GENERAL SERVICE 3,000 TO 4,999 KW - INTERMEDIATE USE",null,null,null,null,null,null,null,"Minimum Distribution Charge - per KW of maximum billing demand in the previous 11 months",null,null,"Total Loss Factor - Embedded Distributor",null,null,null,null,null,null,null,null,null,null,"RTSR_Network_Interval",null,null,"Credit reference/credit check (plus credit agency costs – General Service)","Disconnect/Reconnect at meter – during regular hours",null,null,null,null,null,null,null,null,null,null,"Cooperative Hydro Embrun Inc.","Clinton Power Corporation",null,"GENERAL SERVICE 3,000 TO 4,999 KW - INTERMEDIATE USE","kW",null,null,null,"Total Bill on TOU (before taxes)",null,null,null,null,null,null,null,{"$f":"AZ14-AW14","v":0}]
["GENERAL SERVICE 3,000 TO 4,999 KW - INTERVAL METERED",null,null,null,null,null,null,null,"Monthly Distribution Wheeling Service Rate - Dedicated LV Line",null,null,"Total Loss Factor – Embedded Distributor – Hydro One Networks Inc.",null,null,null,null,null,null,null,null,null,null,"RTSR_Connection_Interval",null,null,"Credit Reference/credit check (plus credit agency costs)","Disconnect/Reconnect at pole – after regular hours",null,null,null,null,null,null,null,null,null,null,"E.L.K. Energy Inc.","COLLUS Power Corporation",null,"GENERAL SERVICE 3,000 TO 4,999 KW - INTERVAL METERED","kW",null,null,null,"HST",null,null,{"$f":"AV15*AW14","v":0},null,{"$f":"AV15","v":0},{"$f":"AY15*AZ14","v":0},null,{"$f":"AZ15-AW15","v":0},{"$f":"BB15/AW15","v":{"$error":"#DIV/0!"}}]
["GENERAL SERVICE 3,000 TO 4,999 KW - TIME OF USE",null,null,null,null,null,null,null,"Monthly Distribution Wheeling Service Rate - Hydro One Networks",null,null,null,null,null,null,null,null,null,null,null,null,null,"RTSR_Network_Interval_GR1000kW",null,null,"Dispute Test – Commercial self contained -- MC","Disconnect/Reconnect at pole – during regular hours",null,null,null,null,null,null,null,null,null,null,"Enersource Hydro Mississauga Inc.","Cooperative Hydro Embrun Inc.",null,"GENERAL SERVICE 3,000 TO 4,999 KW - TIME OF USE","kW",null,null,null,"Total Bill (including HST)",null,null,{"$f":"AW15+AW14","v":0},null,null,{"$f":"AZ15+AZ14","v":0},null,{"$f":"AZ16-AW16","v":0},{"$f":"BB16/AW16","v":{"$error":"#DIV/0!"}}]
["GENERAL SERVICE 3,000 TO 4,999 KW",null,null,null,null,null,null,null,"Monthly Distribution Wheeling Service Rate - Shared LV Line",null,null,null,null,null,null,null,null,null,null,null,null,null,"RTSR_Connection_Interval_GR1000kW",null,null,"Dispute Test – Commercial TT -- MC","Disconnect/Reconnect Charge – At Meter – After Hours",null,null,null,null,null,null,null,null,null,null,"Entegrus Powerlines Inc.","E.L.K. Energy Inc.",null,"GENERAL SERVICE 3,000 TO 4,999 KW","kW",null,null,null,"Ontario Clean Energy Benefit (OCEB)",null,null,{"$f":"-0.1*AW16","v":0},null,{"$f":"AV17","v":0},{"$f":"-0.1*AZ16","v":0},null,{"$f":"AZ17-AW17","v":0},{"$f":"BB17/AW17","v":{"$error":"#DIV/0!"}}]
["GENERAL SERVICE 50 TO 1,000 KW - INTERVAL METERS",null,null,null,null,null,null,null,"Monthly Distribution Wheeling Service Rate - Waterloo North Hydro",null,null,null,null,null,null,null,null,null,null,null,null,null,"RTSR_Line_Connection",null,null,"Dispute Test – Residential","Disconnect/Reconnect Charge – At Meter – During Regular Hours",null,null,null,null,null,null,null,null,null,null,"ENWIN Utilities Ltd.","Enersource Hydro Mississauga Inc.",null,"GENERAL SERVICE 50 TO 1,000 KW - INTERVAL METERS","kW",null,null,null,"Total Bill on TOU (including OCEB)",null,null,{"$f":"AW16+AW17","v":0},null,null,{"$f":"AZ16+AZ17","v":0},null,{"$f":"AZ18-AW18","v":0},{"$f":"BB18/AW18","v":{"$error":"#DIV/0!"}}]
["GENERAL SERVICE 50 TO 1,000 KW - NON INTERVAL METERS",null,null,null,null,null,null,null,"Rate Rider for Application of Tax Change - effective until April 30, 2014",null,null,null,null,null,null,null,null,null,null,null,null,null,"RTSR_Transformer_Connection",null,null,"Duplicate Invoices for previous billing","Disconnect/Reconnect Charge – At Pole – After Hours",null,null,null,null,null,null,null,null,null,null,"Erie Thames Powerlines Corporation","Entegrus Powerlines Inc. - Chatham-Kent",null,"GENERAL SERVICE 50 TO 1,000 KW - NON INTERVAL METERS","kW"]
["GENERAL SERVICE 50 TO 1,000 KW",null,null,null,null,null,null,null,"Rate Rider for Application of Tax Change - effective until December 31, 2013",null,null,null,null,null,null,null,null,null,null,null,null,null,"WMSR",null,null,"Easement Letter","Disconnect/Reconnect Charge – At Pole – During Regular Hours",null,null,null,null,null,null,null,null,null,null,"Espanola Regional Hydro Distribution Corporation","Entegrus Powerlines Inc. - Dutton",null,"GENERAL SERVICE 50 TO 1,000 KW","kW"]
["GENERAL SERVICE 50 TO 1,499 KW - INTERVAL METERED",null,null,null,null,null,null,null,"Rate Rider for Application of Tax Change - Hydro One Networks - effective until April 30, 2014",null,null,null,null,null,null,null,null,null,null,null,null,null,"RRRP",null,null,"Income Tax Letter","Disconnect/Reconnect Charges for non payment of account - At Meter After Hours",null,null,null,null,null,null,null,null,null,null,"Essex Powerlines Corporation","Entegrus Powerlines Inc. - Newbury",null,"GENERAL SERVICE 50 TO 1,499 KW - INTERVAL METERED","kW"]
["GENERAL SERVICE 50 TO 1,499 KW",null,null,null,null,null,null,null,"Rate Rider for Application of Tax Change - Waterloo North Hydro - effective until April 30, 2014",null,null,null,null,null,null,null,null,null,null,null,null,null,"SPC",null,null,"Interval Meter Interrogation","Disconnect/Reconnect charges for non payment of account – at meter after regular hours",null,null,null,null,null,null,null,null,null,null,"Festival Hydro Inc.","Entegrus Powerlines Inc. - Strathroy, Mounth Brydges & Parkhill",null,"GENERAL SERVICE 50 TO 1,499 KW","kW"]
["GENERAL SERVICE 50 TO 2,499 KW",null,null,null,null,null,null,null,"Rate Rider for Application of Tax Change (2013) - effective until April 30, 2014",null,null,null,null,null,null,null,null,null,null,null,null,null,"DRC",null,null,"Interval meter request change","Disconnect/Reconnect Charges for non payment of account - At Meter During Regular Hours",null,null,null,null,null,null,null,null,null,null,"Fort Albany Power Corporation","ENWIN Utilities Ltd.",null,"GENERAL SERVICE 50 TO 2,499 KW","kW"]
["GENERAL SERVICE 50 TO 2,999 KW - INTERVAL METERED",null,null,null,null,null,null,null,"Rate Rider for Application of Tax Change (per connection) - effective until April 30, 2014",null,null,null,null,null,null,null,null,null,null,null,null,null,"SSS",null,null,"Legal letter","Disconnect/Reconnect charges for non payment of account – at meter during regular hours",null,null,null,null,null,null,null,null,null,null,"Fort Frances Power Corporation","Erie Thames Powerlines Corporation",null,"GENERAL SERVICE 50 TO 2,999 KW - INTERVAL METERED","kW"]
["GENERAL SERVICE 50 TO 2,999 KW - TIME OF USE",null,null,null,null,null,null,null,"Rate Rider for Application of Tax Change Dedicated LV Line - effective until April 30, 2014",null,null,null,null,null,null,null,null,null,null,null,null,null,"SFLF",null,null,"Legal letter charge","Disconnect/Reconnect charges for non payment of account – at pole after regular hours",null,null,null,null,null,null,null,null,null,null,"Greater Sudbury Hydro Inc.","Espanola Regional Hydro Distribution Corporation",null,"GENERAL SERVICE 50 TO 2,999 KW - TIME OF USE","kW"]
["GENERAL SERVICE 50 TO 2,999 KW","January",null,null,null,null,null,null,"Rate Rider for Application of Tax Change Shared LV Line - effective until April 30, 2014",null,null,null,null,null,null,null,null,null,null,null,null,null,"DLF_Secondary_LT_5000kW",null,null,"Meter dispute charge plus Measurement Canada fees (if meter found correct)","Disconnect/Reconnect charges for non payment of account – at pole during regular hours",null,null,null,null,null,null,null,null,null,null,"Grimsby Power Inc.","Essex Powerlines Corporation",null,"GENERAL SERVICE 50 TO 2,999 KW","kW"]
["GENERAL SERVICE 50 TO 4,999 KW - INTERVAL METERED","February",null,null,null,null,null,null,"Rate Rider for Deferral/Variance Account (2012) - effective unitl April 30, 2016",null,null,null,null,null,null,null,null,null,null,null,null,null,"DLF_Secondary_GT_5000kW",null,null,"Notification charge","Disconnect/Reconnection for >300 volts - after regular hours",null,null,null,null,null,null,null,null,null,null,"Guelph Hydro Electric Systems Inc.","Festival Hydro Inc.",null,"GENERAL SERVICE 50 TO 4,999 KW - INTERVAL METERED","kW"]
["GENERAL SERVICE 50 TO 4,999 KW - TIME OF USE","March",null,null,null,null,null,null,"Rate Rider for Deferral/Variance Account Disposition (2012) - effective until April 30, 2016",null,null,null,null,null,null,null,null,null,null,null,null,null,"DLF_Primary_LT_5000kW",null,null,"Pulling Post Dated Cheques","Disconnect/Reconnection for >300 volts - during regular hours",null,null,null,null,null,null,null,null,null,null,"Haldimand County Hydro Inc.","Festival Hydro Inc. - Hensall",null,"GENERAL SERVICE 50 TO 4,999 KW - TIME OF USE","kW"]
["GENERAL SERVICE 50 TO 4,999 KW (COGENERATION)","April",null,null,null,null,null,null,"Rate Rider for Deferral/Variance Account Disposition (2013) - effective until April 30, 2014",null,null,null,null,null,null,null,null,null,null,null,null,null,"DLF_Primary_GT_5000kW",null,null,"Request for other billing information","Disposal of Concrete Poles",null,null,null,null,null,null,null,null,null,null,"Halton Hills Hydro Inc.","Fort Albany Power Corporation",null,"GENERAL SERVICE 50 TO 4,999 KW (COGENERATION)","kW"]
["GENERAL SERVICE 50 TO 4,999 KW (FORMERLY TIME OF USE)","May",null,null,null,null,null,null,"Rate Rider for Deferral/Variance Account Dispositon (2012) - effective until April 30, 2016",null,null,null,null,null,null,null,null,null,null,null,null,null,"TLF_Secondary_LT_5000kW",null,null,"Returned cheque (plus bank charges)","Dispute Test – Commercial TT -- MC",null,null,null,null,null,null,null,null,null,null,"Hearst Power Distribution Company Limited","Fort Frances Power Corporation",null,"GENERAL SERVICE 50 TO 4,999 KW (FORMERLY TIME OF USE)","kW"]
["GENERAL SERVICE 50 TO 4,999 KW","June",null,null,null,null,null,null,"Rate Rider for Disposition of Capital Gain - effective until April 30, 2014",null,null,null,null,null,null,null,null,null,null,null,null,null,"TLF_Secondary_GT_5000kW",null,null,"Returned cheque charge (plus bank charges)","Install/Remove load control device – after regular hours",null,null,null,null,null,null,null,null,null,null,"Horizon Utilities Corporation","Greater Sudbury Hydro Inc.",null,"GENERAL SERVICE 50 TO 4,999 KW","kW"]
["GENERAL SERVICE 50 TO 499 KW","July",null,null,null,null,null,null,"Rate Rider for Disposition of Deferral/Variance Accounts - effective until August 31, 2013",null,null,null,null,null,null,null,null,null,null,null,null,null,"TLF_Primary_LT_5000kW",null,null,"Special Billing Service (aggregation)","Install/Remove load control device – during regular hours",null,null,null,null,null,null,null,null,null,null,"Hydro 2000 Inc.","Grimsby Power Inc.",null,"GENERAL SERVICE 50 TO 499 KW","kW"]
["GENERAL SERVICE 50 TO 699 KW","August",null,null,null,null,null,null,"Rate Rider for Disposition of Deferral/Variance Accounts (2010) - effective until April 30, 2014",null,null,null,null,null,null,null,null,null,null,null,null,null,"TLF_Primary_GT_5000kW",null,null,"Special Billing Service (sub-metering charge per meter)","Interval Meter Interrogation",null,null,null,null,null,null,null,null,null,null,"Hydro Hawkesbury Inc.","Guelph Hydro Electric Systems Inc.",null,"GENERAL SERVICE 50 TO 699 KW","kW"]
["GENERAL SERVICE 50 TO 999 KW - INTERVAL METERED","September",null,null,null,null,null,null,"Rate Rider for Disposition of Deferral/Variance Accounts (2010) - effective until December 31, 2014",null,null,null,null,null,null,null,null,null,null,null,null,null,"TLF_EmbeddedDistributor",null,null,"Special meter reads","Interval Meter Load Management Tool Charge $/month",null,null,null,null,null,null,null,null,null,null,"Hydro One Brampton Networks Inc.","Haldimand County Hydro Inc.",null,"GENERAL SERVICE 50 TO 999 KW - INTERVAL METERED","kW"]
["GENERAL SERVICE 50 TO 999 KW","October",null,null,null,null,null,null,"Rate Rider for Disposition of Deferral/Variance Accounts (2011) - effective until April 30, 2014",null,null,null,null,null,null,null,null,null,null,null,null,null,null,null,null,"Statement of Account","Interval meter request change",null,null,null,null,null,null,null,null,null,null,"Hydro One Networks Inc.","Halton Hills Hydro Inc.",null,"GENERAL SERVICE 50 TO 999 KW","kW"]
["GENERAL SERVICE 500 TO 4,999 KW","November",null,null,null,null,null,null,"Rate Rider for Disposition of Deferral/Variance Accounts (2011) - effective until April 30, 2015",null,null,null,null,null,null,null,null,null,null,null,null,null,null,null,null,"Unprocessed Payment Charge (plus bank charges)","Late Payment – per annum",null,null,null,null,null,null,null,null,null,null,"Hydro Ottawa Limited","Hearst Power Distribution Company Limited",null,"GENERAL SERVICE 500 TO 4,999 KW","kW"]
["GENERAL SERVICE 700 TO 4,999 KW","December",null,null,null,null,null,null,"Rate Rider for Disposition of Deferral/Variance Accounts (2011) - effective until April 30, 2016",null,null,null,null,null,null,null,null,null,null,null,null,null,null,null,null,null,"Late Payment – per month",null,null,null,null,null,null,null,null,null,null,"Innisfil Hydro Distribution Systems Limited","Horizon Utilities Corporation",null,"GENERAL SERVICE 700 TO 4,999 KW","kW"]
["GENERAL SERVICE DEMAND BILLED (50 KW AND ABOVE) [GSD]",null,null,null,null,null,null,null,"Rate Rider for Disposition of Deferral/Variance Accounts (2012) - effective until April 30, 2014",null,null,null,null,null,null,null,null,null,null,null,null,null,null,null,null,null,"Layout fees",null,null,null,null,null,null,null,null,null,null,"Kashechewan Power Corporation","Hydro 2000 Inc.",null,"GENERAL SERVICE DEMAND BILLED (50 KW AND ABOVE) [GSD]","kW"]
["GENERAL SERVICE ENERGY BILLED (LESS THAN 50 KW) [GSE-METERED]",null,null,null,null,null,null,null,"Rate Rider for Disposition of Deferral/Variance Accounts (2012) - effective until April 30, 2015",null,null,null,null,null,null,null,null,null,null,null,null,null,null,null,null,null,"Meter dispute charge plus Measurement Canada fees (if meter found correct)",null,null,null,null,null,null,null,null,null,null,"Kenora Hydro Electric Corporation Ltd.","Hydro Hawkesbury Inc.",null,"GENERAL SERVICE ENERGY BILLED (LESS THAN 50 KW) [GSE-METERED]","kWh"]
["GENERAL SERVICE ENERGY BILLED (LESS THAN TO 50 KW) [GSE-UNMETERED]",null,null,null,null,null,null,null,"Rate Rider for Disposition of Deferral/Variance Accounts (2012) - effective until April 30, 2016",null,null,null,null,null,null,null,null,null,null,null,null,null,null,null,null,null,"Meter Interrogation Charge",null,null,null,null,null,null,null,null,null,null,"Kingston Hydro Corporation","Hydro One Brampton Networks Inc.",null,"GENERAL SERVICE ENERGY BILLED (LESS THAN TO 50 KW) [GSE-UNMETERED]","kWh"]
["GENERAL SERVICE EQUAL TO OR GREATER THAN 1,500 KW - INTERVAL METERED",null,null,null,null,null,null,null,"Rate Rider for Disposition of Deferral/Variance Accounts (2012) - effective until December 31, 2013",null,null,null,null,null,null,null,null,null,null,null,null,null,null,null,null,null,"Missed Service Appointment",null,null,null,null,null,null,null,null,null,null,"Kitchener-Wilmot Hydro Inc.","Hydro One Networks Inc.",null,"GENERAL SERVICE EQUAL TO OR GREATER THAN 1,500 KW - INTERVAL METERED","kW"]
["GENERAL SERVICE EQUAL TO OR GREATER THAN 1,500 KW",null,null,null,null,null,null,null,"Rate Rider for Disposition of Deferral/Variance Accounts (2012) - effective until December 31, 2013 Applicable in the service area excluding the former service area of Clinton Power",null,null,null,null,null,null,null,null,null,null,null,null,null,null,null,null,null,"Norfolk Pole Rentals – Billed",null,null,null,null,null,null,null,null,null,null,"Lakefront Utilities Inc.","Hydro Ottawa Limited",null,"GENERAL SERVICE EQUAL TO OR GREATER THAN 1,500 KW","kW"]
["GENERAL SERVICE GREATER THAN 1,000 KW",null,null,null,null,null,null,null,"Rate Rider for Disposition of Deferral/Variance Accounts (2012) - effective until December 31, 2013 Applicable in the service area excluding the former service areas of Clinton Power and \nWest Perth Power",null,null,null,null,null,null,null,null,null,null,null,null,null,null,null,null,null,"Optional Interval/TOU Meter charge $/month",null,null,null,null,null,null,null,null,null,null,"Lakeland Power Distribution Ltd.","Innisfil Hydro Distribution Systems Limited",null,"GENERAL SERVICE GREATER THAN 1,000 KW","kW"]
["GENERAL SERVICE INTERMEDIATE 1,000 TO 4,999 KW",null,null,null,null,null,null,null,"Rate Rider for Disposition of Deferral/Variance Accounts (2012) - effective until December 31, 2013 Applicable only in the former service area of West Perth Power",null,null,null,null,null,null,null,null,null,null,null,null,null,null,null,null,null,"Overtime Locate",null,null,null,null,null,null,null,null,null,null,"London Hydro Inc.","Kashechewan Power Corporation",null,"GENERAL SERVICE INTERMEDIATE 1,000 TO 4,999 KW","kW"]
["GENERAL SERVICE INTERMEDIATE RATE CLASS 1,000 TO 4,999 KW (FORMERLY GENERAL SERVICE > 50 KW CUSTOMERS)",null,null,null,null,null,null,null,"Rate Rider for Disposition of Deferral/Variance Accounts (2012) - effective until December 31, 2015",null,null,null,null,null,null,null,null,null,null,null,null,null,null,null,null,null,"Owner Requested Disconnection/Reconnection – after regular hours",null,null,null,null,null,null,null,null,null,null,"Midland Power Utility Corporation","Kenora Hydro Electric Corporation Ltd.",null,"GENERAL SERVICE INTERMEDIATE RATE CLASS 1,000 TO 4,999 KW (FORMERLY GENERAL SERVICE > 50 KW CUSTOMERS)","kW"]
["GENERAL SERVICE INTERMEDIATE RATE CLASS 1,000 TO 4,999 KW (FORMERLY LARGE USE CUSTOMERS)",null,null,null,null,null,null,null,"Rate Rider for Disposition of Deferral/Variance Accounts (2012) - effective until December 31, 2016 Applicable only in the former service area of Clinton Power",null,null,null,null,null,null,null,null,null,null,null,null,null,null,null,null,null,"Owner Requested Disconnection/Reconnection – during regular hours",null,null,null,null,null,null,null,null,null,null,"Milton Hydro Distribution inc.","Kingston Hydro Corporation",null,"GENERAL SERVICE INTERMEDIATE RATE CLASS 1,000 TO 4,999 KW (FORMERLY LARGE USE CUSTOMERS)","kW"]
["GENERAL SERVICE LESS THAN 50 KW - SINGLE PHASE ENERGY-BILLED [G1]",null,null,null,null,null,null,null,"Rate Rider for Disposition of Deferral/Variance Accounts (2012) - effective until February 28, 2013",null,null,null,null,null,null,null,null,null,null,null,null,null,null,null,null,null,"Returned cheque (plus bank charges)",null,null,null,null,null,null,null,null,null,null,"Newmarket - Tay Power Distribution Ltd.","Kitchener-Wilmot Hydro Inc.",null,"GENERAL SERVICE LESS THAN 50 KW - SINGLE PHASE ENERGY-BILLED [G1]","kWh"]
["GENERAL SERVICE LESS THAN 50 KW - THREE PHASE ENERGY-BILLED [G3]",null,null,null,null,null,null,null,"Rate Rider for Disposition of Deferral/Variance Accounts (2012) - effective until June 30, 2014",null,null,null,null,null,null,null,null,null,null,null,null,null,null,null,null,null,"Rural system expansion / line connection fee",null,null,null,null,null,null,null,null,null,null,"Niagara Peninsula Energy Inc.","Lakefront Utilities Inc.",null,"GENERAL SERVICE LESS THAN 50 KW - THREE PHASE ENERGY-BILLED [G3]","kWh"]
["GENERAL SERVICE LESS THAN 50 KW - TRANSMISSION CLASS ENERGY-BILLED [T]",null,null,null,null,null,null,null,"Rate Rider for Disposition of Deferral/Variance Accounts (2012) - effective until March 31, 2013",null,null,null,null,null,null,null,null,null,null,null,null,null,null,null,null,null,"Same Day Open Trench",null,null,null,null,null,null,null,null,null,null,"Niagara-on-the-Lake Hydro Inc.","Lakeland Power Distribution Ltd.",null,"GENERAL SERVICE LESS THAN 50 KW - TRANSMISSION CLASS ENERGY-BILLED [T]","kWh"]
["GENERAL SERVICE LESS THAN 50 KW - URBAN ENERGY-BILLED [UG]",null,null,null,null,null,null,null,"Rate Rider for Disposition of Deferral/Variance Accounts (2012) - effective until October 31, 2013",null,null,null,null,null,null,null,null,null,null,null,null,null,null,null,null,null,"Scheduled Day Open Trench",null,null,null,null,null,null,null,null,null,null,"Norfolk Power Distribution Inc.","London Hydro Inc.",null,"GENERAL SERVICE LESS THAN 50 KW - URBAN ENERGY-BILLED [UG]","kWh"]
["GENERAL SERVICE LESS THAN 50 KW",null,null,null,null,null,null,null,"Rate Rider for Disposition of Deferral/Variance Accounts (2013) - effective until April 30, 2014",null,null,null,null,null,null,null,null,null,null,null,null,null,null,null,null,null,"Service call – after regular hours",null,null,null,null,null,null,null,null,null,null,"North Bay Hydro Distribution Limited","Midland Power Utility Corporation",null,"GENERAL SERVICE LESS THAN 50 KW","kWh"]
["GENERAL SERVICE SINGLE PHASE - G1",null,null,null,null,null,null,null,"Rate Rider for Disposition of Deferral/Variance Accounts (2013) - effective until April 30, 2015",null,null,null,null,null,null,null,null,null,null,null,null,null,null,null,null,null,"Service call – customer owned equipment",null,null,null,null,null,null,null,null,null,null,"Northern Ontario Wires Inc.","Milton Hydro Distribution inc.",null,"GENERAL SERVICE SINGLE PHASE - G1","kW"]
["GENERAL SERVICE THREE PHASE - G3",null,null,null,null,null,null,null,"Rate Rider for Disposition of Deferral/Variance Accounts (2013) - effective until April 30, 2017",null,null,null,null,null,null,null,null,null,null,null,null,null,null,null,null,null,"Service Call – Customer-owned Equipment – After Regular Hours",null,null,null,null,null,null,null,null,null,null,"Oakville Hydro Electricity Distribution Inc.","Newmarket - Tay Power Distribution Ltd. - Newmarket",null,"GENERAL SERVICE THREE PHASE - G3","kW"]
["INTERMEDIATE USERS",null,null,null,null,null,null,null,"Rate Rider for Disposition of Deferral/Variance Accounts (2013) - effective until December 31, 2013",null,null,null,null,null,null,null,null,null,null,null,null,null,null,null,null,null,"Service Call – Customer-owned Equipment – During Regular Hours",null,null,null,null,null,null,null,null,null,null,"Orangeville Hydro Limited","Newmarket - Tay Power Distribution Ltd. - Tay",null,"INTERMEDIATE USERS","kW"]
["INTERMEDIATE WITH SELF GENERATION",null,null,null,null,null,null,null,"Rate Rider for Disposition of Deferred PILs Variance Account 1562 - effective until April 30, 2014",null,null,null,null,null,null,null,null,null,null,null,null,null,null,null,null,null,"Service Charge for onsite interrogation of interval meter due to customer phone line failure - required weekly until line repaired $ 6",null,null,null,null,null,null,null,null,null,null,"Orillia Power Distribution Corporation","Niagara Peninsula Energy Inc. - Niagara Falls",null,"INTERMEDIATE WITH SELF GENERATION","kW"]
["LARGE USE - 3TS",null,null,null,null,null,null,null,"Rate Rider for Disposition of Deferred PILs Variance Account 1562 - effective until December 31, 2013",null,null,null,null,null,null,null,null,null,null,null,null,null,null,null,null,null,"Service Layout - Commercial",null,null,null,null,null,null,null,null,null,null,"Oshawa PUC Networks Inc.","Niagara Peninsula Energy Inc. - Peninsula West",null,"LARGE USE - 3TS","kW"]
["LARGE USE - FORD ANNEX",null,null,null,null,null,null,null,"Rate Rider for Disposition of Deferred PILs Variance Account 1562 - effective until March 31, 2016",null,null,null,null,null,null,null,null,null,null,null,null,null,null,null,null,null,"Service Layout - ResidentiaI",null,null,null,null,null,null,null,null,null,null,"Ottawa River Power Corporation","Niagara-on-the-Lake Hydro Inc.",null,"LARGE USE - FORD ANNEX","kW"]
["LARGE USE - REGULAR",null,null,null,null,null,null,null,"Rate Rider for Disposition of Deferred PILs Variance Account 1562 - effective until November 30, 2013",null,null,null,null,null,null,null,null,null,null,null,null,null,null,null,null,null,"Special Billing Service (sub-metering charge per meter)",null,null,null,null,null,null,null,null,null,null,"Parry Sound Power Corporation","Norfolk Power Distribution Inc.",null,"LARGE USE - REGULAR","kW"]
["LARGE USE > 5000 KW",null,null,null,null,null,null,null,"Rate Rider for Disposition of Deferred PILs Variance Account 1562 - effective until October 31, 2013",null,null,null,null,null,null,null,null,null,null,null,null,null,null,null,null,null,"Special meter reads",null,null,null,null,null,null,null,null,null,null,"Peterborough Distribution Incorporated","North Bay Hydro Distribution Limited",null,"LARGE USE > 5000 KW","kW"]
["LARGE USE",null,null,null,null,null,null,null,"Rate Rider for Disposition of Deferred PILs Variance Account 1562 (2012) - effective until April 30, 2015",null,null,null,null,null,null,null,null,null,null,null,null,null,null,null,null,null,"Specific Charge for Access to the Power Poles - $/pole/year",null,null,null,null,null,null,null,null,null,null,"PowerStream Inc.","Northern Ontario Wires Inc.",null,"LARGE USE","kW"]
["microFIT",null,null,null,null,null,null,null,"Rate Rider for Disposition of Deferred PILs Variance Account 1562 (per connection) (2012) - effective until April 30, 2015",null,null,null,null,null,null,null,null,null,null,null,null,null,null,null,null,null,"Specific Charge for Bell Canada Access to the Power Poles – per pole/year",null,null,null,null,null,null,null,null,null,null,"PUC Distribution Inc.","Oakville Hydro Electricity Distribution Inc.",null,"microFIT","$"]
["RESIDENTIAL - HENSALL",null,null,null,null,null,null,null,"Rate Rider for Disposition of Global Adjustment Sub-Account - effective until November 30, 2013 \n Applicable only for Non-RPP Customers",null,null,null,null,null,null,null,null,null,null,null,null,null,null,null,null,null,"Switching for company maintenance – Charge based on Time and Materials",null,null,null,null,null,null,null,null,null,null,"Renfrew Hydro Inc.","Orangeville Hydro Limited",null,"RESIDENTIAL - HENSALL","kWh"]
["RESIDENTIAL - HIGH DENSITY [R1]",null,null,null,null,null,null,null,"Rate Rider for Disposition of Global Adjustment Sub-Account - effective until November 30, 2013 Applicable only for Non-RPP Customers",null,null,null,null,null,null,null,null,null,null,null,null,null,null,null,null,null,"Temporary Service – Install & remove – overhead – no transformer",null,null,null,null,null,null,null,null,null,null,"Rideau St. Lawrence Distribution Inc.","Orillia Power Distribution Corporation",null,"RESIDENTIAL - HIGH DENSITY [R1]","kWh"]
["RESIDENTIAL - LOW DENSITY [R2]",null,null,null,null,null,null,null,"Rate Rider for Disposition of Global Adjustment Sub-Account (2010) - effective until April 30, 2014 Applicable only for Non-RPP Customers",null,null,null,null,null,null,null,null,null,null,null,null,null,null,null,null,null,"Temporary Service – Install & remove – overhead – with transformer",null,null,null,null,null,null,null,null,null,null,"Sioux Lookout Hydro Inc.","Oshawa PUC Networks Inc.",null,"RESIDENTIAL - LOW DENSITY [R2]","kWh"]
["RESIDENTIAL - MEDIUM DENSITY [R1]",null,null,null,null,null,null,null,"Rate Rider for Disposition of Global Adjustment Sub-Account (2011) - effective until April 30, 2014 Applicable only for Non-RPP Customers",null,null,null,null,null,null,null,null,null,null,null,null,null,null,null,null,null,"Temporary Service – Install & remove – underground – no transformer",null,null,null,null,null,null,null,null,null,null,"St. Thomas Energy Inc.","Ottawa River Power Corporation",null,"RESIDENTIAL - MEDIUM DENSITY [R1]","kWh"]
["RESIDENTIAL - NORMAL DENSITY [R2]",null,null,null,null,null,null,null,"Rate Rider for Disposition of Global Adjustment Sub-Account (2011) - effective until April 30, 2015 Applicable only for Non-RPP Customers",null,null,null,null,null,null,null,null,null,null,null,null,null,null,null,null,null,"Temporary service install & remove – overhead – no transformer",null,null,null,null,null,null,null,null,null,null,"Thunder Bay Hydro Electricity Distribution Inc.","Parry Sound Power Corporation",null,"RESIDENTIAL - NORMAL DENSITY [R2]","kWh"]
["RESIDENTIAL - TIME OF USE",null,null,null,null,null,null,null,"Rate Rider for Disposition of Global Adjustment Sub-Account (2011) - effective until April 30, 2016 Applicable only for Non-RPP Customers",null,null,null,null,null,null,null,null,null,null,null,null,null,null,null,null,null,"Temporary Service Install & Remove – Overhead – With Transformer",null,null,null,null,null,null,null,null,null,null,"Tillsonburg Hydro Inc.","Peterborough Distribution Incorporated",null,"RESIDENTIAL - TIME OF USE","kWh"]
["RESIDENTIAL - URBAN [UR]",null,null,null,null,null,null,null,"Rate Rider for Disposition of Global Adjustment Sub-Account (2012) - effective until April 30, 2014 Applicable only for Non-RPP Customers",null,null,null,null,null,null,null,null,null,null,null,null,null,null,null,null,null,"Temporary Service Install & Remove – Underground – No Transformer",null,null,null,null,null,null,null,null,null,null,"Toronto Hydro-Electric System Limited","PowerStream Inc. - Barrie",null,"RESIDENTIAL - URBAN [UR]","kWh"]
["RESIDENTIAL REGULAR",null,null,null,null,null,null,null,"Rate Rider for Disposition of Global Adjustment Sub-Account (2012) - effective until April 30, 2015 Applicable only for Non-RPP Customers",null,null,null,null,null,null,null,null,null,null,null,null,null,null,null,null,null,"Temporary service installation and removal – overhead – no transformer",null,null,null,null,null,null,null,null,null,null,"Veridian Connections Inc.","PowerStream Inc. - South",null,"RESIDENTIAL REGULAR","kWh"]
["RESIDENTIAL",null,null,null,null,null,null,null,"Rate Rider for Disposition of Global Adjustment Sub-Account (2012) - effective until April 30, 2015 Applicatble only for Non-RPP Customers",null,null,null,null,null,null,null,null,null,null,null,null,null,null,null,null,null,"Temporary service installation and removal – overhead – with transformer",null,null,null,null,null,null,null,null,null,null,"Wasaga Distribution Inc.","PUC Distribution Inc.",null,"RESIDENTIAL","kWh"]
["RESIDENTIAL SUBURBAN SEASONAL",null,null,null,null,null,null,null,"Rate Rider for Disposition of Global Adjustment Sub-Account (2012) - effective until April 30, 2016 Applicable only for Non-RPP Customers",null,null,null,null,null,null,null,null,null,null,null,null,null,null,null,null,null,"Temporary service installation and removal – underground – no transformer",null,null,null,null,null,null,null,null,null,null,"Waterloo North Hydro Inc.","Renfrew Hydro Inc.",null,"RESIDENTIAL SUBURBAN SEASONAL","kWh"]
["RESIDENTIAL SUBURBAN",null,null,null,null,null,null,null,"Rate Rider for Disposition of Global Adjustment Sub-Account (2012) - effective until December 31, 2013 Applicable only for Non-RPP Customers",null,null,null,null,null,null,null,null,null,null,null,null,null,null,null,null,null,null,null,null,null,null,null,null,null,null,null,null,"Welland Hydro-Electric System Corp.","Rideau St. Lawrence Distribution Inc.",null,"RESIDENTIAL SUBURBAN","kWh"]
["RESIDENTIAL SUBURBAN YEAR ROUND",null,null,null,null,null,null,null,"Rate Rider for Disposition of Global Adjustment Sub-Account (2012) - effective until December 31, 2013 Applicable only for Non-RPP Customers in the former service area of Clinton Power",null,null,null,null,null,null,null,null,null,null,null,null,null,null,null,null,null,null,null,null,null,null,null,null,null,null,null,null,"Wellington North Power Inc.","Sioux Lookout Hydro Inc.",null,"RESIDENTIAL SUBURBAN YEAR ROUND","kWh"]
["RESIDENTIAL URBAN",null,null,null,null,null,null,null,"Rate Rider for Disposition of Global Adjustment Sub-Account (2012) - effective until December 31, 2013 Applicable only for Non-RPP Customers in the former service area of West Perth Power",null,null,null,null,null,null,null,null,null,null,null,null,null,null,null,null,null,null,null,null,null,null,null,null,null,null,null,null,"West Coast Huron Energy Inc.","St. Thomas Energy Inc.",null,"RESIDENTIAL URBAN","kWh"]
["RESIDENTIAL URBAN YEAR-ROUND",null,null,null,null,null,null,null,"Rate Rider for Disposition of Global Adjustment Sub-Account (2012) - effective until December 31, 2013 Applicable only for Non-RPP Customers in the service area excluding the former service areas of Clinton Power and West Perth Power",null,null,null,null,null,null,null,null,null,null,null,null,null,null,null,null,null,null,null,null,null,null,null,null,null,null,null,null,"West Perth Power Inc.","Thunder Bay Hydro Electricity Distribution Inc.",null,"RESIDENTIAL URBAN YEAR-ROUND","kWh"]
["SEASONAL RESIDENTIAL - HIGH DENSITY [R3]",null,null,null,null,null,null,null,"Rate Rider for Disposition of Global Adjustment Sub-Account (2012) - effective until February 28, 2013 Applicable only for Non-RPP Customers",null,null,null,null,null,null,null,null,null,null,null,null,null,null,null,null,null,null,null,null,null,null,null,null,null,null,null,null,"Westario Power Inc.","Tillsonburg Hydro Inc.",null,"SEASONAL RESIDENTIAL - HIGH DENSITY [R3]","kWh"]
["SEASONAL RESIDENTIAL - NORMAL DENSITY [R4]",null,null,null,null,null,null,null,"Rate Rider for Disposition of Global Adjustment Sub-Account (2012) - effective until June 30, 2014 Applicable only for Non-RPP Customers",null,null,null,null,null,null,null,null,null,null,null,null,null,null,null,null,null,null,null,null,null,null,null,null,null,null,null,null,"Whitby Hydro Electric Corporation","Toronto Hydro-Electric System Limited",null,"SEASONAL RESIDENTIAL - NORMAL DENSITY [R4]","kWh"]
["SEASONAL RESIDENTIAL",null,null,null,null,null,null,null,"Rate Rider for Disposition of Global Adjustment Sub-Account (2012) - effective until March 31, 2013 Applicable only for Non-RPP Customers",null,null,null,null,null,null,null,null,null,null,null,null,null,null,null,null,null,null,null,null,null,null,null,null,null,null,null,null,"Woodstock Hydro Services Inc.","Veridian Connections Inc.",null,"SEASONAL RESIDENTIAL","kWh"]
["SENTINEL LIGHTING",null,null,null,null,null,null,null,"Rate Rider for Disposition of Global Adjustment Sub-Account (2012) - effective until October 31, 2013 Applicable only for Non-RPP Customers",null,null,null,null,null,null,null,null,null,null,null,null,null,null,null,null,null,null,null,null,null,null,null,null,null,null,null,null,null,"Veridian Connections Inc. - Gravenhurst",null,"SENTINEL LIGHTING","kW"]
["SMALL COMMERCIAL AND USL - PER CONNECTION",null,null,null,null,null,null,null,"Rate Rider for Disposition of Global Adjustment Sub-Account (2013) - effective until April 30, 2014 Applicable only for Non-RPP Customers",null,null,null,null,null,null,null,null,null,null,null,null,null,null,null,null,null,null,null,null,null,null,null,null,null,null,null,null,null,"Wasaga Distribution Inc.",null,"SMALL COMMERCIAL AND USL - PER CONNECTION","kW"]
["SMALL COMMERCIAL AND USL - PER METER",null,null,null,null,null,null,null,"Rate Rider for Disposition of Global Adjustment Sub-Account (2013) - effective until April 30, 2015 Applicable only for Non-RPP Customers",null,null,null,null,null,null,null,null,null,null,null,null,null,null,null,null,null,null,null,null,null,null,null,null,null,null,null,null,null,"Waterloo North Hydro Inc.",null,"SMALL COMMERCIAL AND USL - PER METER","kW"]
["STANDARD A GENERAL SERVICE AIR ACCESS",null,null,null,null,null,null,null,"Rate Rider for Disposition of Global Adjustment Sub-Account (2013) - effective until April 30, 2017 Applicable only for Non-RPP Customers",null,null,null,null,null,null,null,null,null,null,null,null,null,null,null,null,null,null,null,null,null,null,null,null,null,null,null,null,null,"Welland Hydro-Electric System Corp.",null,"STANDARD A GENERAL SERVICE AIR ACCESS","kW"]
["STANDARD A GENERAL SERVICE ROAD/RAIL",null,null,null,null,null,null,null,"Rate Rider for Disposition of Global Adjustment Sub-Account (2013) - effective until December 31, 2013 Applicable only for Non-RPP Customers",null,null,null,null,null,null,null,null,null,null,null,null,null,null,null,null,null,null,null,null,null,null,null,null,null,null,null,null,null,"Wellington North Power Inc.",null,"STANDARD A GENERAL SERVICE ROAD/RAIL","kW"]
["STANDARD A RESIDENTIAL AIR ACCESS",null,null,null,null,null,null,null,"Rate Rider for Disposition of Post Retirement Actuarial Gain - effective until March 31, 2025",null,null,null,null,null,null,null,null,null,null,null,null,null,null,null,null,null,null,null,null,null,null,null,null,null,null,null,null,null,"West Coast Huron Energy Inc.",null,"STANDARD A RESIDENTIAL AIR ACCESS","kW"]
["STANDARD A RESIDENTIAL ROAD/RAIL",null,null,null,null,null,null,null,"Rate Rider for Disposition of Residual Hisotrical Smart Meter Costs - effective until April 30, 2015",null,null,null,null,null,null,null,null,null,null,null,null,null,null,null,null,null,null,null,null,null,null,null,null,null,null,null,null,null,"West Perth Power Inc.",null,"STANDARD A RESIDENTIAL ROAD/RAIL","kW"]
["STANDBY - GENERAL SERVICE 1,000 - 5,000 KW",null,null,null,null,null,null,null,"Rate Rider for Disposition of Residual Historical Smart Meter Costs - effective until April 30, 2013",null,null,null,null,null,null,null,null,null,null,null,null,null,null,null,null,null,null,null,null,null,null,null,null,null,null,null,null,null,"Westario Power Inc.",null,"STANDBY - GENERAL SERVICE 1,000 - 5,000 KW","kW"]
["STANDBY - GENERAL SERVICE 50 - 1,000 KW",null,null,null,null,null,null,null,"Rate Rider for Disposition of Residual Historical Smart Meter Costs - effective until April 30, 2014",null,null,null,null,null,null,null,null,null,null,null,null,null,null,null,null,null,null,null,null,null,null,null,null,null,null,null,null,null,"Whitby Hydro Electric Corporation",null,"STANDBY - GENERAL SERVICE 50 - 1,000 KW","kW"]
["STANDBY - LARGE USE",null,null,null,null,null,null,null,"Rate Rider for Disposition of Residual Historical Smart Meter Costs - effective until April 30, 2016",null,null,null,null,null,null,null,null,null,null,null,null,null,null,null,null,null,null,null,null,null,null,null,null,null,null,null,null,null,"Woodstock Hydro Services Inc.",null,"STANDBY - LARGE USE","kW"]
["STANDBY DISTRIBUTION SERVICE",null,null,null,null,null,null,null,"Rate Rider for Disposition of Residual Historical Smart Meter Costs - effective until August 31, 2013",null,null,null,null,null,null,null,null,null,null,null,null,null,null,null,null,null,null,null,null,null,null,null,null,null,null,null,null,null,null,null,"STANDBY DISTRIBUTION SERVICE","kW"]
["STANDBY POWER - APPROVED ON AN INTERIM BASIS",null,null,null,null,null,null,null,"Rate Rider for Disposition of Residual Historical Smart Meter Costs - effective until August 31, 2015",null,null,null,null,null,null,null,null,null,null,null,null,null,null,null,null,null,null,null,null,null,null,null,null,null,null,null,null,null,null,null,"STANDBY POWER - APPROVED ON AN INTERIM BASIS","kW"]
["STANDBY POWER GENERAL SERVICE 1,500 TO 4,999 KW",null,null,null,null,null,null,null,"Rate Rider for Disposition of Residual Historical Smart Meter Costs - effective until December 31, 2013",null,null,null,null,null,null,null,null,null,null,null,null,null,null,null,null,null,null,null,null,null,null,null,null,null,null,null,null,null,null,null,"STANDBY POWER GENERAL SERVICE 1,500 TO 4,999 KW","kW"]
["STANDBY POWER GENERAL SERVICE 50 TO 1,499 KW",null,null,null,null,null,null,null,"Rate Rider for Disposition of Residual Historical Smart Meter Costs - effective until December 31, 2014",null,null,null,null,null,null,null,null,null,null,null,null,null,null,null,null,null,null,null,null,null,null,null,null,null,null,null,null,null,null,null,"STANDBY POWER GENERAL SERVICE 50 TO 1,499 KW","kW"]
["STANDBY POWER GENERAL SERVICE LARGE USE",null,null,null,null,null,null,null,"Rate Rider for Disposition of Residual Historical Smart Meter Costs - effective until December 31, 2015",null,null,null,null,null,null,null,null,null,null,null,null,null,null,null,null,null,null,null,null,null,null,null,null,null,null,null,null,null,null,null,"STANDBY POWER GENERAL SERVICE LARGE USE","kW"]
["STANDBY POWER",null,null,null,null,null,null,null,"Rate Rider for Disposition of Residual Historical Smart Meter Costs - effective until March 31, 2013",null,null,null,null,null,null,null,null,null,null,null,null,null,null,null,null,null,null,null,null,null,null,null,null,null,null,null,null,null,null,null,"STANDBY POWER","kW"]
["STREET LIGHTING",null,null,null,null,null,null,null,"Rate Rider for Disposition of Residual Historical Smart Meter Costs - effective until November 30, 2013",null,null,null,null,null,null,null,null,null,null,null,null,null,null,null,null,null,null,null,null,null,null,null,null,null,null,null,null,null,null,null,"STREET LIGHTING","kW"]
["SUB TRANSMISSION [ST]",null,null,null,null,null,null,null,"Rate Rider for Disposition of Residual Historical Smart Meter Costs - effective until October 31, 2013",null,null,null,null,null,null,null,null,null,null,null,null,null,null,null,null,null,null,null,null,null,null,null,null,null,null,null,null,null,null,null,"SUB TRANSMISSION [ST]","kW"]
["UNMETERED SCATTERED LOAD",null,null,null,null,null,null,null,"Rate Rider for Disposition of Residual Historical Smart Meter Costs - effective until September 30, 2014",null,null,null,null,null,null,null,null,null,null,null,null,null,null,null,null,null,null,null,null,null,null,null,null,null,null,null,null,null,null,null,"UNMETERED SCATTERED LOAD","kWh"]
["URBAN GENERAL SERVICE DEMAND BILLED (50 KW AND ABOVE) [UGD]",null,null,null,null,null,null,null,"Rate Rider for Disposition of Residual Historical Smart Meter Costs - Non-Interval Metered \n - effective until April 30, 2014",null,null,null,null,null,null,null,null,null,null,null,null,null,null,null,null,null,null,null,null,null,null,null,null,null,null,null,null,null,null,null,"URBAN GENERAL SERVICE DEMAND BILLED (50 KW AND ABOVE) [UGD]","kW"]
["URBAN GENERAL SERVICE ENERGY BILLED (LESS THAN 50 KW) [UGE]",null,null,null,null,null,null,null,"Rate Rider for Disposition of Residual Historical Smart Meter Costs 2 - in effect until the effective \n date of the next cost of service-based rate order",null,null,null,null,null,null,null,null,null,null,null,null,null,null,null,null,null,null,null,null,null,null,null,null,null,null,null,null,null,null,null,"URBAN GENERAL SERVICE ENERGY BILLED (LESS THAN 50 KW) [UGE]","kWh"]
["WESTPORT SEWAGE TREATMENT PLANT",null,null,null,null,null,null,null,"Rate Rider for Disposition of Residual Historical Smart Meter Costs 3 - in effect until the effective \n date of the next cost of service-based rate order",null,null,null,null,null,null,null,null,null,null,null,null,null,null,null,null,null,null,null,null,null,null,null,null,null,null,null,null,null,null,null,"WESTPORT SEWAGE TREATMENT PLANT","kW"]
["YEAR-ROUND RESIDENTIAL - R2",null,null,null,null,null,null,null,"Rate Rider for Disposition of Residual Incremental Historical Smart Meter Costs - \n effective until August 31, 2015",null,null,null,null,null,null,null,null,null,null,null,null,null,null,null,null,null,null,null,null,null,null,null,null,null,null,null,null,null,null,null,"YEAR-ROUND RESIDENTIAL - R2","kWh"]
[null,null,null,null,null,null,null,null,"Rate Rider for Disposition of Stranded Meter Costs - effective until April 30, 2016"]
[null,null,null,null,null,null,null,null,"Rate Rider for Global Adjustment Sub Account Disposition - effective until April 30, 2016 Applicable only for Non RPP Customers"]
[null,null,null,null,null,null,null,null,"Rate Rider for Incremental Capital (2012) - effective until April 30, 2015"]
[null,null,null,null,null,null,null,null,"Rate Rider for Lost Revenue Adjustment (LRAM) Recovery/Shared Savings Mechanism Recovery \n (2011) - effective until April 30, 2014"]
[null,null,null,null,null,null,null,null,"Rate Rider for Lost Revenue Adjustment Mechanism Variance Account (LRAMVA) (2011) – effective until April 30, 2014"]
[null,null,null,null,null,null,null,null,"Rate Rider for Lost Revenue Adjustment Mechanism Variance Account (LRAMVA) Recovery \n (2011 CDM Activities) - effective until April 30, 2014"]
[null,null,null,null,null,null,null,null,"Rate Rider for Recover of Residual Historical Smart Meter Costs - effective until June 30, 2014"]
[null,null,null,null,null,null,null,null,"Rate Rider for Recovery of Deferred Revenue - effective until December 31, 2013"]
[null,null,null,null,null,null,null,null,"Rate Rider for Recovery of Forgone Revenue - effective until April 30, 2014"]
[null,null,null,null,null,null,null,null,"Rate Rider for Recovery of Green Energy Act related costs - effective until December 31, 2013"]
[null,null,null,null,null,null,null,null,"Rate Rider for Recovery of Incremental Capital (2013) - in effect until the effective date of the\n next cost of service-based rate order"]
[null,null,null,null,null,null,null,null,"Rate Rider for Recovery of Incremental Capital (2013) (per connection) - in effect until the effective date of \n the next cost of service-based rate order"]
[null,null,null,null,null,null,null,null,"Rate Rider for Recovery of Incremental Capital Costs"]
[null,null,null,null,null,null,null,null,"Rate Rider for Recovery of Incremental Capital Costs - effective until April 30, 2014"]
[null,null,null,null,null,null,null,null,"Rate Rider for Recovery of Incremental Capital Costs - effective until April 30, 2015"]
[null,null,null,null,null,null,null,null,"Rate Rider for Recovery of Lost Revenue Adjustment Mechanism (LRAM) - effective until April 30, 2014"]
[null,null,null,null,null,null,null,null,"Rate Rider for Recovery of Lost Revenue Adjustment Mechanism (LRAM) - effective until April 30, 2016"]
[null,null,null,null,null,null,null,null,"Rate Rider for Recovery of Lost Revenue Adjustment Mechanism (LRAM) - effective until August 31, 2013"]
[null,null,null,null,null,null,null,null,"Rate Rider for Recovery of Lost Revenue Adjustment Mechanism (LRAM) - effective until December 31, 2013"]
[null,null,null,null,null,null,null,null,"Rate Rider for Recovery of Lost Revenue Adjustment Mechanism (LRAM) - effective until June 30, 2013"]
[null,null,null,null,null,null,null,null,"Rate Rider for Recovery of Lost Revenue Adjustment Mechanism (LRAM) - effective until November 30, 2013"]
[null,null,null,null,null,null,null,null,"Rate Rider for Recovery of Lost Revenue Adjustment Mechanism (LRAM) (2012) - effective until April 30, 2014"]
[null,null,null,null,null,null,null,null,"Rate Rider for Recovery of Lost Revenue Adjustment Mechanism (LRAM) (2012) - effective until February 28, 2013"]
[null,null,null,null,null,null,null,null,"Rate Rider for Recovery of Lost Revenue Adjustment Mechanism (LRAM) (2013) - effective until December 31, 2013"]
[null,null,null,null,null,null,null,null,"Rate Rider for Recovery of Lost Revenue Adjustment Mechanism (LRAM) (pre-2011 CDM Activities) - effective until April 30, 2014"]
[null,null,null,null,null,null,null,null,"Rate Rider for Recovery of Lost Revenue Adjustment Mechanism (LRAM)/Shared Savings"]
[null,null,null,null,null,null,null,null,"Rate Rider for Recovery of Lost Revenue Adjustment Mechanism (LRAM)/Shared Savings Mechanism (SSM) - effective until April 30, 2014"]
[null,null,null,null,null,null,null,null,"Rate Rider for Recovery of Lost Revenue Adjustment Mechanism (LRAM)/Shared Savings Mechanism (SSM) - effective until December 31, 2014 and applicable in the service area excluding the former service area of Clinton Power"]
[null,null,null,null,null,null,null,null,"Rate Rider for Recovery of Lost Revenue Adjustment Mechanism (LRAM)/Shared Savings Mechanism (SSM) - effective until December 31, 2014 and applicable in the service area excluding the former service areas of Clinton Power and West Perth Power"]
[null,null,null,null,null,null,null,null,"Rate Rider for Recovery of Lost Revenue Adjustment Mechanism (LRAM)/Shared Savings Mechanism (SSM) - effective until December 31, 2014 and applicable only in the former service area of Clinton Power"]
[null,null,null,null,null,null,null,null,"Rate Rider for Recovery of Lost Revenue Adjustment Mechanism (LRAM)/Shared Savings Mechanism (SSM) - effective until December 31, 2014 and applicable only in the former service area of West Perth Power"]
[null,null,null,null,null,null,null,null,"Rate Rider for Recovery of Lost Revenue Adjustment Mechanism (LRAM)/Shared Savings Mechanism (SSM) - effective until March 31, 2016"]
[null,null,null,null,null,null,null,null,"Rate Rider for Recovery of Lost Revenue Adjustment Mechanism (LRAM)/Shared Savings Mechanism (SSM) Recovery - effective until April 30, 2014"]
[null,null,null,null,null,null,null,null,"Rate Rider for Recovery of Lost Revenue Adjustment Mechanism (LRAM)/Shared Savings Mechanism (SSM) Recovery - effective until April 30, 2015"]
[null,null,null,null,null,null,null,null,"Rate Rider for Recovery of Lost Revenue Adjustment Mechanism (LRAM)/Shared Savings Mechanism (SSM) Recovery (2010) - effective until April 30, 2014"]
[null,null,null,null,null,null,null,null,"Rate Rider for Recovery of Lost Revenue Adjustment Mechanism (LRAM)/Shared Savings Mechanism (SSM) Recovery (2012) - effective until April 30, 2014"]
[null,null,null,null,null,null,null,null,"Rate Rider for Recovery of Lost Revenue Adjustment Mechanism (LRAM)/Shared Savings Mechanism (SSM) Recovery (2012) - effective until October 31, 2013"]
[null,null,null,null,null,null,null,null,"Rate Rider for Recovery of Residual Historical Smart Meter Costs - effective July 1, 2012 - April 30, 2016"]
[null,null,null,null,null,null,null,null,"Rate Rider for Recovery of Smart Meter Incremental Revenue Requirement - effective until the date of the next cost of service-based rate order"]
[null,null,null,null,null,null,null,null,"Rate Rider for Recovery of Smart Meter Incremental Revenue Requirement - in effect until the effective date of the next cost of service-based rate order"]
[null,null,null,null,null,null,null,null,"Rate Rider for Recovery of Smart Meter Incremental Revenue Requirement - Non-Interval Metered - in effect until the effective date of the next cost of service-based rate order"]
[null,null,null,null,null,null,null,null,"Rate Rider for Recovery of Smart Meter Incremental Revenue Requirements - in effect until the effective date of the next cost of service application"]
[null,null,null,null,null,null,null,null,"Rate Rider for Recovery of Smart Meter Stranded Assets - effective until April 30, 2016"]
[null,null,null,null,null,null,null,null,"Rate Rider for Recovery of Stranded Assets - effective until April 30, 2016"]
[null,null,null,null,null,null,null,null,"Rate Rider for Recovery of Stranded Meter Assets - effective July 1, 2012 - April 30, 2016"]
[null,null,null,null,null,null,null,null,"Rate Rider for Recovery of Stranded Meter Assets - effective until April 30, 2014"]
[null,null,null,null,null,null,null,null,"Rate Rider for Recovery of Stranded Meter Assets – effective until April 30, 2015"]
[null,null,null,null,null,null,null,null,"Rate Rider for Recovery of Stranded Meter Assets - effective until April 30, 2016"]
[null,null,null,null,null,null,null,null,"Rate Rider for Recovery of Stranded Meter Assets - effective until August 31, 2013"]
[null,null,null,null,null,null,null,null,"Rate Rider for Recovery of Stranded Meter Assets - effective until August 31, 2015"]
[null,null,null,null,null,null,null,null,"Rate Rider for Recovery of Stranded Meter Assets - effective until December 31, 2014"]
[null,null,null,null,null,null,null,null,"Rate Rider for Recovery of Stranded Meter Assets - effective until December 31, 2015"]
[null,null,null,null,null,null,null,null,"Rate Rider for Recovery of Stranded Meter Assets - effective until June 30, 2016"]
[null,null,null,null,null,null,null,null,"Rate Rider for Recovery of Stranded Meter Assets - effective until March 31, 2016"]
[null,null,null,null,null,null,null,null,"Rate Rider for Recovery of Stranded Meter Assets - effective until November 30, 2013"]
[null,null,null,null,null,null,null,null,"Rate Rider for Reversal of Deferral/Variance Account Disposition (2011) - effective until April 30, 2015"]
[null,null,null,null,null,null,null,null,"Rate Rider for Smart Meter Disposition - effective until October 31, 2013"]
[null,null,null,null,null,null,null,null,"Rate Rider for Smart Meter Incremental Revenue Requirement - in effect until the effective date of the next cost of service-based rate order"]
[null,null,null,null,null,null,null,null,"Rate Rider for Smart Metering Entity Charge - effective until October 31, 2018"]
[null,null,null,null,null,null,null,null,"Rate Rider for the disposition of Deferral/Variance Accounts Disposition (2013) - effective on an interim basis until April 30, 2014"]
[null,null,null,null,null,null,null,null,"Rate Rider for the disposition of Global Adjustment Sub-Account Disposition (2013) - effective on an interim basis until April 30, 2014 Applicable only for Non-RPP Customers"]
[null,null,null,null,null,null,null,null,"Retail Transmission Rate - Line and Transformation Connection Service Rate"]
[null,null,null,null,null,null,null,null,"Retail Transmission Rate - Line and Transformation Connection Service Rate - (less than 1,000 kW)"]
[null,null,null,null,null,null,null,null,"Retail Transmission Rate - Line and Transformation Connection Service Rate - Interval Metered"]
[null,null,null,null,null,null,null,null,"Retail Transmission Rate - Line and Transformation Connection Service Rate - Interval Metered (1,000 to 4,999 kW)"]
[null,null,null,null,null,null,null,null,"Retail Transmission Rate - Line and Transformation Connection Service Rate - Interval Metered (less than 1,000 kW)"]
[null,null,null,null,null,null,null,null,"Retail Transmission Rate - Line and Transformation Connection Service Rate - Interval Metered < 1,000 kW"]
[null,null,null,null,null,null,null,null,"Retail Transmission Rate - Line and Transformation Connection Service Rate - Interval Metered > 1,000 kW"]
[null,null,null,null,null,null,null,null,"Retail Transmission Rate - Line and Transformation Connection Service Rate FOR ALL SERVICE AREAS EXCEPT HENSALL"]
[null,null,null,null,null,null,null,null,"Retail Transmission Rate - Line Connection Service Rate"]
[null,null,null,null,null,null,null,null,"Retail Transmission Rate - Network Service Rate"]
[null,null,null,null,null,null,null,null,"Retail Transmission Rate - Network Service Rate - (less than 1,000 kW)"]
[null,null,null,null,null,null,null,null,"Retail Transmission Rate - Network Service Rate - Interval Metered"]
[null,null,null,null,null,null,null,null,"Retail Transmission Rate - Network Service Rate - Interval Metered (1,000 to 4,999 kW)"]
[null,null,null,null,null,null,null,null,"Retail Transmission Rate - Network Service Rate - Interval Metered (less than 1,000 kW)"]
[null,null,null,null,null,null,null,null,"Retail Transmission Rate - Network Service Rate - Interval Metered > 1,000 kW"]
[null,null,null,null,null,null,null,null,"Retail Transmission Rate - Transformation Connection Service Rate"]
[null,null,null,null,null,null,null,null,"Rider for Global Adjustment Sub-Account Disposition (2012) - effective until April 30, 2016 Applicable only for Non-RPP Customers"]
[null,null,null,null,null,null,null,null,"Rural Rate Protection Charge"]
[null,null,null,null,null,null,null,null,"Sentinel lights (dusk-to-dawn) connected to unmetered wires will have a flat rate monthly energy charge added to the regular customer bill. Further servicing details are available in the distributor’s Conditions of Service."]
[null,null,null,null,null,null,null,null,"Service Charge"]
[null,null,null,null,null,null,null,null,"Service Charge (per connection)"]
[null,null,null,null,null,null,null,null,"Service Charge (per customer)"]
[null,null,null,null,null,null,null,null,"Service Charge (per light)"]
[null,null,null,null,null,null,null,null,"Standard Supply Service - Administrative Charge (if applicable)"]
[null,null,null,null,null,null,null,null,"Standby Charge - for a month where standby power is not provided. The charge is applied to the amount of reserved load transfer capacity contracted or the amount of monthly peak load displaced by a generating facility"]
[null,null,null,null,null,null,null,null,"Standby Charge - for a month where standby power is not provided. The charge is applied to the contracted amount (e.g. nameplate rating of the generation facility)."]
[null,null,null,null,null,null,null,null,"Wholesale Market Service Rate"]